{"text_format":"1","workbook":"xlsx","n_sheets":27,"sheets":["ReadMe","Revision History","RE Score Calculator","LCOE","United States of America","Russian Federation","Norway","Netherlands","KoreaRepublicOf","Japan","Italy","India","Hungary","Germany","France","Finland","Denmark","China","Canada","Brazil","Belgium","Austria","Australia","EPA","UNFCC","GridRegions","CountryValidation"],"not_rendered":{"charts":0,"images":1,"macros":1,"external_links":0,"defined_names":820,"comments":0,"pivot_tables":0},"unopened":[],"bounds":{"document_bytes":16777216,"sheet_cells":100000,"rows_first":2000,"rows_last":500,"rows_between":2000,"halvings":0,"cell_chars":16384,"cell_head_chars":4096},"cells_cut":0,"cells_raw":0,"read":"whole","date_system":"1900"}

{"sheet":"ReadMe","index":0,"n_rows":23,"n_cols":2,"rows_kept":23,"cut":false,"hidden":false,"merged":[[4,0,19,7]]}
[]
["Draft V1.0 for Public Comment"]
[]
[]
["Methodology:\nFor more info on RE Score Methodology, refer to RE Score Methodology Overview pdf \n\nInstructions: \n\n- Enter EAC Price and RE Procurement sections for all renewable energy procurement annually  \n- Select Renewable Energy Country, Renewable Energy Grid Region, and Marginal Emissions Rate for each entry  \n- Select RE Project Country, make sure to match this entry to Renewable Energy Country \n- Select RE Project Category and RE Project Type, based on the renewable energy procurement mechanism being used  \n- Enter Electricity Purchases for all power purchased annually  \n- Select Electricity Purchase Country and Electricity Purchase Grid Region for all entries  \n- Ensure that both AVOIDED EMISSIONS and INDUCED EMISSIONS sections are filled out \n\nAssumptions:\n- All RE Procurement and Electricity Purchases are entered on an annual basis \n- RE Project Type is most similar project type available \n- Uses default assumptions of IEA data \n- IEA Project Type LCOE refers to lowest available value in IEA dataset \n\nData Sources:\n\n\n"]
[]
[]
[]
[]
[]
[]
[]
[]
[]
[]
[]
[]
[]
[]
[]
["LCOE ","https://www.iea.org/articles/levelised-cost-of-electricity-calculator/"]
["Marginal Emissions ","https://www.epa.gov/egrid/data-explorer"]
[null,"https://unfccc.int/sites/default/files/resource/Harmonized_Grid_Emission_factor_data_set.xlsx"]

{"sheet":"Revision History","index":1,"n_rows":4,"n_cols":1,"rows_kept":4,"cut":false,"hidden":true,"merged":[[3,0,21,9],[2,0,2,3]]}
[]
[]
["Revision History"]
["V1.0 - 2022.04.05"]

{"sheet":"RE Score Calculator","index":2,"n_rows":65,"n_cols":17,"rows_kept":65,"cut":false,"hidden":false,"merged":[[10,3,11,4],[10,13,11,14],[1,0,1,2]]}
[]
["RE Emissions Score Calculator\n"]
["Draft V1.0 for Public Comment"]
[]
[]
[null,"RE Score",null,null,null,{"$f":"SUM(J15:J65)","v":0}]
[null,{"$f":"$F$6/$F$7","v":{"$error":"#DIV/0!"}},null,null,null,{"$f":"SUM(Q15:Q65)","v":0}]
[]
[]
[]
[null,null,null,"AVOIDED EMISSIONS ",null,null,null,null,null,null,null,null,null,"INDUCED EMISSIONS"]
[]
[]
["EAC Price ($)","RE Procurement (MWh)","Renewable Energy Country","Renewable Energy Grid Region ","Marginal Emissions Rate","RE Project Country","RE Project Category ","RE Project Type ","LCOE ($)",null,null,null,"Electricity Purchase (MWh)","Electricity Purchase Country","Electricity Purchase Grid Region","Marginal Emissions Rate"]
[null,null,null,null,null,null,null,null,{"$f":"IFERROR(INDEX(LCOE!$E$3:$E$167,MATCH(1,('RE Score Calculator'!F15=LCOE!$B$3:$B$167)*('RE Score Calculator'!G15=LCOE!$C$3:$C$167)*('RE Score Calculator'!H15=LCOE!$D$3:$D$167),0)),\"\")","v":""},{"$f":"IFERROR((A15/I15)*B15*E15,\"\")","v":""},null,null,null,null,null,null,{"$f":"IFERROR(M15*P15,\"\")","v":0}]
[null,null,null,null,null,null,null,null,{"$f":"IFERROR(INDEX(LCOE!$E$3:$E$167,MATCH(1,('RE Score Calculator'!F16=LCOE!$B$3:$B$167)*('RE Score Calculator'!G16=LCOE!$C$3:$C$167)*('RE Score Calculator'!H16=LCOE!$D$3:$D$167),0)),\"\")","v":""},{"$f":"IFERROR((A16/I16)*B16*E16,\"\")","v":""},null,null,null,null,null,null,{"$f":"IFERROR(M16*P16,\"\")","v":0}]
[null,null,null,null,null,null,null,null,{"$f":"IFERROR(INDEX(LCOE!$E$3:$E$167,MATCH(1,('RE Score Calculator'!F17=LCOE!$B$3:$B$167)*('RE Score Calculator'!G17=LCOE!$C$3:$C$167)*('RE Score Calculator'!H17=LCOE!$D$3:$D$167),0)),\"\")","v":""},"",null,null,null,null,null,null,0]
[null,null,null,null,null,null,null,null,{"$f":"IFERROR(INDEX(LCOE!$E$3:$E$167,MATCH(1,('RE Score Calculator'!F18=LCOE!$B$3:$B$167)*('RE Score Calculator'!G18=LCOE!$C$3:$C$167)*('RE Score Calculator'!H18=LCOE!$D$3:$D$167),0)),\"\")","v":""},"",null,null,null,null,null,null,0]
[null,null,null,null,null,null,null,null,{"$f":"IFERROR(INDEX(LCOE!$E$3:$E$167,MATCH(1,('RE Score Calculator'!F19=LCOE!$B$3:$B$167)*('RE Score Calculator'!G19=LCOE!$C$3:$C$167)*('RE Score Calculator'!H19=LCOE!$D$3:$D$167),0)),\"\")","v":""},"",null,null,null,null,null,null,0]
[null,null,null,null,null,null,null,null,{"$f":"IFERROR(INDEX(LCOE!$E$3:$E$167,MATCH(1,('RE Score Calculator'!F20=LCOE!$B$3:$B$167)*('RE Score Calculator'!G20=LCOE!$C$3:$C$167)*('RE Score Calculator'!H20=LCOE!$D$3:$D$167),0)),\"\")","v":""},"",null,null,null,null,null,null,0]
[null,null,null,null,null,null,null,null,{"$f":"IFERROR(INDEX(LCOE!$E$3:$E$167,MATCH(1,('RE Score Calculator'!F21=LCOE!$B$3:$B$167)*('RE Score Calculator'!G21=LCOE!$C$3:$C$167)*('RE Score Calculator'!H21=LCOE!$D$3:$D$167),0)),\"\")","v":""},"",null,null,null,null,null,null,0]
[null,null,null,null,null,null,null,null,{"$f":"IFERROR(INDEX(LCOE!$E$3:$E$167,MATCH(1,('RE Score Calculator'!F22=LCOE!$B$3:$B$167)*('RE Score Calculator'!G22=LCOE!$C$3:$C$167)*('RE Score Calculator'!H22=LCOE!$D$3:$D$167),0)),\"\")","v":""},"",null,null,null,null,null,null,0]
[null,null,null,null,null,null,null,null,{"$f":"IFERROR(INDEX(LCOE!$E$3:$E$167,MATCH(1,('RE Score Calculator'!F23=LCOE!$B$3:$B$167)*('RE Score Calculator'!G23=LCOE!$C$3:$C$167)*('RE Score Calculator'!H23=LCOE!$D$3:$D$167),0)),\"\")","v":""},"",null,null,null,null,null,null,0]
[null,null,null,null,null,null,null,null,{"$f":"IFERROR(INDEX(LCOE!$E$3:$E$167,MATCH(1,('RE Score Calculator'!F24=LCOE!$B$3:$B$167)*('RE Score Calculator'!G24=LCOE!$C$3:$C$167)*('RE Score Calculator'!H24=LCOE!$D$3:$D$167),0)),\"\")","v":""},"",null,null,null,null,null,null,0]
[null,null,null,null,null,null,null,null,{"$f":"IFERROR(INDEX(LCOE!$E$3:$E$167,MATCH(1,('RE Score Calculator'!F25=LCOE!$B$3:$B$167)*('RE Score Calculator'!G25=LCOE!$C$3:$C$167)*('RE Score Calculator'!H25=LCOE!$D$3:$D$167),0)),\"\")","v":""},"",null,null,null,null,null,null,0]
[null,null,null,null,null,null,null,null,{"$f":"IFERROR(INDEX(LCOE!$E$3:$E$167,MATCH(1,('RE Score Calculator'!F26=LCOE!$B$3:$B$167)*('RE Score Calculator'!G26=LCOE!$C$3:$C$167)*('RE Score Calculator'!H26=LCOE!$D$3:$D$167),0)),\"\")","v":""},"",null,null,null,null,null,null,0]
[null,null,null,null,null,null,null,null,{"$f":"IFERROR(INDEX(LCOE!$E$3:$E$167,MATCH(1,('RE Score Calculator'!F27=LCOE!$B$3:$B$167)*('RE Score Calculator'!G27=LCOE!$C$3:$C$167)*('RE Score Calculator'!H27=LCOE!$D$3:$D$167),0)),\"\")","v":""},"",null,null,null,null,null,null,0]
[null,null,null,null,null,null,null,null,{"$f":"IFERROR(INDEX(LCOE!$E$3:$E$167,MATCH(1,('RE Score Calculator'!F28=LCOE!$B$3:$B$167)*('RE Score Calculator'!G28=LCOE!$C$3:$C$167)*('RE Score Calculator'!H28=LCOE!$D$3:$D$167),0)),\"\")","v":""},"",null,null,null,null,null,null,0]
[null,null,null,null,null,null,null,null,{"$f":"IFERROR(INDEX(LCOE!$E$3:$E$167,MATCH(1,('RE Score Calculator'!F29=LCOE!$B$3:$B$167)*('RE Score Calculator'!G29=LCOE!$C$3:$C$167)*('RE Score Calculator'!H29=LCOE!$D$3:$D$167),0)),\"\")","v":""},"",null,null,null,null,null,null,0]
[null,null,null,null,null,null,null,null,{"$f":"IFERROR(INDEX(LCOE!$E$3:$E$167,MATCH(1,('RE Score Calculator'!F30=LCOE!$B$3:$B$167)*('RE Score Calculator'!G30=LCOE!$C$3:$C$167)*('RE Score Calculator'!H30=LCOE!$D$3:$D$167),0)),\"\")","v":""},"",null,null,null,null,null,null,0]
[null,null,null,null,null,null,null,null,{"$f":"IFERROR(INDEX(LCOE!$E$3:$E$167,MATCH(1,('RE Score Calculator'!F31=LCOE!$B$3:$B$167)*('RE Score Calculator'!G31=LCOE!$C$3:$C$167)*('RE Score Calculator'!H31=LCOE!$D$3:$D$167),0)),\"\")","v":""},"",null,null,null,null,null,null,0]
[null,null,null,null,null,null,null,null,{"$f":"IFERROR(INDEX(LCOE!$E$3:$E$167,MATCH(1,('RE Score Calculator'!F32=LCOE!$B$3:$B$167)*('RE Score Calculator'!G32=LCOE!$C$3:$C$167)*('RE Score Calculator'!H32=LCOE!$D$3:$D$167),0)),\"\")","v":""},"",null,null,null,null,null,null,0]
[null,null,null,null,null,null,null,null,{"$f":"IFERROR(INDEX(LCOE!$E$3:$E$167,MATCH(1,('RE Score Calculator'!F33=LCOE!$B$3:$B$167)*('RE Score Calculator'!G33=LCOE!$C$3:$C$167)*('RE Score Calculator'!H33=LCOE!$D$3:$D$167),0)),\"\")","v":""},"",null,null,null,null,null,null,0]
[null,null,null,null,null,null,null,null,{"$f":"IFERROR(INDEX(LCOE!$E$3:$E$167,MATCH(1,('RE Score Calculator'!F34=LCOE!$B$3:$B$167)*('RE Score Calculator'!G34=LCOE!$C$3:$C$167)*('RE Score Calculator'!H34=LCOE!$D$3:$D$167),0)),\"\")","v":""},"",null,null,null,null,null,null,0]
[null,null,null,null,null,null,null,null,{"$f":"IFERROR(INDEX(LCOE!$E$3:$E$167,MATCH(1,('RE Score Calculator'!F35=LCOE!$B$3:$B$167)*('RE Score Calculator'!G35=LCOE!$C$3:$C$167)*('RE Score Calculator'!H35=LCOE!$D$3:$D$167),0)),\"\")","v":""},"",null,null,null,null,null,null,0]
[null,null,null,null,null,null,null,null,{"$f":"IFERROR(INDEX(LCOE!$E$3:$E$167,MATCH(1,('RE Score Calculator'!F36=LCOE!$B$3:$B$167)*('RE Score Calculator'!G36=LCOE!$C$3:$C$167)*('RE Score Calculator'!H36=LCOE!$D$3:$D$167),0)),\"\")","v":""},"",null,null,null,null,null,null,0]
[null,null,null,null,null,null,null,null,{"$f":"IFERROR(INDEX(LCOE!$E$3:$E$167,MATCH(1,('RE Score Calculator'!F37=LCOE!$B$3:$B$167)*('RE Score Calculator'!G37=LCOE!$C$3:$C$167)*('RE Score Calculator'!H37=LCOE!$D$3:$D$167),0)),\"\")","v":""},"",null,null,null,null,null,null,0]
[null,null,null,null,null,null,null,null,{"$f":"IFERROR(INDEX(LCOE!$E$3:$E$167,MATCH(1,('RE Score Calculator'!F38=LCOE!$B$3:$B$167)*('RE Score Calculator'!G38=LCOE!$C$3:$C$167)*('RE Score Calculator'!H38=LCOE!$D$3:$D$167),0)),\"\")","v":""},"",null,null,null,null,null,null,0]
[null,null,null,null,null,null,null,null,{"$f":"IFERROR(INDEX(LCOE!$E$3:$E$167,MATCH(1,('RE Score Calculator'!F39=LCOE!$B$3:$B$167)*('RE Score Calculator'!G39=LCOE!$C$3:$C$167)*('RE Score Calculator'!H39=LCOE!$D$3:$D$167),0)),\"\")","v":""},"",null,null,null,null,null,null,0]
[null,null,null,null,null,null,null,null,{"$f":"IFERROR(INDEX(LCOE!$E$3:$E$167,MATCH(1,('RE Score Calculator'!F40=LCOE!$B$3:$B$167)*('RE Score Calculator'!G40=LCOE!$C$3:$C$167)*('RE Score Calculator'!H40=LCOE!$D$3:$D$167),0)),\"\")","v":""},"",null,null,null,null,null,null,0]
[null,null,null,null,null,null,null,null,{"$f":"IFERROR(INDEX(LCOE!$E$3:$E$167,MATCH(1,('RE Score Calculator'!F41=LCOE!$B$3:$B$167)*('RE Score Calculator'!G41=LCOE!$C$3:$C$167)*('RE Score Calculator'!H41=LCOE!$D$3:$D$167),0)),\"\")","v":""},"",null,null,null,null,null,null,0]
[null,null,null,null,null,null,null,null,{"$f":"IFERROR(INDEX(LCOE!$E$3:$E$167,MATCH(1,('RE Score Calculator'!F42=LCOE!$B$3:$B$167)*('RE Score Calculator'!G42=LCOE!$C$3:$C$167)*('RE Score Calculator'!H42=LCOE!$D$3:$D$167),0)),\"\")","v":""},"",null,null,null,null,null,null,0]
[null,null,null,null,null,null,null,null,{"$f":"IFERROR(INDEX(LCOE!$E$3:$E$167,MATCH(1,('RE Score Calculator'!F43=LCOE!$B$3:$B$167)*('RE Score Calculator'!G43=LCOE!$C$3:$C$167)*('RE Score Calculator'!H43=LCOE!$D$3:$D$167),0)),\"\")","v":""},"",null,null,null,null,null,null,0]
[null,null,null,null,null,null,null,null,{"$f":"IFERROR(INDEX(LCOE!$E$3:$E$167,MATCH(1,('RE Score Calculator'!F44=LCOE!$B$3:$B$167)*('RE Score Calculator'!G44=LCOE!$C$3:$C$167)*('RE Score Calculator'!H44=LCOE!$D$3:$D$167),0)),\"\")","v":""},"",null,null,null,null,null,null,0]
[null,null,null,null,null,null,null,null,{"$f":"IFERROR(INDEX(LCOE!$E$3:$E$167,MATCH(1,('RE Score Calculator'!F45=LCOE!$B$3:$B$167)*('RE Score Calculator'!G45=LCOE!$C$3:$C$167)*('RE Score Calculator'!H45=LCOE!$D$3:$D$167),0)),\"\")","v":""},"",null,null,null,null,null,null,0]
[null,null,null,null,null,null,null,null,{"$f":"IFERROR(INDEX(LCOE!$E$3:$E$167,MATCH(1,('RE Score Calculator'!F46=LCOE!$B$3:$B$167)*('RE Score Calculator'!G46=LCOE!$C$3:$C$167)*('RE Score Calculator'!H46=LCOE!$D$3:$D$167),0)),\"\")","v":""},"",null,null,null,null,null,null,0]
[null,null,null,null,null,null,null,null,{"$f":"IFERROR(INDEX(LCOE!$E$3:$E$167,MATCH(1,('RE Score Calculator'!F47=LCOE!$B$3:$B$167)*('RE Score Calculator'!G47=LCOE!$C$3:$C$167)*('RE Score Calculator'!H47=LCOE!$D$3:$D$167),0)),\"\")","v":""},"",null,null,null,null,null,null,0]
[null,null,null,null,null,null,null,null,{"$f":"IFERROR(INDEX(LCOE!$E$3:$E$167,MATCH(1,('RE Score Calculator'!F48=LCOE!$B$3:$B$167)*('RE Score Calculator'!G48=LCOE!$C$3:$C$167)*('RE Score Calculator'!H48=LCOE!$D$3:$D$167),0)),\"\")","v":""},"",null,null,null,null,null,null,0]
[null,null,null,null,null,null,null,null,{"$f":"IFERROR(INDEX(LCOE!$E$3:$E$167,MATCH(1,('RE Score Calculator'!F49=LCOE!$B$3:$B$167)*('RE Score Calculator'!G49=LCOE!$C$3:$C$167)*('RE Score Calculator'!H49=LCOE!$D$3:$D$167),0)),\"\")","v":""},"",null,null,null,null,null,null,0]
[null,null,null,null,null,null,null,null,{"$f":"IFERROR(INDEX(LCOE!$E$3:$E$167,MATCH(1,('RE Score Calculator'!F50=LCOE!$B$3:$B$167)*('RE Score Calculator'!G50=LCOE!$C$3:$C$167)*('RE Score Calculator'!H50=LCOE!$D$3:$D$167),0)),\"\")","v":""},"",null,null,null,null,null,null,0]
[null,null,null,null,null,null,null,null,{"$f":"IFERROR(INDEX(LCOE!$E$3:$E$167,MATCH(1,('RE Score Calculator'!F51=LCOE!$B$3:$B$167)*('RE Score Calculator'!G51=LCOE!$C$3:$C$167)*('RE Score Calculator'!H51=LCOE!$D$3:$D$167),0)),\"\")","v":""},"",null,null,null,null,null,null,0]
[null,null,null,null,null,null,null,null,{"$f":"IFERROR(INDEX(LCOE!$E$3:$E$167,MATCH(1,('RE Score Calculator'!F52=LCOE!$B$3:$B$167)*('RE Score Calculator'!G52=LCOE!$C$3:$C$167)*('RE Score Calculator'!H52=LCOE!$D$3:$D$167),0)),\"\")","v":""},"",null,null,null,null,null,null,0]
[null,null,null,null,null,null,null,null,{"$f":"IFERROR(INDEX(LCOE!$E$3:$E$167,MATCH(1,('RE Score Calculator'!F53=LCOE!$B$3:$B$167)*('RE Score Calculator'!G53=LCOE!$C$3:$C$167)*('RE Score Calculator'!H53=LCOE!$D$3:$D$167),0)),\"\")","v":""},"",null,null,null,null,null,null,0]
[null,null,null,null,null,null,null,null,{"$f":"IFERROR(INDEX(LCOE!$E$3:$E$167,MATCH(1,('RE Score Calculator'!F54=LCOE!$B$3:$B$167)*('RE Score Calculator'!G54=LCOE!$C$3:$C$167)*('RE Score Calculator'!H54=LCOE!$D$3:$D$167),0)),\"\")","v":""},"",null,null,null,null,null,null,0]
[null,null,null,null,null,null,null,null,{"$f":"IFERROR(INDEX(LCOE!$E$3:$E$167,MATCH(1,('RE Score Calculator'!F55=LCOE!$B$3:$B$167)*('RE Score Calculator'!G55=LCOE!$C$3:$C$167)*('RE Score Calculator'!H55=LCOE!$D$3:$D$167),0)),\"\")","v":""},"",null,null,null,null,null,null,0]
[null,null,null,null,null,null,null,null,{"$f":"IFERROR(INDEX(LCOE!$E$3:$E$167,MATCH(1,('RE Score Calculator'!F56=LCOE!$B$3:$B$167)*('RE Score Calculator'!G56=LCOE!$C$3:$C$167)*('RE Score Calculator'!H56=LCOE!$D$3:$D$167),0)),\"\")","v":""},"",null,null,null,null,null,null,0]
[null,null,null,null,null,null,null,null,{"$f":"IFERROR(INDEX(LCOE!$E$3:$E$167,MATCH(1,('RE Score Calculator'!F57=LCOE!$B$3:$B$167)*('RE Score Calculator'!G57=LCOE!$C$3:$C$167)*('RE Score Calculator'!H57=LCOE!$D$3:$D$167),0)),\"\")","v":""},"",null,null,null,null,null,null,0]
[null,null,null,null,null,null,null,null,{"$f":"IFERROR(INDEX(LCOE!$E$3:$E$167,MATCH(1,('RE Score Calculator'!F58=LCOE!$B$3:$B$167)*('RE Score Calculator'!G58=LCOE!$C$3:$C$167)*('RE Score Calculator'!H58=LCOE!$D$3:$D$167),0)),\"\")","v":""},"",null,null,null,null,null,null,0]
[null,null,null,null,null,null,null,null,{"$f":"IFERROR(INDEX(LCOE!$E$3:$E$167,MATCH(1,('RE Score Calculator'!F59=LCOE!$B$3:$B$167)*('RE Score Calculator'!G59=LCOE!$C$3:$C$167)*('RE Score Calculator'!H59=LCOE!$D$3:$D$167),0)),\"\")","v":""},"",null,null,null,null,null,null,0]
[null,null,null,null,null,null,null,null,{"$f":"IFERROR(INDEX(LCOE!$E$3:$E$167,MATCH(1,('RE Score Calculator'!F60=LCOE!$B$3:$B$167)*('RE Score Calculator'!G60=LCOE!$C$3:$C$167)*('RE Score Calculator'!H60=LCOE!$D$3:$D$167),0)),\"\")","v":""},"",null,null,null,null,null,null,0]
[null,null,null,null,null,null,null,null,{"$f":"IFERROR(INDEX(LCOE!$E$3:$E$167,MATCH(1,('RE Score Calculator'!F61=LCOE!$B$3:$B$167)*('RE Score Calculator'!G61=LCOE!$C$3:$C$167)*('RE Score Calculator'!H61=LCOE!$D$3:$D$167),0)),\"\")","v":""},"",null,null,null,null,null,null,0]
[null,null,null,null,null,null,null,null,{"$f":"IFERROR(INDEX(LCOE!$E$3:$E$167,MATCH(1,('RE Score Calculator'!F62=LCOE!$B$3:$B$167)*('RE Score Calculator'!G62=LCOE!$C$3:$C$167)*('RE Score Calculator'!H62=LCOE!$D$3:$D$167),0)),\"\")","v":""},"",null,null,null,null,null,null,0]
[null,null,null,null,null,null,null,null,{"$f":"IFERROR(INDEX(LCOE!$E$3:$E$167,MATCH(1,('RE Score Calculator'!F63=LCOE!$B$3:$B$167)*('RE Score Calculator'!G63=LCOE!$C$3:$C$167)*('RE Score Calculator'!H63=LCOE!$D$3:$D$167),0)),\"\")","v":""},"",null,null,null,null,null,null,0]
[null,null,null,null,null,null,null,null,{"$f":"IFERROR(INDEX(LCOE!$E$3:$E$167,MATCH(1,('RE Score Calculator'!F64=LCOE!$B$3:$B$167)*('RE Score Calculator'!G64=LCOE!$C$3:$C$167)*('RE Score Calculator'!H64=LCOE!$D$3:$D$167),0)),\"\")","v":""},"",null,null,null,null,null,null,0]
[null,null,null,null,null,null,null,null,{"$f":"IFERROR(INDEX(LCOE!$E$3:$E$167,MATCH(1,('RE Score Calculator'!F65=LCOE!$B$3:$B$167)*('RE Score Calculator'!G65=LCOE!$C$3:$C$167)*('RE Score Calculator'!H65=LCOE!$D$3:$D$167),0)),\"\")","v":""},"",null,null,null,null,null,null,0]

{"sheet":"LCOE","index":3,"n_rows":167,"n_cols":27,"rows_kept":167,"cut":false,"hidden":true,"merged":[]}
[]
[null,"Country","Plant category","Plant type","LCOE (USD/MWh)",null,null,"Country ","United States of America","Russian Federation","Norway","Netherlands","Korea Republic of","Japan","Italy","India","Hungary","Germany","France","Finland","Denmark","China","Canada","Brazil","Belgium","Austria","Australia"]
[null,"United States of America","Geothermal","Geothermal (25.0 MW)",93.54,null,null,{"$f":"IFERROR(INDEX($B$3:$B$167,MATCH(0,INDEX(COUNTIF($H$2:H2,$B$3:$B$167),0,0),0)),\"\")","v":"United States of America"},{"$f":"IFERROR(INDEX($B$3:$C$167,MATCH(0,COUNTIF(I$2:I2,$C$3:$C$167)+($H$3<>$B$3:$B$167),0),2),\"\")","v":"Geothermal"},{"$f":"IFERROR(INDEX($B$3:$C$167,MATCH(0,COUNTIF(J$2:J2,$C$3:$C$167)+($H$4<>$B$3:$B$167),0),2),\"\")","v":"Wind"},{"$f":"IFERROR(INDEX($B$3:$C$167,MATCH(0,COUNTIF(K$2:K2,$C$3:$C$167)+($H$5<>$B$3:$B$167),0),2),\"\")","v":"Fuel cell"},{"$f":"IFERROR(INDEX($B$3:$C$167,MATCH(0,COUNTIF(L$2:L2,$C$3:$C$167)+($H$6<>$B$3:$B$167),0),2),\"\")","v":"Solar"},{"$f":"IFERROR(INDEX($B$3:$C$167,MATCH(0,COUNTIF(M$2:M2,$C$3:$C$167)+($H$7<>$B$3:$B$167),0),2),\"\")","v":"Solar"},{"$f":"IFERROR(INDEX($B$3:$C$167,MATCH(0,COUNTIF(N$2:N2,$C$3:$C$167)+($H$8<>$B$3:$B$167),0),2),\"\")","v":"Hydro"},{"$f":"IFERROR(INDEX($B$3:$C$167,MATCH(0,COUNTIF(O$2:O2,$C$3:$C$167)+($H$9<>$B$3:$B$167),0),2),\"\")","v":"Bio"},{"$f":"IFERROR(INDEX($B$3:$C$167,MATCH(0,COUNTIF(P$2:P2,$C$3:$C$167)+($H$10<>$B$3:$B$167),0),2),\"\")","v":"Bio"},{"$f":"IFERROR(INDEX($B$3:$C$167,MATCH(0,COUNTIF(Q$2:Q2,$C$3:$C$167)+($H$11<>$B$3:$B$167),0),2),\"\")","v":"Solar"},{"$f":"IFERROR(INDEX($B$3:$C$167,MATCH(0,COUNTIF(R$2:R2,$C$3:$C$167)+($H$12<>$B$3:$B$167),0),2),\"\")","v":"Hydro"},{"$f":"IFERROR(INDEX($B$3:$C$167,MATCH(0,COUNTIF(S$2:S2,$C$3:$C$167)+($H$13<>$B$3:$B$167),0),2),\"\")","v":"Fuel cell"},{"$f":"IFERROR(INDEX($B$3:$C$167,MATCH(0,COUNTIF(T$2:T2,$C$3:$C$167)+($H$14<>$B$3:$B$167),0),2),\"\")","v":"Wind"},{"$f":"IFERROR(INDEX($B$3:$C$167,MATCH(0,COUNTIF(U$2:U2,$C$3:$C$167)+($H$15<>$B$3:$B$167),0),2),\"\")","v":"Solar"},{"$f":"IFERROR(INDEX($B$3:$C$167,MATCH(0,COUNTIF(V$2:V2,$C$3:$C$167)+($H$16<>$B$3:$B$167),0),2),\"\")","v":"Solar"},{"$f":"IFERROR(INDEX($B$3:$C$167,MATCH(0,COUNTIF(W$2:W2,$C$3:$C$167)+($H$17<>$B$3:$B$167),0),2),\"\")","v":"Solar"},{"$f":"IFERROR(INDEX($B$3:$C$167,MATCH(0,COUNTIF(X$2:X2,$C$3:$C$167)+($H$18<>$B$3:$B$167),0),2),\"\")","v":"Bio"},{"$f":"IFERROR(INDEX($B$3:$C$167,MATCH(0,COUNTIF(Y$2:Y2,$C$3:$C$167)+($H$19<>$B$3:$B$167),0),2),\"\")","v":"Solar"},{"$f":"IFERROR(INDEX($B$3:$C$167,MATCH(0,COUNTIF(Z$2:Z2,$C$3:$C$167)+($H$20<>$B$3:$B$167),0),2),\"\")","v":"Hydro"},{"$f":"IFERROR(INDEX($B$3:$C$167,MATCH(0,COUNTIF(AA$2:AA2,$C$3:$C$167)+($H$21<>$B$3:$B$167),0),2),\"\")","v":"Solar"}]
[null,"United States of America","Geothermal","Geothermal (30.0 MW)",61.83,null,null,{"$f":"IFERROR(INDEX($B$3:$B$167,MATCH(0,INDEX(COUNTIF($H$2:H3,$B$3:$B$167),0,0),0)),\"\")","v":"Russian Federation"},{"$f":"IFERROR(INDEX($B$3:$C$167,MATCH(0,COUNTIF(I$2:I3,$C$3:$C$167)+($H$3<>$B$3:$B$167),0),2),\"\")","v":"Hydro"},{"$f":"IFERROR(INDEX($B$3:$C$167,MATCH(0,COUNTIF(J$2:J3,$C$3:$C$167)+($H$4<>$B$3:$B$167),0),2),\"\")","v":""},{"$f":"IFERROR(INDEX($B$3:$C$167,MATCH(0,COUNTIF(K$2:K3,$C$3:$C$167)+($H$5<>$B$3:$B$167),0),2),\"\")","v":"Hydro"},{"$f":"IFERROR(INDEX($B$3:$C$167,MATCH(0,COUNTIF(L$2:L3,$C$3:$C$167)+($H$6<>$B$3:$B$167),0),2),\"\")","v":"Wind"},{"$f":"IFERROR(INDEX($B$3:$C$167,MATCH(0,COUNTIF(M$2:M3,$C$3:$C$167)+($H$7<>$B$3:$B$167),0),2),\"\")","v":"Wind"},{"$f":"IFERROR(INDEX($B$3:$C$167,MATCH(0,COUNTIF(N$2:N3,$C$3:$C$167)+($H$8<>$B$3:$B$167),0),2),\"\")","v":"Solar"},{"$f":"IFERROR(INDEX($B$3:$C$167,MATCH(0,COUNTIF(O$2:O3,$C$3:$C$167)+($H$9<>$B$3:$B$167),0),2),\"\")","v":"Geothermal"},{"$f":"IFERROR(INDEX($B$3:$C$167,MATCH(0,COUNTIF(P$2:P3,$C$3:$C$167)+($H$10<>$B$3:$B$167),0),2),\"\")","v":"Hydro"},{"$f":"IFERROR(INDEX($B$3:$C$167,MATCH(0,COUNTIF(Q$2:Q3,$C$3:$C$167)+($H$11<>$B$3:$B$167),0),2),\"\")","v":""},{"$f":"IFERROR(INDEX($B$3:$C$167,MATCH(0,COUNTIF(R$2:R3,$C$3:$C$167)+($H$12<>$B$3:$B$167),0),2),\"\")","v":""},{"$f":"IFERROR(INDEX($B$3:$C$167,MATCH(0,COUNTIF(S$2:S3,$C$3:$C$167)+($H$13<>$B$3:$B$167),0),2),\"\")","v":"Solar"},{"$f":"IFERROR(INDEX($B$3:$C$167,MATCH(0,COUNTIF(T$2:T3,$C$3:$C$167)+($H$14<>$B$3:$B$167),0),2),\"\")","v":""},{"$f":"IFERROR(INDEX($B$3:$C$167,MATCH(0,COUNTIF(U$2:U3,$C$3:$C$167)+($H$15<>$B$3:$B$167),0),2),\"\")","v":"Wind"},{"$f":"IFERROR(INDEX($B$3:$C$167,MATCH(0,COUNTIF(V$2:V3,$C$3:$C$167)+($H$16<>$B$3:$B$167),0),2),\"\")","v":"Wind"},{"$f":"IFERROR(INDEX($B$3:$C$167,MATCH(0,COUNTIF(W$2:W3,$C$3:$C$167)+($H$17<>$B$3:$B$167),0),2),\"\")","v":"Wind"},{"$f":"IFERROR(INDEX($B$3:$C$167,MATCH(0,COUNTIF(X$2:X3,$C$3:$C$167)+($H$18<>$B$3:$B$167),0),2),\"\")","v":"Hydro"},{"$f":"IFERROR(INDEX($B$3:$C$167,MATCH(0,COUNTIF(Y$2:Y3,$C$3:$C$167)+($H$19<>$B$3:$B$167),0),2),\"\")","v":"Wind"},{"$f":"IFERROR(INDEX($B$3:$C$167,MATCH(0,COUNTIF(Z$2:Z3,$C$3:$C$167)+($H$20<>$B$3:$B$167),0),2),\"\")","v":"Solar"},{"$f":"IFERROR(INDEX($B$3:$C$167,MATCH(0,COUNTIF(AA$2:AA3,$C$3:$C$167)+($H$21<>$B$3:$B$167),0),2),\"\")","v":"Wind"}]
[null,"United States of America","Hydro","Run of river (< 5 MW) (3.7 MW)",128.66999999999999,null,null,{"$f":"IFERROR(INDEX($B$3:$B$167,MATCH(0,INDEX(COUNTIF($H$2:H4,$B$3:$B$167),0,0),0)),\"\")","v":"Norway"},{"$f":"IFERROR(INDEX($B$3:$C$167,MATCH(0,COUNTIF(I$2:I4,$C$3:$C$167)+($H$3<>$B$3:$B$167),0),2),\"\")","v":"Solar"},{"$f":"IFERROR(INDEX($B$3:$C$167,MATCH(0,COUNTIF(J$2:J4,$C$3:$C$167)+($H$4<>$B$3:$B$167),0),2),\"\")","v":""},{"$f":"IFERROR(INDEX($B$3:$C$167,MATCH(0,COUNTIF(K$2:K4,$C$3:$C$167)+($H$5<>$B$3:$B$167),0),2),\"\")","v":"Solar"},{"$f":"IFERROR(INDEX($B$3:$C$167,MATCH(0,COUNTIF(L$2:L4,$C$3:$C$167)+($H$6<>$B$3:$B$167),0),2),\"\")","v":""},{"$f":"IFERROR(INDEX($B$3:$C$167,MATCH(0,COUNTIF(M$2:M4,$C$3:$C$167)+($H$7<>$B$3:$B$167),0),2),\"\")","v":""},{"$f":"IFERROR(INDEX($B$3:$C$167,MATCH(0,COUNTIF(N$2:N4,$C$3:$C$167)+($H$8<>$B$3:$B$167),0),2),\"\")","v":"Wind"},{"$f":"IFERROR(INDEX($B$3:$C$167,MATCH(0,COUNTIF(O$2:O4,$C$3:$C$167)+($H$9<>$B$3:$B$167),0),2),\"\")","v":"Hydro"},{"$f":"IFERROR(INDEX($B$3:$C$167,MATCH(0,COUNTIF(P$2:P4,$C$3:$C$167)+($H$10<>$B$3:$B$167),0),2),\"\")","v":"Solar"},{"$f":"IFERROR(INDEX($B$3:$C$167,MATCH(0,COUNTIF(Q$2:Q4,$C$3:$C$167)+($H$11<>$B$3:$B$167),0),2),\"\")","v":""},{"$f":"IFERROR(INDEX($B$3:$C$167,MATCH(0,COUNTIF(R$2:R4,$C$3:$C$167)+($H$12<>$B$3:$B$167),0),2),\"\")","v":""},{"$f":"IFERROR(INDEX($B$3:$C$167,MATCH(0,COUNTIF(S$2:S4,$C$3:$C$167)+($H$13<>$B$3:$B$167),0),2),\"\")","v":"Wind"},{"$f":"IFERROR(INDEX($B$3:$C$167,MATCH(0,COUNTIF(T$2:T4,$C$3:$C$167)+($H$14<>$B$3:$B$167),0),2),\"\")","v":""},{"$f":"IFERROR(INDEX($B$3:$C$167,MATCH(0,COUNTIF(U$2:U4,$C$3:$C$167)+($H$15<>$B$3:$B$167),0),2),\"\")","v":""},{"$f":"IFERROR(INDEX($B$3:$C$167,MATCH(0,COUNTIF(V$2:V4,$C$3:$C$167)+($H$16<>$B$3:$B$167),0),2),\"\")","v":""},{"$f":"IFERROR(INDEX($B$3:$C$167,MATCH(0,COUNTIF(W$2:W4,$C$3:$C$167)+($H$17<>$B$3:$B$167),0),2),\"\")","v":""},{"$f":"IFERROR(INDEX($B$3:$C$167,MATCH(0,COUNTIF(X$2:X4,$C$3:$C$167)+($H$18<>$B$3:$B$167),0),2),\"\")","v":"Solar"},{"$f":"IFERROR(INDEX($B$3:$C$167,MATCH(0,COUNTIF(Y$2:Y4,$C$3:$C$167)+($H$19<>$B$3:$B$167),0),2),\"\")","v":""},{"$f":"IFERROR(INDEX($B$3:$C$167,MATCH(0,COUNTIF(Z$2:Z4,$C$3:$C$167)+($H$20<>$B$3:$B$167),0),2),\"\")","v":"Wind"},{"$f":"IFERROR(INDEX($B$3:$C$167,MATCH(0,COUNTIF(AA$2:AA4,$C$3:$C$167)+($H$21<>$B$3:$B$167),0),2),\"\")","v":""}]
[null,"United States of America","Hydro","Run of river (< 5 MW) (4.2 MW)",90.52,null,null,{"$f":"IFERROR(INDEX($B$3:$B$167,MATCH(0,INDEX(COUNTIF($H$2:H5,$B$3:$B$167),0,0),0)),\"\")","v":"Netherlands"},{"$f":"IFERROR(INDEX($B$3:$C$167,MATCH(0,COUNTIF(I$2:I5,$C$3:$C$167)+($H$3<>$B$3:$B$167),0),2),\"\")","v":"Wind"},{"$f":"IFERROR(INDEX($B$3:$C$167,MATCH(0,COUNTIF(J$2:J5,$C$3:$C$167)+($H$4<>$B$3:$B$167),0),2),\"\")","v":""},{"$f":"IFERROR(INDEX($B$3:$C$167,MATCH(0,COUNTIF(K$2:K5,$C$3:$C$167)+($H$5<>$B$3:$B$167),0),2),\"\")","v":"Wind"},{"$f":"IFERROR(INDEX($B$3:$C$167,MATCH(0,COUNTIF(L$2:L5,$C$3:$C$167)+($H$6<>$B$3:$B$167),0),2),\"\")","v":""},{"$f":"IFERROR(INDEX($B$3:$C$167,MATCH(0,COUNTIF(M$2:M5,$C$3:$C$167)+($H$7<>$B$3:$B$167),0),2),\"\")","v":""},{"$f":"IFERROR(INDEX($B$3:$C$167,MATCH(0,COUNTIF(N$2:N5,$C$3:$C$167)+($H$8<>$B$3:$B$167),0),2),\"\")","v":""},{"$f":"IFERROR(INDEX($B$3:$C$167,MATCH(0,COUNTIF(O$2:O5,$C$3:$C$167)+($H$9<>$B$3:$B$167),0),2),\"\")","v":"Solar"},{"$f":"IFERROR(INDEX($B$3:$C$167,MATCH(0,COUNTIF(P$2:P5,$C$3:$C$167)+($H$10<>$B$3:$B$167),0),2),\"\")","v":"Wind"},{"$f":"IFERROR(INDEX($B$3:$C$167,MATCH(0,COUNTIF(Q$2:Q5,$C$3:$C$167)+($H$11<>$B$3:$B$167),0),2),\"\")","v":""},{"$f":"IFERROR(INDEX($B$3:$C$167,MATCH(0,COUNTIF(R$2:R5,$C$3:$C$167)+($H$12<>$B$3:$B$167),0),2),\"\")","v":""},{"$f":"IFERROR(INDEX($B$3:$C$167,MATCH(0,COUNTIF(S$2:S5,$C$3:$C$167)+($H$13<>$B$3:$B$167),0),2),\"\")","v":""},{"$f":"IFERROR(INDEX($B$3:$C$167,MATCH(0,COUNTIF(T$2:T5,$C$3:$C$167)+($H$14<>$B$3:$B$167),0),2),\"\")","v":""},{"$f":"IFERROR(INDEX($B$3:$C$167,MATCH(0,COUNTIF(U$2:U5,$C$3:$C$167)+($H$15<>$B$3:$B$167),0),2),\"\")","v":""},{"$f":"IFERROR(INDEX($B$3:$C$167,MATCH(0,COUNTIF(V$2:V5,$C$3:$C$167)+($H$16<>$B$3:$B$167),0),2),\"\")","v":""},{"$f":"IFERROR(INDEX($B$3:$C$167,MATCH(0,COUNTIF(W$2:W5,$C$3:$C$167)+($H$17<>$B$3:$B$167),0),2),\"\")","v":""},{"$f":"IFERROR(INDEX($B$3:$C$167,MATCH(0,COUNTIF(X$2:X5,$C$3:$C$167)+($H$18<>$B$3:$B$167),0),2),\"\")","v":"Wind"},{"$f":"IFERROR(INDEX($B$3:$C$167,MATCH(0,COUNTIF(Y$2:Y5,$C$3:$C$167)+($H$19<>$B$3:$B$167),0),2),\"\")","v":""},{"$f":"IFERROR(INDEX($B$3:$C$167,MATCH(0,COUNTIF(Z$2:Z5,$C$3:$C$167)+($H$20<>$B$3:$B$167),0),2),\"\")","v":""},{"$f":"IFERROR(INDEX($B$3:$C$167,MATCH(0,COUNTIF(AA$2:AA5,$C$3:$C$167)+($H$21<>$B$3:$B$167),0),2),\"\")","v":""}]
[null,"United States of America","Hydro","Run of river (< 5 MW) (4.8 MW)",117.72,null,null,{"$f":"IFERROR(INDEX($B$3:$B$167,MATCH(0,INDEX(COUNTIF($H$2:H6,$B$3:$B$167),0,0),0)),\"\")","v":"Korea Republic of"},{"$f":"IFERROR(INDEX($B$3:$C$167,MATCH(0,COUNTIF(I$2:I6,$C$3:$C$167)+($H$3<>$B$3:$B$167),0),2),\"\")","v":""},{"$f":"IFERROR(INDEX($B$3:$C$167,MATCH(0,COUNTIF(J$2:J6,$C$3:$C$167)+($H$4<>$B$3:$B$167),0),2),\"\")","v":""},{"$f":"IFERROR(INDEX($B$3:$C$167,MATCH(0,COUNTIF(K$2:K6,$C$3:$C$167)+($H$5<>$B$3:$B$167),0),2),\"\")","v":""},{"$f":"IFERROR(INDEX($B$3:$C$167,MATCH(0,COUNTIF(L$2:L6,$C$3:$C$167)+($H$6<>$B$3:$B$167),0),2),\"\")","v":""},{"$f":"IFERROR(INDEX($B$3:$C$167,MATCH(0,COUNTIF(M$2:M6,$C$3:$C$167)+($H$7<>$B$3:$B$167),0),2),\"\")","v":""},{"$f":"IFERROR(INDEX($B$3:$C$167,MATCH(0,COUNTIF(N$2:N6,$C$3:$C$167)+($H$8<>$B$3:$B$167),0),2),\"\")","v":""},{"$f":"IFERROR(INDEX($B$3:$C$167,MATCH(0,COUNTIF(O$2:O6,$C$3:$C$167)+($H$9<>$B$3:$B$167),0),2),\"\")","v":"Wind"},{"$f":"IFERROR(INDEX($B$3:$C$167,MATCH(0,COUNTIF(P$2:P6,$C$3:$C$167)+($H$10<>$B$3:$B$167),0),2),\"\")","v":""},{"$f":"IFERROR(INDEX($B$3:$C$167,MATCH(0,COUNTIF(Q$2:Q6,$C$3:$C$167)+($H$11<>$B$3:$B$167),0),2),\"\")","v":""},{"$f":"IFERROR(INDEX($B$3:$C$167,MATCH(0,COUNTIF(R$2:R6,$C$3:$C$167)+($H$12<>$B$3:$B$167),0),2),\"\")","v":""},{"$f":"IFERROR(INDEX($B$3:$C$167,MATCH(0,COUNTIF(S$2:S6,$C$3:$C$167)+($H$13<>$B$3:$B$167),0),2),\"\")","v":""},{"$f":"IFERROR(INDEX($B$3:$C$167,MATCH(0,COUNTIF(T$2:T6,$C$3:$C$167)+($H$14<>$B$3:$B$167),0),2),\"\")","v":""},{"$f":"IFERROR(INDEX($B$3:$C$167,MATCH(0,COUNTIF(U$2:U6,$C$3:$C$167)+($H$15<>$B$3:$B$167),0),2),\"\")","v":""},{"$f":"IFERROR(INDEX($B$3:$C$167,MATCH(0,COUNTIF(V$2:V6,$C$3:$C$167)+($H$15<>$B$3:$B$167),0),2),\"\")","v":""},{"$f":"IFERROR(INDEX($B$3:$C$167,MATCH(0,COUNTIF(W$2:W6,$C$3:$C$167)+($H$16<>$B$3:$B$167),0),2),\"\")","v":""},{"$f":"IFERROR(INDEX($B$3:$C$167,MATCH(0,COUNTIF(X$2:X6,$C$3:$C$167)+($H$18<>$B$3:$B$167),0),2),\"\")","v":""},{"$f":"IFERROR(INDEX($B$3:$C$167,MATCH(0,COUNTIF(Y$2:Y6,$C$3:$C$167)+($H$19<>$B$3:$B$167),0),2),\"\")","v":""},null,{"$f":"IFERROR(INDEX($B$3:$C$167,MATCH(0,COUNTIF(AA$2:AA6,$C$3:$C$167)+($H$21<>$B$3:$B$167),0),2),\"\")","v":""}]
[null,"United States of America","Hydro","Run of river (>= 5 MW) (44.1 MW)",100.77,null,null,{"$f":"IFERROR(INDEX($B$3:$B$167,MATCH(0,INDEX(COUNTIF($H$2:H7,$B$3:$B$167),0,0),0)),\"\")","v":"Japan"},null,null,null,null,null,null,null,null,null,null,null,null,null,null,null,null,{"$f":"IFERROR(INDEX($B$3:$C$167,MATCH(0,COUNTIF(Y$2:Y7,$C$3:$C$167)+($H$19<>$B$3:$B$167),0),2),\"\")","v":""}]
[null,"United States of America","Hydro","Run of river (>= 5 MW) (82.2 MW)",90.21,null,null,{"$f":"IFERROR(INDEX($B$3:$B$167,MATCH(0,INDEX(COUNTIF($H$2:H8,$B$3:$B$167),0,0),0)),\"\")","v":"Italy"}]
[null,"United States of America","Hydro","Run of river (>= 5 MW) (median case) (44.7 MW)",70.58,null,null,{"$f":"IFERROR(INDEX($B$3:$B$167,MATCH(0,INDEX(COUNTIF($H$2:H9,$B$3:$B$167),0,0),0)),\"\")","v":"India"}]
[null,"United States of America","Hydro","Run of river (>= 5 MW) (median case) (94.0 MW)",87.2,null,null,{"$f":"IFERROR(INDEX($B$3:$B$167,MATCH(0,INDEX(COUNTIF($H$2:H10,$B$3:$B$167),0,0),0)),\"\")","v":"Hungary"}]
[null,"United States of America","Solar","Solar PV (commercial) (0.30 MW)",74.459999999999994,null,null,{"$f":"IFERROR(INDEX($B$3:$B$167,MATCH(0,INDEX(COUNTIF($H$2:H11,$B$3:$B$167),0,0),0)),\"\")","v":"Germany"}]
[null,"United States of America","Solar","Solar PV (commercial) (0.30 MW)",80.59,null,null,{"$f":"IFERROR(INDEX($B$3:$B$167,MATCH(0,INDEX(COUNTIF($H$2:H12,$B$3:$B$167),0,0),0)),\"\")","v":"France"}]
[null,"United States of America","Solar","Solar PV (commercial) (0.30 MW)",100.45,null,null,{"$f":"IFERROR(INDEX($B$3:$B$167,MATCH(0,INDEX(COUNTIF($H$2:H13,$B$3:$B$167),0,0),0)),\"\")","v":"Finland"}]
[null,"United States of America","Solar","Solar PV (commercial) (0.30 MW)",116.44,null,null,{"$f":"IFERROR(INDEX($B$3:$B$167,MATCH(0,INDEX(COUNTIF($H$2:H14,$B$3:$B$167),0,0),0)),\"\")","v":"Denmark"}]
[null,"United States of America","Solar","Solar PV (commercial) (median case) (0.30 MW)",94.18,null,null,{"$f":"IFERROR(INDEX($B$3:$B$167,MATCH(0,INDEX(COUNTIF($H$2:H15,$B$3:$B$167),0,0),0)),\"\")","v":"China"}]
[null,"United States of America","Solar","Solar PV (residential) (0.005 MW)",135.41999999999999,null,null,{"$f":"IFERROR(INDEX($B$3:$B$167,MATCH(0,INDEX(COUNTIF($H$2:H16,$B$3:$B$167),0,0),0)),\"\")","v":"Canada"}]
[null,"United States of America","Solar","Solar PV (residential) (0.005 MW)",140.16999999999999,null,null,{"$f":"IFERROR(INDEX($B$3:$B$167,MATCH(0,INDEX(COUNTIF($H$2:H17,$B$3:$B$167),0,0),0)),\"\")","v":"Brazil"}]
[null,"United States of America","Solar","Solar PV (residential) (0.005 MW)",153.12,null,null,{"$f":"IFERROR(INDEX($B$3:$B$167,MATCH(0,INDEX(COUNTIF($H$2:H18,$B$3:$B$167),0,0),0)),\"\")","v":"Belgium"}]
[null,"United States of America","Solar","Solar PV (residential) (0.005 MW)",156.35,null,null,{"$f":"IFERROR(INDEX($B$3:$B$167,MATCH(0,INDEX(COUNTIF($H$2:H19,$B$3:$B$167),0,0),0)),\"\")","v":"Austria"}]
[null,"United States of America","Solar","Solar PV (residential) (median case) (0.005 MW)",126.54,null,null,{"$f":"IFERROR(INDEX($B$3:$B$167,MATCH(0,INDEX(COUNTIF($H$2:H20,$B$3:$B$167),0,0),0)),\"\")","v":"Australia"}]
[null,"United States of America","Solar","Solar PV (utility scale) (100 MW)",34.590000000000003,null,null,{"$f":"IFERROR(INDEX($B$3:$B$167,MATCH(0,INDEX(COUNTIF($H$2:H21,$B$3:$B$167),0,0),0)),\"\")","v":""}]
[null,"United States of America","Solar","Solar PV (utility scale) (100 MW)",38.06,null,null,{"$f":"IFERROR(INDEX($B$3:$B$167,MATCH(0,INDEX(COUNTIF($H$2:H22,$B$3:$B$167),0,0),0)),\"\")","v":""}]
[null,"United States of America","Solar","Solar PV (utility scale) (100 MW)",47.69]
[null,"United States of America","Solar","Solar PV (utility scale) (100 MW)",54.96]
[null,"United States of America","Solar","Solar PV (utility scale) (median case) (100 MW)",44.25]
[null,"United States of America","Solar","Solar thermal (CSP) (100 MW)",117.11]
[null,"United States of America","Solar","Solar thermal (CSP) (100 MW)",142.21]
[null,"United States of America","Solar","Solar thermal (CSP) (median case) (100 MW)",112.34]
[null,"United States of America","Wind","Wind offshore (600 MW)",59.37]
[null,"United States of America","Wind","Wind offshore (600 MW)",61.19]
[null,"United States of America","Wind","Wind offshore (600 MW)",61.35]
[null,"United States of America","Wind","Wind offshore (600 MW)",63.53]
[null,"United States of America","Wind","Wind offshore (600 MW)",64.209999999999994]
[null,"United States of America","Wind","Wind offshore (600 MW)",68.069999999999993]
[null,"United States of America","Wind","Wind offshore (600 MW)",68.180000000000007]
[null,"United States of America","Wind","Wind offshore (600 MW)",70.63]
[null,"United States of America","Wind","Wind offshore (600 MW)",74.09]
[null,"United States of America","Wind","Wind offshore (600 MW)",82.4]
[null,"United States of America","Wind","Wind offshore (600 MW)",93.59]
[null,"United States of America","Wind","Wind offshore (600 MW)",111.78]
[null,"United States of America","Wind","Wind offshore (600 MW)",119.21]
[null,"United States of America","Wind","Wind offshore (median case) (600 MW)",65.62]
[null,"United States of America","Wind","Wind onshore (>= 1 MW) (100 MW)",35.19]
[null,"United States of America","Wind","Wind onshore (>= 1 MW) (100 MW)",36.799999999999997]
[null,"United States of America","Wind","Wind onshore (>= 1 MW) (100 MW)",37.81]
[null,"United States of America","Wind","Wind onshore (>= 1 MW) (100 MW)",41.17]
[null,"United States of America","Wind","Wind onshore (>= 1 MW) (100 MW)",48.13]
[null,"United States of America","Wind","Wind onshore (>= 1 MW) (100 MW)",55.5]
[null,"United States of America","Wind","Wind onshore (>= 1 MW) (100 MW)",73.290000000000006]
[null,"United States of America","Wind","Wind onshore (>= 1 MW) (100 MW)",92.88]
[null,"United States of America","Wind","Wind onshore (>= 1 MW) (100 MW)",155.13]
[null,"United States of America","Wind","Wind onshore (>= 1 MW) (median case) (100 MW)",39.020000000000003]
[null,"Russian Federation","Wind","Wind onshore (>= 1 MW) (280 MW)",67.349999999999994]
[null,"Russian Federation","Wind","Wind onshore (>= 1 MW) (60.0 MW)",72.290000000000006]
[null,"Norway","Fuel cell","Fuel cell (1.0 MW)",158.07]
[null,"Norway","Hydro","Hydro reservoir (>= 5 MW) (30.0 MW)",38.65]
[null,"Norway","Hydro","Run of river (< 5 MW) (3.0 MW)",47.19]
[null,"Norway","Solar","Solar PV (commercial) (0.30 MW)",140.44999999999999]
[null,"Norway","Wind","Wind onshore (>= 1 MW) (130 MW)",30.76]
[null,"Netherlands","Solar","Solar PV (commercial) (0.20 MW)",89.5]
[null,"Netherlands","Solar","Solar PV (floating) (8.0 MW)",86.39]
[null,"Netherlands","Solar","Solar PV (utility scale) (8.0 MW)",79.97]
[null,"Netherlands","Wind","Wind onshore (>= 1 MW) (50.0 MW)",41.17]
[null,"Korea Republic of","Solar","Solar PV (commercial) (0.099 MW)",98.13]
[null,"Korea Republic of","Solar","Solar PV (utility scale) (3.0 MW)",96.57]
[null,"Korea Republic of","Wind","Wind offshore (99.0 MW)",160.99]
[null,"Korea Republic of","Wind","Wind onshore (>= 1 MW) (14.9 MW)",113.33]
[null,"Japan","Hydro","Hydro reservoir (>= 5 MW) (12.0 MW)",142.4]
[null,"Japan","Solar","Solar PV (residential) (0.004 MW)",223.3]
[null,"Japan","Solar","Solar PV (utility scale) (2.0 MW)",172.05]
[null,"Japan","Wind","Wind offshore (100 MW)",200.18]
[null,"Japan","Wind","Wind onshore (>= 1 MW) (20.0 MW)",140.16999999999999]
[null,"Italy","Bio","Biomass (0.42 MW)",288.83999999999997]
[null,"Italy","Bio","Biomass (0.45 MW)",75.959999999999994]
[null,"Italy","Geothermal","Geothermal (10.0 MW)",136.06]
[null,"Italy","Geothermal","Geothermal (15.0 MW)",103.52]
[null,"Italy","Geothermal","Geothermal (39.6 MW)",68.13]
[null,"Italy","Geothermal","Geothermal (5.0 MW)",151.80000000000001]
[null,"Italy","Hydro","Hydro reservoir (< 5 MW) (0.32 MW)",72.790000000000006]
[null,"Italy","Hydro","Hydro reservoir (>= 5 MW) (15.0 MW)",94.16]
[null,"Italy","Hydro","Run of river (< 5 MW) (0.015 MW)",133.08000000000001]
[null,"Italy","Hydro","Run of river (< 5 MW) (0.10 MW)",98.36]
[null,"Italy","Hydro","Run of river (< 5 MW) (0.19 MW)",113.09]
[null,"Italy","Hydro","Run of river (< 5 MW) (0.25 MW)",97.59]
[null,"Italy","Hydro","Run of river (< 5 MW) (0.25 MW)",257.75]
[null,"Italy","Hydro","Run of river (< 5 MW) (0.25 MW)",409.32]
[null,"Italy","Hydro","Run of river (< 5 MW) (0.50 MW)",61.41]
[null,"Italy","Hydro","Run of river (< 5 MW) (0.50 MW)",112.76]
[null,"Italy","Hydro","Run of river (< 5 MW) (0.50 MW)",247.97]
[null,"Italy","Hydro","Run of river (< 5 MW) (0.69 MW)",85.91]
[null,"Italy","Hydro","Run of river (< 5 MW) (1.0 MW)",69.489999999999995]
[null,"Italy","Hydro","Run of river (< 5 MW) (2.1 MW)",67.38]
[null,"Italy","Hydro","Run of river (>= 5 MW) (5.0 MW)",103.82]
[null,"Italy","Solar","Solar PV (commercial) (0.083 MW)",101.58]
[null,"Italy","Solar","Solar PV (commercial) (0.21 MW)",70.98]
[null,"Italy","Solar","Solar PV (commercial) (0.42 MW)",93.74]
[null,"Italy","Solar","Solar PV (residential) (0.004 MW)",274.57]
[null,"Italy","Solar","Solar PV (residential) (0.005 MW)",139.72999999999999]
[null,"Italy","Solar","Solar PV (utility scale) (0.83 MW)",58.09]
[null,"Italy","Solar","Solar PV (utility scale) (0.83 MW)",62.96]
[null,"Italy","Wind","Wind onshore (< 1 MW) (0.014 MW)",896]
[null,"Italy","Wind","Wind onshore (< 1 MW) (0.020 MW)",212.1]
[null,"Italy","Wind","Wind onshore (< 1 MW) (0.059 MW)",241.2]
[null,"Italy","Wind","Wind onshore (< 1 MW) (0.060 MW)",175.67]
[null,"Italy","Wind","Wind onshore (< 1 MW) (0.10 MW)",135.9]
[null,"Italy","Wind","Wind onshore (< 1 MW) (0.19 MW)",185.02]
[null,"Italy","Wind","Wind onshore (< 1 MW) (0.50 MW)",98.94]
[null,"Italy","Wind","Wind onshore (< 1 MW) (0.80 MW)",75.28]
[null,"Italy","Wind","Wind onshore (< 1 MW) (0.83 MW)",88.78]
[null,"Italy","Wind","Wind onshore (< 1 MW) (0.90 MW)",71.37]
[null,"Italy","Wind","Wind onshore (< 1 MW) (0.90 MW)",79.010000000000005]
[null,"Italy","Wind","Wind onshore (>= 1 MW) (1.0 MW)",91.44]
[null,"Italy","Wind","Wind onshore (>= 1 MW) (10.0 MW)",52.87]
[null,"Italy","Wind","Wind onshore (>= 1 MW) (20.0 MW)",59.52]
[null,"India","Bio","Biomass (30.0 MW)",117.82]
[null,"India","Hydro","Hydro reservoir (>= 5 MW) (175 MW)",49.34]
[null,"India","Solar","Solar PV (utility scale) (35.0 MW)",35.6]
[null,"India","Wind","Wind onshore (>= 1 MW) (65.0 MW)",35.909999999999997]
[null,"Hungary","Solar","Solar PV (commercial) (0.050 MW)",105.59]
[null,"Hungary","Solar","Solar PV (commercial) (0.50 MW)",104.28]
[null,"Hungary","Solar","Solar PV (residential) (0.004 MW)",141.69]
[null,"Hungary","Solar","Solar PV (utility scale) (20.0 MW)",86.05]
[null,"Germany","Hydro","Run of river (>= 5 MW) (24.5 MW)",57]
[null,"France","Fuel cell","Fuel cell (0.003 MW)",237.03]
[null,"France","Fuel cell","Fuel cell (0.20 MW)",209.39]
[null,"France","Fuel cell","Fuel cell (15.2 MW)",178.14]
[null,"France","Solar","Solar PV (commercial) (0.50 MW)",73.98]
[null,"France","Solar","Solar PV (residential) (0.010 MW)",123.65]
[null,"France","Solar","Solar PV (utility scale) (25.0 MW)",33.94]
[null,"France","Wind","Wind offshore (500 MW)",89.82]
[null,"France","Wind","Wind onshore (>= 1 MW) (50.0 MW)",56.08]
[null,"Finland","Wind","Wind onshore (>= 1 MW) (30.0 MW)",44.88]
[null,"Denmark","Solar","Solar PV (commercial) (0.10 MW)",77.760000000000005]
[null,"Denmark","Solar","Solar PV (residential) (0.006 MW)",114.32]
[null,"Denmark","Solar","Solar PV (utility scale) (8.0 MW)",41.11]
[null,"Denmark","Solar","Solar PV (utility scale) (8.0 MW)",43.56]
[null,"Denmark","Wind","Wind offshore (11.3 MW)",51.94]
[null,"Denmark","Wind","Wind offshore (11.5 MW)",45.09]
[null,"Denmark","Wind","Wind onshore (>= 1 MW) (4.5 MW)",29.18]
[null,"China","Solar","Solar PV (utility scale) (20.0 MW)",50.78]
[null,"China","Wind","Wind offshore (50.0 MW)",81.86]
[null,"China","Wind","Wind onshore (>= 1 MW) (50.0 MW)",58.43]
[null,"Canada","Solar","Solar PV (utility scale) (20.0 MW)",62.47]
[null,"Canada","Solar","Solar PV (utility scale) (20.0 MW)",87.94]
[null,"Canada","Wind","Wind onshore (>= 1 MW) (200 MW)",46.83]
[null,"Brazil","Bio","Biomass (25.0 MW)",53.52]
[null,"Brazil","Hydro","Run of river (>= 5 MW) (248 MW)",46.12]
[null,"Brazil","Solar","Solar PV (utility scale) (25.0 MW)",46.02]
[null,"Brazil","Wind","Wind onshore (>= 1 MW) (30.0 MW)",33.590000000000003]
[null,"Belgium","Solar","Solar PV (residential) (0.010 MW)",102.48]
[null,"Belgium","Solar","Solar PV (residential) (0.010 MW)",125.88]
[null,"Belgium","Solar","Solar PV (residential) (0.010 MW)",159.15]
[null,"Belgium","Solar","Solar PV (utility scale) (1.0 MW)",90.22]
[null,"Belgium","Wind","Wind offshore (12.0 MW)",95.2]
[null,"Belgium","Wind","Wind offshore (50.0 MW)",87.43]
[null,"Belgium","Wind","Wind onshore (>= 1 MW) (30.0 MW)",57.9]
[null,"Belgium","Wind","Wind onshore (>= 1 MW) (30.0 MW)",64.11]
[null,"Belgium","Wind","Wind onshore (>= 1 MW) (4.5 MW)",78.33]
[null,"Belgium","Wind","Wind onshore (>= 1 MW) (5.0 MW)",68.540000000000006]
[null,"Austria","Hydro","Run of river (< 5 MW) (2.2 MW)",54.33]
[null,"Austria","Solar","Solar PV (residential) (0.020 MW)",108.18]
[null,"Austria","Wind","Wind onshore (>= 1 MW) (3.0 MW)",76.349999999999994]
[null,"Australia","Solar","Solar PV (utility scale) (100 MW)",38.65]
[null,"Australia","Solar","Solar thermal (CSP) (150 MW)",129.55000000000001]
[null,"Australia","Wind","Wind offshore (100 MW)",85.36]
[null,"Australia","Wind","Wind onshore (>= 1 MW) (100 MW)",43]

{"sheet":"United States of America","index":4,"n_rows":25,"n_cols":4,"rows_kept":25,"cut":false,"hidden":true,"merged":[]}
["UnitedStatesofAmericaGeothermal","UnitedStatesofAmericaHydro","UnitedStatesofAmericaSolar","UnitedStatesofAmericaWind"]
["Geothermal (25.0 MW)","Run of river (< 5 MW) (3.7 MW)","Solar PV (commercial) (0.30 MW)","Wind offshore (600 MW)"]
["Geothermal (30.0 MW)","Run of river (< 5 MW) (4.2 MW)","Solar PV (commercial) (0.30 MW)","Wind offshore (600 MW)"]
[null,"Run of river (< 5 MW) (4.8 MW)","Solar PV (commercial) (0.30 MW)","Wind offshore (600 MW)"]
[null,"Run of river (>= 5 MW) (44.1 MW)","Solar PV (commercial) (0.30 MW)","Wind offshore (600 MW)"]
[null,"Run of river (>= 5 MW) (82.2 MW)","Solar PV (commercial) (median case) (0.30 MW)","Wind offshore (600 MW)"]
[null,"Run of river (>= 5 MW) (median case) (44.7 MW)","Solar PV (residential) (0.005 MW)","Wind offshore (600 MW)"]
[null,"Run of river (>= 5 MW) (median case) (94.0 MW)","Solar PV (residential) (0.005 MW)","Wind offshore (600 MW)"]
[null,null,"Solar PV (residential) (0.005 MW)","Wind offshore (600 MW)"]
[null,null,"Solar PV (residential) (0.005 MW)","Wind offshore (600 MW)"]
[null,null,"Solar PV (residential) (median case) (0.005 MW)","Wind offshore (600 MW)"]
[null,null,"Solar PV (utility scale) (100 MW)","Wind offshore (600 MW)"]
[null,null,"Solar PV (utility scale) (100 MW)","Wind offshore (600 MW)"]
[null,null,"Solar PV (utility scale) (100 MW)","Wind offshore (600 MW)"]
[null,null,"Solar PV (utility scale) (100 MW)","Wind offshore (median case) (600 MW)"]
[null,null,"Solar PV (utility scale) (median case) (100 MW)","Wind onshore (>= 1 MW) (100 MW)"]
[null,null,"Solar thermal (CSP) (100 MW)","Wind onshore (>= 1 MW) (100 MW)"]
[null,null,"Solar thermal (CSP) (100 MW)","Wind onshore (>= 1 MW) (100 MW)"]
[null,null,"Solar thermal (CSP) (median case) (100 MW)","Wind onshore (>= 1 MW) (100 MW)"]
[null,null,null,"Wind onshore (>= 1 MW) (100 MW)"]
[null,null,null,"Wind onshore (>= 1 MW) (100 MW)"]
[null,null,null,"Wind onshore (>= 1 MW) (100 MW)"]
[null,null,null,"Wind onshore (>= 1 MW) (100 MW)"]
[null,null,null,"Wind onshore (>= 1 MW) (100 MW)"]
[null,null,null,"Wind onshore (>= 1 MW) (median case) (100 MW)"]

{"sheet":"Russian Federation","index":5,"n_rows":3,"n_cols":1,"rows_kept":3,"cut":false,"hidden":true,"merged":[]}
["Russian Federation Wind"]
["Wind onshore (>= 1 MW) (280 MW)"]
["Wind onshore (>= 1 MW) (60.0 MW)"]

{"sheet":"Norway","index":6,"n_rows":3,"n_cols":4,"rows_kept":3,"cut":false,"hidden":true,"merged":[]}
["NorwayFuelcell","NorwayHydro","NorwaySolar","NorwayWind"]
["Fuel cell (1.0 MW)","Hydro reservoir (>= 5 MW) (30.0 MW)","Solar PV (commercial) (0.30 MW)","Wind onshore (>= 1 MW) (130 MW)"]
[null,"Run of river (< 5 MW) (3.0 MW)"]

{"sheet":"Netherlands","index":7,"n_rows":4,"n_cols":2,"rows_kept":4,"cut":false,"hidden":true,"merged":[]}
["NetherlandsSolar","NetherlandsWind"]
["Solar PV (commercial) (0.20 MW)","Wind onshore (>= 1 MW) (50.0 MW)"]
["Solar PV (floating) (8.0 MW)"]
["Solar PV (utility scale) (8.0 MW)"]

{"sheet":"KoreaRepublicOf","index":8,"n_rows":3,"n_cols":2,"rows_kept":3,"cut":false,"hidden":true,"merged":[]}
["KoreaRepublicofSolar","KoreaRepublicofWind"]
["Solar PV (commercial) (0.099 MW)","Wind offshore (99.0 MW)"]
["Solar PV (utility scale) (3.0 MW)","Wind onshore (>= 1 MW) (14.9 MW)"]

{"sheet":"Japan","index":9,"n_rows":3,"n_cols":3,"rows_kept":3,"cut":false,"hidden":true,"merged":[]}
["JapanHydro","JapanSolar","JapanWind"]
["Hydro reservoir (>= 5 MW) (12.0 MW)","Solar PV (residential) (0.004 MW)","Wind offshore (100 MW)"]
[null,"Solar PV (utility scale) (2.0 MW)","Wind onshore (>= 1 MW) (20.0 MW)"]

{"sheet":"Italy","index":10,"n_rows":16,"n_cols":5,"rows_kept":16,"cut":false,"hidden":true,"merged":[]}
["ItalyBio","ItalyGeothermal","ItalyHydro","ItalySolar","ItalyWind"]
["Biomass (0.42 MW)","Geothermal (10.0 MW)","Hydro reservoir (< 5 MW) (0.32 MW)","Solar PV (commercial) (0.083 MW)","Wind onshore (< 1 MW) (0.014 MW)"]
["Biomass (0.45 MW)","Geothermal (15.0 MW)","Hydro reservoir (>= 5 MW) (15.0 MW)","Solar PV (commercial) (0.21 MW)","Wind onshore (< 1 MW) (0.020 MW)"]
[null,"Geothermal (39.6 MW)","Run of river (< 5 MW) (0.015 MW)","Solar PV (commercial) (0.42 MW)","Wind onshore (< 1 MW) (0.059 MW)"]
[null,"Geothermal (5.0 MW)","Run of river (< 5 MW) (0.10 MW)","Solar PV (residential) (0.004 MW)","Wind onshore (< 1 MW) (0.060 MW)"]
[null,null,"Run of river (< 5 MW) (0.19 MW)","Solar PV (residential) (0.005 MW)","Wind onshore (< 1 MW) (0.10 MW)"]
[null,null,"Run of river (< 5 MW) (0.25 MW)","Solar PV (utility scale) (0.83 MW)","Wind onshore (< 1 MW) (0.19 MW)"]
[null,null,"Run of river (< 5 MW) (0.25 MW)","Solar PV (utility scale) (0.83 MW)","Wind onshore (< 1 MW) (0.50 MW)"]
[null,null,"Run of river (< 5 MW) (0.25 MW)",null,"Wind onshore (< 1 MW) (0.80 MW)"]
[null,null,"Run of river (< 5 MW) (0.50 MW)",null,"Wind onshore (< 1 MW) (0.83 MW)"]
[null,null,"Run of river (< 5 MW) (0.50 MW)",null,"Wind onshore (< 1 MW) (0.90 MW)"]
[null,null,"Run of river (< 5 MW) (0.50 MW)",null,"Wind onshore (< 1 MW) (0.90 MW)"]
[null,null,"Run of river (< 5 MW) (0.69 MW)",null,"Wind onshore (>= 1 MW) (1.0 MW)"]
[null,null,"Run of river (< 5 MW) (1.0 MW)",null,"Wind onshore (>= 1 MW) (10.0 MW)"]
[null,null,"Run of river (< 5 MW) (2.1 MW)",null,"Wind onshore (>= 1 MW) (20.0 MW)"]
[null,null,"Run of river (>= 5 MW) (5.0 MW)"]

{"sheet":"India","index":11,"n_rows":2,"n_cols":4,"rows_kept":2,"cut":false,"hidden":true,"merged":[]}
["IndiaBio","IndiaHydro","IndiaSolar","IndiaWind"]
["Biomass (30.0 MW)","Hydro reservoir (>= 5 MW) (175 MW)","Solar PV (utility scale) (35.0 MW)","Wind onshore (>= 1 MW) (65.0 MW)"]

{"sheet":"Hungary","index":12,"n_rows":5,"n_cols":1,"rows_kept":5,"cut":false,"hidden":true,"merged":[]}
["HungarySolar"]
["Solar PV (commercial) (0.050 MW)"]
["Solar PV (commercial) (0.50 MW)"]
["Solar PV (residential) (0.004 MW)"]
["Solar PV (utility scale) (20.0 MW)"]

{"sheet":"Germany","index":13,"n_rows":2,"n_cols":1,"rows_kept":2,"cut":false,"hidden":true,"merged":[]}
["GermanyHydro"]
["Run of river (>= 5 MW) (24.5 MW)"]

{"sheet":"France","index":14,"n_rows":4,"n_cols":3,"rows_kept":4,"cut":false,"hidden":true,"merged":[]}
["FranceFuelcell","FranceSolar","FranceWind"]
["Fuel cell (0.003 MW)","Solar PV (commercial) (0.50 MW)","Wind offshore (500 MW)"]
["Fuel cell (0.20 MW)","Solar PV (residential) (0.010 MW)","Wind onshore (>= 1 MW) (50.0 MW)"]
["Fuel cell (15.2 MW)","Solar PV (utility scale) (25.0 MW)"]

{"sheet":"Finland","index":15,"n_rows":2,"n_cols":1,"rows_kept":2,"cut":false,"hidden":true,"merged":[]}
["FinlandWind"]
["Wind onshore (>= 1 MW) (30.0 MW)"]

{"sheet":"Denmark","index":16,"n_rows":5,"n_cols":2,"rows_kept":5,"cut":false,"hidden":true,"merged":[]}
["DenmarkSolar","DenmarkWind"]
["Solar PV (commercial) (0.10 MW)","Wind offshore (11.3 MW)"]
["Solar PV (residential) (0.006 MW)","Wind offshore (11.5 MW)"]
["Solar PV (utility scale) (8.0 MW)","Wind onshore (>= 1 MW) (4.5 MW)"]
["Solar PV (utility scale) (8.0 MW)"]

{"sheet":"China","index":17,"n_rows":3,"n_cols":2,"rows_kept":3,"cut":false,"hidden":true,"merged":[]}
["ChinaSolar","ChinaWind"]
["Solar PV (utility scale) (20.0 MW)","Wind offshore (50.0 MW)"]
[null,"Wind onshore (>= 1 MW) (50.0 MW)"]

{"sheet":"Canada","index":18,"n_rows":3,"n_cols":2,"rows_kept":3,"cut":false,"hidden":true,"merged":[]}
["CanadaSolar","CanadaWind"]
["Solar PV (utility scale) (20.0 MW)","Wind onshore (>= 1 MW) (200 MW)"]
["Solar PV (utility scale) (20.0 MW)"]

{"sheet":"Brazil","index":19,"n_rows":2,"n_cols":4,"rows_kept":2,"cut":false,"hidden":true,"merged":[]}
["BrazilBio","BrazilHydro","BrazilSolar","BrazilWind"]
["Biomass (25.0 MW)","Run of river (>= 5 MW) (248 MW)","Solar PV (utility scale) (25.0 MW)","Wind onshore (>= 1 MW) (30.0 MW)"]

{"sheet":"Belgium","index":20,"n_rows":7,"n_cols":2,"rows_kept":7,"cut":false,"hidden":true,"merged":[]}
["BelgiumSolar","BelgiumWind"]
["Solar PV (residential) (0.010 MW)","Wind offshore (12.0 MW)"]
["Solar PV (residential) (0.010 MW)","Wind offshore (50.0 MW)"]
["Solar PV (residential) (0.010 MW)","Wind onshore (>= 1 MW) (30.0 MW)"]
["Solar PV (utility scale) (1.0 MW)","Wind onshore (>= 1 MW) (30.0 MW)"]
[null,"Wind onshore (>= 1 MW) (4.5 MW)"]
[null,"Wind onshore (>= 1 MW) (5.0 MW)"]

{"sheet":"Austria","index":21,"n_rows":2,"n_cols":3,"rows_kept":2,"cut":false,"hidden":true,"merged":[]}
["AustriaHydro","AustriaSolar","AustriaWind"]
["Run of river (< 5 MW) (2.2 MW)","Solar PV (residential) (0.020 MW)","Wind onshore (>= 1 MW) (3.0 MW)"]

{"sheet":"Australia","index":22,"n_rows":3,"n_cols":2,"rows_kept":3,"cut":false,"hidden":true,"merged":[]}
["AustraliaSolar","AustraliaWind"]
["Solar PV (utility scale) (100 MW)","Wind offshore (100 MW)"]
["Solar thermal (CSP) (150 MW)","Wind onshore (>= 1 MW) (100 MW)"]

{"sheet":"EPA","index":23,"n_rows":30,"n_cols":4,"rows_kept":30,"cut":false,"hidden":true,"merged":[]}
["Data Year","eGRID subregion acronym","eGRID subregion name","eGRID subregion annual CO2e non-baseload output emission rate (lb/MWh)"]
["YEAR","SUBRGN","SRNAME","SRNBC2E"]
[null,null,null,0]
[2020,"AKGD","ASCC Alaska Grid",1323.405]
[2020,"AKMS","ASCC Miscellaneous",1522.8330000000001]
[2020,"AZNM","WECC Southwest",1374.6110000000001]
[2020,"CAMX","WECC California",1009.918]
[2020,"ERCT","ERCOT All",1302.2809999999999]
[2020,"FRCC","FRCC All",1014.3869999999999]
[2020,"HIMS","HICC Miscellaneous",1551.8440000000001]
[2020,"HIOA","HICC Oahu",1766.0060000000001]
[2020,"MROE","MRO East",1638.4659999999999]
[2020,"MROW","MRO West",1822.51]
[2020,"NEWE","NPCC New England",886.93700000000001]
[2020,"NWPP","WECC Northwest",1663.799]
[2020,"NYCW","NPCC NYC/Westchester",971.42100000000005]
[2020,"NYLI","NPCC Long Island",1262.6469999999999]
[2020,"NYUP","NPCC Upstate NY",880.51]
[2020,"PRMS","Puerto Rico Miscellaneous",1678.8109999999999]
[2020,"RFCE","RFC East",1239.0509999999999]
[2020,"RFCM","RFC Michigan",1736.5429999999999]
[2020,"RFCW","RFC West",1822.17]
[2020,"RMPA","WECC Rockies",1660.7619999999999]
[2020,"SPNO","SPP North",1983.865]
[2020,"SPSO","SPP South",1520.847]
[2020,"SRMV","SERC Mississippi Valley",1141.0350000000001]
[2020,"SRMW","SERC Midwest",1879.6079999999999]
[2020,"SRSO","SERC South",1343.223]
[2020,"SRTV","SERC Tennessee Valley",1520.961]
[2020,"SRVC","SERC Virginia/Carolina",1331.259]

{"sheet":"UNFCC","index":24,"n_rows":241,"n_cols":6,"rows_kept":241,"cut":false,"hidden":true,"merged":[[0,1,0,4],[0,5,1,5],[238,0,239,5],[240,0,242,5]]}
[null,"Combined Margin Grid Emission \nFactor, gCO2/kWh",null,null,null,"Operating Margin Grid Emission \nFactor, gCO2/kWh (including for use in PCAF GHG accounting)"]
[null,"Firm Energy (e.g., Hydro, Geothermal)","Intermittent Energy (e.g., Solar, Wind, Tidal)","Energy Efficiency","Electricity Consumption"]
["Country / Territory / Island"]
["Afghanistan",193.24767053546748,331.15120978413364,193.24767053546748,193.24767053546748,413.89333333333337]
["Albania",0,0,0,0,0]
["Algeria",397.35996599998509,479.26577733198235,397.35996599998509,397.35996599998509,528.40926413118075]
["American Samoa (U.S.)",515.85178606230511,663.77775310669767,515.85178606230511,515.85178606230511,752.5333333333333]
["Andorra",69.673849573517401,143.71102692340236,69.673849573517401,69.673849573517401,188.13333333333333]
["Angola",747.69930024477492,1202.7135533812645,747.69930024477492,747.69930024477492,1475.722105263158]
["Anguilla (U.K.)",471.54055157656489,647.16104017454518,471.54055157656489,471.54055157656489,752.5333333333333]
["Antigua and Barbuda",489.36326941013635,653.84455936213442,489.36326941013635,489.36326941013635,752.5333333333333]
["Argentina",288.18336045538854,406.90063375737208,288.18336045538854,288.18336045538854,478.1309977385622]
["Armenia",204.54483749672869,320.55359791543992,204.54483749672869,204.54483749672869,390.15885416666669]
["Aruba",421.10279162662789,628.24688019331882,421.10279162662789,421.10279162662789,752.5333333333333]
["Australia",420.53363647474782,662.58051192348762,420.53363647474782,420.53363647474782,807.80863719273145]
["Austria",113.06459924536532,193.60934855053713,113.06459924536532,113.06459924536532,241.93619813364018]
["Azerbaijan",384.3432466847795,477.71825740120767,384.3432466847795,384.3432466847795,533.74326383106461]
["Azores (Portugal)",384.12120695363092,614.37878594094491,384.12120695363092,384.12120695363092,752.5333333333333]
["Bahamas",440.84390528246615,635.64979781425814,440.84390528246615,440.84390528246615,752.5333333333333]
["Bahrain",454.26772236082775,624.32125515220162,454.26772236082775,454.26772236082775,726.35337482702585]
["Bangladesh",411.7139397607263,484.34434807806042,411.7139397607263,411.7139397607263,527.92259306846097]
["Barbados",483.99970861244168,649.79542337571377,483.99970861244168,483.99970861244168,749.27285223367699]
["Belarus",291.56017074610708,359.06096367265417,291.56017074610708,291.56017074610708,399.56143942858239]
["Belgium",124.39442830229973,203.87180124163424,124.39442830229973,124.39442830229973,251.55822500523499]
["Belize",182.95145194239501,320.49533614506481,182.95145194239501,182.95145194239501,403.0216666666667]
["Benin",575.76498270398827,681.75598213331068,575.76498270398827,575.76498270398827,745.35058179090413]
["Bermuda (U.K.)",341.50887228045815,598.39916043850508,341.50887228045815,341.50887228045815,752.5333333333333]
["Bhutan",0,0,0,0,0]
["Bolivia, Plurinational State of",393.28922931458055,524.74223992737848,393.28922931458055,393.28922931458055,603.61404629505728]
["Bonaire (Netherland)",400.20085022680689,620.40865216838586,400.20085022680689,400.20085022680689,752.5333333333333]
["Bosnia and Herzegovina",738.99703898176494,1025.3854551097022,738.99703898176494,738.99703898176494,1197.2185047864643]
["Botswana",1070.2660561769676,1330.1387104078574,1070.2660561769676,1070.2660561769676,1486.0623029463914]
["Brazil",139.06403822280276,229.50154639660113,139.06403822280276,139.06403822280276,283.76405130088011]
["British Virgin Islands (U.K.)",420.19370651198022,627.90597327532589,420.19370651198022,420.19370651198022,752.5333333333333]
["Brunei Darussalam",407.16262469847078,578.40933589146402,407.16262469847078,407.16262469847078,681.15736260725998]
["Bulgaria",495.28073716719098,755.40496254498976,495.28073716719098,495.28073716719098,911.47949777166912]
["Burkina Faso",539.09725528687409,672.49480406591113,539.09725528687409,539.09725528687409,752.5333333333333]
["Burundi",197.02455268316243,332.56754058951924,197.02455268316243,197.02455268316243,413.89333333333337]
["Cambodia",587.80565791664526,874.37434641533628,587.80565791664526,587.80565791664526,1046.3155595145508]
["Cameroon",354.35330317016411,545.0399075200761,354.35330317016411,354.35330317016411,659.45187013002328]
["Canada",155.64054359342364,290.56615236259381,155.64054359342364,155.64054359342364,371.52151762409591]
["Canary Islands (Spain)",434.81413856751823,633.38863529615264,434.81413856751823,434.81413856751823,752.5333333333333]
["Cape Verde",505.02036075606645,659.71596861685828,505.02036075606645,505.02036075606645,752.5333333333333]
["Cayman Islands",372.6714673977749,610.08513360749885,372.6714673977749,372.6714673977749,752.5333333333333]
["Central African Republic",76.543270540411157,146.28705978598751,76.543270540411157,76.543270540411157,188.13333333333333]
["Chad",580.85894445251802,688.15543750302754,580.85894445251802,580.85894445251802,752.5333333333333]
["Channel Islands (U.K)",388.64330796075546,616.07457381861661,388.64330796075546,388.64330796075546,752.5333333333333]
["Chile",370.77803073608277,549.4206464209517,370.77803073608277,370.77803073608277,656.60621583187299]
["China (PRC and Hong Kong)",547.46269859913696,767.11498919140945,547.46269859913696,547.46269859913696,898.90636354677292]
["Colombia",208.3405816551489,334.19693518410099,208.3405816551489,208.3405816551489,409.71074730147222]
["Comoros",589.11210738721206,691.25037360353781,589.11210738721206,589.11210738721206,752.5333333333333]
["Congo, Democratic Republic of",0.3731949990667075,0.13994812465001533,0.3731949990667075,0.3731949990667075,0]
["Congo, Republic of",405.27115015885988,564.07198306660268,405.27115015885988,405.27115015885988,659.35248281124836]
["Cook Islands",421.72474668190364,628.48011333904719,421.72474668190364,421.72474668190364,752.5333333333333]
["Costa Rica",38.890542905425193,81.942835168481835,38.890542905425193,38.890542905425193,107.77421052631581]
["Côte d'Ivoire",314.23207204883676,409.25182494148504,314.23207204883676,314.23207204883676,466.26367667707393]
["Croatia",167.86317078875766,246.89822139586536,167.86317078875766,167.86317078875766,294.31925176012999]
["Cuba",391.16420340992102,496.02914123741243,391.16420340992102,391.16420340992102,558.9481039339073]
["Curacao/Netherlands Antilles",505.73442734547314,737.44646288613148,505.73442734547314,505.73442734547314,876.47368421052636]
["Cyprus",438.0304755089935,633.37327042113577,438.0304755089935,438.0304755089935,750.57894736842104]
["Czech Republic",461.30532071465791,736.46183847750274,461.30532071465791,461.30532071465791,901.55574913520968]
["Denmark",155.24215224135511,284.23806155210224,155.24215224135511,155.24215224135511,361.63560713855048]
["Djibouti",575.4710042947454,686.1349599438629,575.4710042947454,575.4710042947454,752.5333333333333]
["Dominica",432.87633042985703,632.66195724452973,432.87633042985703,432.87633042985703,752.5333333333333]
["Dominican Republic",426.21990441060319,535.60880665175705,426.21990441060319,426.21990441060319,601.24214799644926]
["Ecuador",280.0294909278872,455.18149081857973,280.0294909278872,280.0294909278872,560.27269075299523]
["Egypt",405.88937135029744,498.3599305431145,405.88937135029744,405.88937135029744,553.84226605880474]
["El Salvador",274.85008888093455,445.25134911982411,274.85008888093455,274.85008888093455,547.4921052631579]
["Equatorial Guinea",361.14391543849621,530.69949921145724,361.14391543849621,361.14391543849621,632.43284947523387]
["Eritrea",703.65909562906108,835.92479243984531,703.65909562906108,703.65909562906108,915.28421052631586]
["Estonia",625.15083075896132,895.01810709191579,625.15083075896132,625.15083075896132,1056.9384728916884]
["Eswatini",0,0,0,0,0]
["Ethiopia",0.14137451606587195,5.3015443524701986E-2,0.14137451606587195,0.14137451606587195,0]
["Falkland Islands (U.K.)",315.56387781247656,588.66978751301201,315.56387781247656,315.56387781247656,752.5333333333333]
["Faroe Islands (Denmark)",320.4106740312501,590.48733609505211,320.4106740312501,320.4106740312501,752.5333333333333]
["Fiji",334.44750654637954,525.20114828822568,334.44750654637954,334.44750654637954,639.65333333333331]
["Finland",114.07744325305934,209.43587327772903,114.07744325305934,114.07744325305934,266.65093129253086]
["France",67.622730217810499,124.19566919827533,67.622730217810499,67.622730217810499,158.13943258655422]
["French Guiana",199.63952023268763,339.50795734215984,199.63952023268763,199.63952023268763,423.4290196078432]
["French Polynesia",412.46692155998733,625.0084289183286,412.46692155998733,412.46692155998733,752.5333333333333]
["Gabon",532.93431460808711,790.98413154051036,532.93431460808711,532.93431460808711,945.81402169996431]
["Gambia",590.9736287084296,691.9484440989944,590.9736287084296,590.9736287084296,752.5333333333333]
["Georgia",135.46579806767312,231.34654927537744,135.46579806767312,135.46579806767312,288.875]
["Germany",312.88448375889328,523.38789420681769,312.88448375889328,312.88448375889328,649.68994047557226]
["Ghana",275.98720016838456,412.72042739119564,275.98720016838456,275.98720016838456,494.76036372488221]
["Gibraltar (U.K.)",368.78488096005384,625.14301457054648,368.78488096005384,368.78488096005384,778.95789473684215]
["Greece",345.84365638438351,446.64423396319751,345.84365638438351,345.84365638438351,507.12458051048588]
["Greenland",104.81543874366528,204.31368426571655,104.81543874366528,104.81543874366528,264.01263157894732]
["Grenada",522.69728550429636,666.34481539744445,522.69728550429636,522.69728550429636,752.5333333333333]
["Guadeloupe (France)",432.83816382376415,632.64764476724486,432.83816382376415,432.83816382376415,752.5333333333333]
["Guam",427.81751637600723,630.764901974336,427.81751637600723,427.81751637600723,752.5333333333333]
["Guatemala",427.10028162566135,658.80024095165015,427.10028162566135,427.10028162566135,797.82021654724326]
["Guinea",459.55350776006651,642.6658987433583,459.55350776006651,459.55350776006651,752.5333333333333]
["Guinea-Bissau",577.22616240922889,686.79314423679421,577.22616240922889,577.22616240922889,752.5333333333333]
["Guyana",615.69957527366182,760.00265623452879,615.69957527366182,615.69957527366182,846.58450481104887]
["Haiti",764.61328169482056,941.53261221450509,764.61328169482056,764.61328169482056,1047.6842105263158]
["Honduras",359.08721846448907,548.10441745049923,359.08721846448907,359.08721846448907,661.51473684210532]
["Hungary",191.06812185105576,256.57471547971591,191.06812185105576,191.06812185105576,295.87867165691199]
["Iceland",3.2314260442553373E-2,1.2117847665957516E-2,3.2314260442553373E-2,3.2314260442553373E-2,0]
["India",660.98762452255505,842.19642848860803,660.98762452255505,660.98762452255505,950.92171086823976]
["Indonesia",598.91445088120838,714.26038843725451,598.91445088120838,598.91445088120838,783.46795097088216]
["Iran, Islamic Republic of",420.91570869559075,527.90450560065176,420.91570869559075,420.91570869559075,592.09778374368841]
["Iraq",787.91671856532821,970.69954167997457,787.91671856532821,787.91671856532821,1080.3692355487624]
["Ireland",189.48199631026586,308.70439881753231,189.48199631026586,189.48199631026586,380.23784032189218]
["Isle of Man (U.K.)",204.25785650194291,349.26336285489532,204.25785650194291,204.25785650194291,436.26666666666671]
["Israel",258.34601334393375,343.23027428058924,258.34601334393375,258.34601334393375,394.16083084258253]
["Italy",223.71243671342881,342.93064726442412,223.71243671342881,223.71243671342881,414.46157359502132]
["Jamaica",497.6041530355115,630.83897085619083,497.6041530355115,497.6041530355115,710.77986154859832]
["Japan",286.11693586732559,401.94927693239742,286.11693586732559,286.11693586732559,471.44868157144055]
["Jordan",381.86279856047622,473.56177123516153,381.86279856047622,381.86279856047622,528.58115483997267]
["Kazakhstan",532.21770407285385,697.81608917347728,532.21770407285385,532.21770407285385,797.1751202338512]
["Kenya",274.25803622160259,461.58360568836412,274.25803622160259,274.25803622160259,573.97894736842102]
["Kiribati",529.62444777366818,668.94250124845894,529.62444777366818,529.62444777366818,752.5333333333333]
["Korea (North), Democratic People's Republic of",359.48250254137201,606.14221563678393,359.48250254137201,359.48250254137201,754.13804349403108]
["Korea (South), Republic of",329.71974728710904,470.72123881935693,329.71974728710904,329.71974728710904,555.32213373870559]
["Kosovo",842.8157796622196,1031.7230970094665,842.8157796622196,842.8157796622196,1145.0674874178146]
["Kuwait",399.76965536565945,571.88189402561943,399.76965536565945,399.76965536565945,675.1492372215954]
["Kyrgyzstan",97.720914461216495,172.36172521786983,97.720914461216495,97.720914461216495,217.14621167186183]
["Lao People's Democratic Republic",554.56191213040506,876.13092981485943,554.56191213040506,554.56191213040506,1069.072340425532]
["Latvia",117.20603105855093,193.86064627995631,117.20603105855093,117.20603105855093,239.85341541279956]
["Lebanon",566.98500341756062,708.84306049211159,566.98500341756062,566.98500341756062,793.95789473684215]
["Lesotho",0,0,0,0,0]
["Liberia",373.91313303397692,563.5174248877413,373.91313303397692,373.91313303397692,677.28]
["Libya",493.33625699416393,602.20066405944715,493.33625699416393,493.33625699416393,667.51930829861703]
["Liechtenstein",52.10260049692787,113.60514185301459,52.10260049692787,52.10260049692787,150.50666666666663]
["Lithuania",101.8441227431646,169.7774225225553,101.8441227431646,101.8441227431646,210.53740239018973]
["Luxembourg",95.040592324606507,173.27033451684076,95.040592324606507,95.040592324606507,220.20817983218129]
["Madagascar",567.41092286541254,760.11462239031925,567.41092286541254,567.41092286541254,875.73684210526324]
["Madeira (Portugal)",368.66348192449874,552.48754446042574,368.66348192449874,368.66348192449874,662.78198198198197]
["Malawi",242.73169367576958,396.7410517950803,242.73169367576958,242.73169367576958,489.14666666666665]
["Malaysia",436.19213559667077,507.94011767137363,436.19213559667077,436.19213559667077,550.98890691619533]
["Maldives",524.46028262705113,667.00593931847743,524.46028262705113,524.46028262705113,752.5333333333333]
["Mali",623.3716755063615,906.42227305172787,623.3716755063615,623.3716755063615,1076.2526315789476]
["Malta",294.51240553406734,435.23750952826356,294.51240553406734,294.51240553406734,519.67257192478121]
["Marshall Islands",560.92326136014526,680.67955634338784,560.92326136014526,560.92326136014526,752.5333333333333]
["Martinique (France)",406.42868750288045,622.74409114691343,406.42868750288045,406.42868750288045,752.5333333333333]
["Mauritania",513.12073333186731,662.75360833278364,513.12073333186731,513.12073333186731,752.5333333333333]
["Mauritius",542.76295631382914,641.31507975484408,542.76295631382914,542.76295631382914,700.44635381945307]
["Mayotte (France)",511.98871954868207,662.32910316408913,511.98871954868207,511.98871954868207,752.5333333333333]
["Mexico",360.40436858262598,467.29759094215387,360.40436858262598,360.40436858262598,531.43352435787062]
["Micronesia",556.6305887334513,679.06980410837764,556.6305887334513,556.6305887334513,752.5333333333333]
["Moldova, Republic of ",399.25864856099395,487.76658964510057,399.25864856099395,399.25864856099395,540.87135429556452]
["Monaco",67.622730217810499,124.19566919827533,67.622730217810499,67.622730217810499,158.13943258655422]
["Mongolia",1001.951322531854,1229.6849680237235,1001.951322531854,1001.951322531854,1366.3251553188454]
["Montenegro",471.04345150526137,738.61469856979215,471.04345150526137,471.04345150526137,899.15744680851071]
["Montserrat",516.98656568336264,664.20329546459425,516.98656568336264,516.98656568336264,752.5333333333333]
["Morocco",546.8271146982047,660.40176137365984,546.8271146982047,546.8271146982047,728.54654937893292]
["Mozambique",110.7817145243435,187.69477094926822,110.7817145243435,110.7817145243435,233.84260480422304]
["Myanmar",406.81016900032625,602.0923290147748,406.81016900032625,406.81016900032625,719.2616250234438]
["Namibia",138.57700071594977,273.85668251894646,138.57700071594977,138.57700071594977,355.02449160074451]
["Nauru",520.69892127579135,665.59542881175503,520.69892127579135,520.69892127579135,752.5333333333333]
["Nepal",6.6276843991052159E-3,2.485381649664456E-3,6.6276843991052159E-3,6.6276843991052159E-3,0]
["Netherlands",202.9021450113807,279.89191742794759,202.9021450113807,202.9021450113807,326.08578087788777]
["New Caledonia (France)",445.34111591181664,654.13360028511295,445.34111591181664,445.34111591181664,779.40909090909076]
["New Zealand",107.55764507409098,194.1038707513452,107.55764507409098,107.55764507409098,246.03160615769772]
["Nicaragua",371.97235053851921,561.53634197826057,371.97235053851921,371.97235053851921,675.27473684210531]
["Niger",717.89801320725928,751.77754442640639,717.89801320725928,717.89801320725928,772.1052631578948]
["Nigeria",357.59576603758683,462.80934976409509,357.59576603758683,357.59576603758683,525.9375]
["Niue",458.84793344512082,642.40130837525362,458.84793344512082,458.84793344512082,752.5333333333333]
["North Macedonia, Republic of",562.84600575398872,742.86177130032024,562.84600575398872,562.84600575398872,850.87123062811906]
["Northern Mariana Islands (U.S.)",416.24593132459222,626.4255575800554,416.24593132459222,416.24593132459222,752.5333333333333]
["Norway",16.926232606405133,35.502736168416803,16.926232606405133,16.926232606405133,46.648638305623805]
["Oman",319.62029301215279,419.03516445847612,319.62029301215279,319.62029301215279,478.68408732627006]
["Pakistan",385.58443628385584,514.54172238554986,385.58443628385584,385.58443628385584,591.91609404656629]
["Palau",497.19494202756118,656.78143659366879,497.19494202756118,497.19494202756118,752.5333333333333]
["Palestinian Authority",516.82063307465376,643.07747424510046,516.82063307465376,516.82063307465376,718.83157894736848]
["Panama",230.33956010958133,384.80499375864628,230.33956010958133,230.33956010958133,477.48425394808527]
["Papua New Guinea",315.140709986773,491.43215220995211,315.140709986773,315.140709986773,597.20701754385959]
["Paraguay",1.4536672318183019E-2,5.4512521193186324E-3,1.4536672318183019E-2,1.4536672318183019E-2,0]
["Peru",252.31024108828439,390.29161962034277,252.31024108828439,252.31024108828439,473.08044673957784]
["Philippines",524.98668142032648,616.63451437226217,524.98668142032648,524.98668142032648,671.62321414342364]
["Poland",532.0692783839155,717.21853091683954,532.0692783839155,532.0692783839155,828.30808243659385]
["Portugal",227.74258863381979,328.68678853560834,227.74258863381979,227.74258863381979,389.25330847668147]
["Puerto Rico (U.S.)",361.61668730944325,508.357312593362,361.61668730944325,361.61668730944325,596.4016877637132]
["Qatar",258.11205740676598,411.16051111087057,258.11205740676598,258.11205740676598,502.98958333333337]
["Reunion (France)",420.8579809780482,640.5766448275524,420.8579809780482,420.8579809780482,772.40784313725487]
["Romania",289.47954702504603,414.45902981464099,289.47954702504603,289.47954702504603,489.44671948839789]
["Russian Federation",293.79796091805059,407.47079333134644,293.79796091805059,293.79796091805059,475.674492779324]
["Rwanda",416.00923480616655,601.17922062806997,416.00923480616655,416.00923480616655,712.28121212121198]
["Saint Helena (U.K.)",456.12301120760935,641.37946253618679,456.12301120760935,456.12301120760935,752.5333333333333]
["Saint Kitts and Nevis",477.08604640944623,649.24060073687565,477.08604640944623,477.08604640944623,752.5333333333333]
["Saint Lucia",520.90705415317166,665.67347864077271,520.90705415317166,520.90705415317166,752.5333333333333]
["Saint Martin (France)",483.55495411529171,651.66644112656775,483.55495411529171,483.55495411529171,752.5333333333333]
["Saint Pierre and Miquelon (France)",414.87524919417905,625.91155178115048,414.87524919417905,414.87524919417905,752.5333333333333]
["Saint Vincent and Grenadines",499.24849787581934,657.55152003676562,499.24849787581934,499.24849787581934,752.5333333333333]
["Samoa",434.29372549193522,633.19348039280908,434.29372549193522,434.29372549193522,752.5333333333333]
["San Marino",223.71243671342881,342.93064726442412,223.71243671342881,223.71243671342881,414.46157359502132]
["Sao Tomé & Principe",564.72331426351616,682.10457618215196,564.72331426351616,564.72331426351616,752.5333333333333]
["Saudi Arabia",373.68555697289543,509.94781525231076,373.68555697289543,373.68555697289543,591.70517021996]
["Senegal",656.24454611174929,789.94179542300742,656.24454611174929,656.24454611174929,870.16014500976235]
["Serbia",677.72974782899087,932.63709011357628,677.72974782899087,677.72974782899087,1085.5814954843274]
["Seychelles",478.78966080444832,649.87945613500142,478.78966080444832,478.78966080444832,752.5333333333333]
["Sierra Leone",245.92899433095167,397.94003954077357,245.92899433095167,245.92899433095167,489.14666666666665]
["Singapore",199.64443170570416,311.47880035763274,199.64443170570416,199.64443170570416,378.57942154878987]
["Sint Martin (Netherlands)",463.04431251750447,643.97495052739748,463.04431251750447,463.04431251750447,752.5333333333333]
["Slovak Republic",163.72125716658411,268.81763285439814,163.72125716658411,163.72125716658411,331.87545826708657]
["Slovenia",284.8539622834993,494.27124396352366,284.8539622834993,284.8539622834993,619.92161297153825]
["Solomon Islands",562.82293622532848,681.39193441783152,562.82293622532848,562.82293622532848,752.5333333333333]
["Somalia",582.29226405636541,688.69293235447037,582.29226405636541,582.29226405636541,752.5333333333333]
["South Africa",747.37568884261691,949.15202796840026,747.37568884261691,747.37568884261691,1070.2178314438704]
["South Sudan",704.05083822326856,820.15064328109429,704.05083822326856,704.05083822326856,889.81052631578962]
["Spain",208.69804493845825,329.3432788528321,208.69804493845825,208.69804493845825,401.73041920145641]
["Sri Lanka",505.85473495972747,646.41146180186252,505.85473495972747,505.85473495972747,730.74549790714354]
["Sudan",398.17196931350855,609.0309358609868,398.17196931350855,398.17196931350855,735.54631578947374]
["Suriname",564.88495903124567,854.720017531454,564.88495903124567,564.88495903124567,1028.621052631579]
["Sweden",25.275304048983678,51.960021002945538,25.275304048983678,25.275304048983678,67.97085117532265]
["Switzerland",20.173190933358427,37.593503185813468,20.173190933358427,20.173190933358427,48.04569053728649]
["Syrian Arab Republic",546.47988627525933,650.25042781339596,546.47988627525933,546.47988627525933,712.51275273627789]
["Taiwan (Chinese Taipei)",331.15606772649232,426.73174386294619,331.15606772649232,331.15606772649232,484.07714954481844]
["Tajikistan",105.72642103426016,199.24182278146461,105.72642103426016,105.72642103426016,255.35106382978731]
["Tanzania, United Republic of",336.04980441715134,457.60614458601185,336.04980441715134,336.04980441715134,530.53994868732809]
["Thailand",350.71181490391206,413.07374053272667,350.71181490391206,350.71181490391206,450.49089591001541]
["Timor-Leste",589.21329161003655,691.28831768709699,589.21329161003655,589.21329161003655,752.5333333333333]
["Togo",596.76663590442013,760.82067045981785,596.76663590442013,596.76663590442013,859.25309119305632]
["Tonga",532.69841597072798,670.09523932235629,532.69841597072798,532.69841597072798,752.5333333333333]
["Trinidad and Tobago",369.74755991694974,488.20963930381663,369.74755991694974,369.74755991694974,559.28688693593676]
["Tunisia",347.80278400693936,422.75862528469122,347.80278400693936,347.80278400693936,467.73213005134238]
["Turkey",308.80892108595197,350.9336601888582,308.80892108595197,308.80892108595197,376.20850365060193]
["Turkmenistan",675.6267242516152,832.9173132610224,675.6267242516152,675.6267242516152,927.29166666666674]
["Turks and Caicos Islands (U.K.)",450.59347279180747,639.30588563026117,450.59347279180747,450.59347279180747,752.5333333333333]
["Tuvalu",496.51779142534491,656.52750511783768,496.51779142534491,496.51779142534491,752.5333333333333]
["Uganda",115.85259002861456,217.82070810283568,115.85259002861456,115.85259002861456,279.00157894736839]
["Ukraine",434.67951906483529,643.16797174397277,434.67951906483529,434.67951906483529,768.26104335145533]
["United Arab Emirates",310.40054313432529,464.20146570047291,310.40054313432529,310.40054313432529,556.48201924016155]
["United Kingdom",186.50451763901555,307.67120913514356,186.50451763901555,186.50451763901555,380.37122403282041]
["United States",219.61613884518965,342.62378116202558,219.61613884518965,219.61613884518965,416.4283665521271]
["Uruguay",64.828543846259706,133.03468973729278,64.828543846259706,64.828543846259706,173.95837727191261]
["Uzbekistan",467.37279085958721,557.94187602436364,467.37279085958721,467.37279085958721,612.28332712322947]
["Vanatu",504.18072672613846,659.40110585563525,504.18072672613846,504.18072672613846,752.5333333333333]
["Venezuela, Bolivarian Republic of",367.75218932752193,582.23231555532254,367.75218932752193,367.75218932752193,710.92039129200293]
["Viet Nam",380.80799846500122,493.07866265416192,380.80799846500122,380.80799846500122,560.4410611676584]
["Virgin Islands (U.S.)",373.01492578103989,546.32167460896744,373.01492578103989,373.01492578103989,650.30572390572388]
["Yemen",614.56213289092454,735.01904593310701,614.56213289092454,614.56213289092454,807.29319375841658]
["Zambia",196.99130651213528,334.1271168441794,196.99130651213528,196.99130651213528,416.40860304340589]
["Zimbabwe",880.25359635548079,1314.6580889519628,880.25359635548079,880.25359635548079,1575.3007845098518]
[]
["Memo:  EU 27",261.09623431478133,353.31378456386602,261.09623431478133,261.09623431478133,408.64431471331682]
[]
["Note 1: For methodology and sources used to derive the default emission factors, please refer to the document \n\"AHG-001: Methodological Approach for the Common Default Grid Emission Factor Dataset\".\n "]
[]
["Note 2: Partnership for Carbon Accounting Financials (PCAF) is a global partnership of financial institutions that work together to develop and implement a harmonized approach to assess and disclose the GHG emissions associated with their loans and investments.\nhttps://carbonaccountingfinancials.com/"]

{"sheet":"GridRegions","index":25,"n_rows":60,"n_cols":259,"rows_kept":60,"cut":false,"hidden":true,"merged":[]}
["Afghanistan","Albania","Algeria","American Samoa (U.S.)","Andorra","Angola","Anguilla (U.K.)","Antigua and Barbuda","Argentina","Armenia","Aruba","Australia","Austria","Azerbaijan","Azores (Portugal)","Bahamas","Bahrain","Bangladesh","Barbados","Belarus","Belgium","Belize","Benin","Bermuda (U.K.)","Bhutan","Bolivia, Plurinational State of","Bonaire (Netherland)","Bosnia and Herzegovina","Botswana","Brazil","British Virgin Islands (U.K.)","Brunei Darussalam","Bulgaria","Burkina Faso","Burundi","Cambodia","Cameroon","Canada","Canary Islands (Spain)","Cape Verde","Cayman Islands","Central African Republic","Chad","Channel Islands (U.K)","Chile","China (PRC and Hong Kong)","Colombia","Comoros","Congo, Democratic Republic of","Congo, Republic of","Cook Islands","Costa Rica","Côte d'Ivoire","Croatia","Cuba","Curacao/Netherlands Antilles","Cyprus","Czech Republic","Denmark","Djibouti","Dominica","Dominican Republic","Ecuador","Egypt","El Salvador","Equatorial Guinea","Eritrea","Estonia","Eswatini","Ethiopia","Falkland Islands (U.K.)","Faroe Islands (Denmark)","Fiji","Finland","France","French Guiana","French Polynesia","Gabon","Gambia","Georgia","Germany","Ghana","Gibraltar (U.K.)","Greece","Greenland","Grenada","Guadeloupe (France)","Guam","Guatemala","Guinea","Guinea-Bissau","Guyana","Haiti","Honduras","Hungary","Iceland","India","Indonesia","Iran, Islamic Republic of","Iraq","Ireland","Isle of Man (U.K.)","Israel","Italy","Jamaica","Japan","Jordan","Kazakhstan","Kenya","Kiribati","Korea (North), Democratic People's Republic of","Korea (South), Republic of","Kosovo","Kuwait","Kyrgyzstan","Lao People's Democratic Republic","Latvia","Lebanon","Lesotho","Liberia","Libya","Liechtenstein","Lithuania","Luxembourg","Madagascar","Madeira (Portugal)","Malawi","Malaysia","Maldives","Mali","Malta","Marshall Islands","Martinique (France)","Mauritania","Mauritius","Mayotte (France)","Mexico","Micronesia","Moldova, Republic of ","Monaco","Mongolia","Montenegro","Montserrat","Morocco","Mozambique","Myanmar","Namibia","Nauru","Nepal","Netherlands","New Caledonia (France)","New Zealand","Nicaragua","Niger","Nigeria","Niue","North Macedonia, Republic of","Northern Mariana Islands (U.S.)","Norway","Oman","Pakistan","Palau","Palestinian Authority","Panama","Papua New Guinea","Paraguay","Peru","Philippines","Poland","Portugal","Puerto Rico (U.S.)","Qatar","Reunion (France)","Romania","Russian Federation","Rwanda","Saint Helena (U.K.)","Saint Kitts and Nevis","Saint Lucia","Saint Martin (France)","Saint Pierre and Miquelon (France)","Saint Vincent and Grenadines","Samoa","San Marino","Sao Tomé & Principe","Saudi Arabia","Senegal","Serbia","Seychelles","Sierra Leone","Singapore","Sint Martin (Netherlands)","Slovak Republic","Slovenia","Solomon Islands","Somalia","South Africa","South Sudan","Spain","Sri Lanka","Sudan","Suriname","Sweden","Switzerland","Syrian Arab Republic","Taiwan (Chinese Taipei)","Tajikistan","Tanzania, United Republic of","Thailand","Timor-Leste","Togo","Tonga","Trinidad and Tobago","Tunisia","Turkey","Turkmenistan","Turks and Caicos Islands (U.K.)","Tuvalu","Uganda","Ukraine","United Arab Emirates","United Kingdom","United States","Uruguay","Uzbekistan","Vanatu","Venezuela, Bolivarian Republic of","Viet Nam","Virgin Islands (U.S.)","Yemen","Zambia","Zimbabwe","ASCC Alaska Grid","ASCC Miscellaneous","WECC Southwest","WECC California","ERCOT All","FRCC All","HICC Miscellaneous","HICC Oahu","MRO East","MRO West","NPCC New England","WECC Northwest","NPCC NYC/Westchester","NPCC Long Island","NPCC Upstate NY","Puerto Rico Miscellaneous","RFC East","RFC Michigan","RFC West","WECC Rockies","SPP North","SPP South","SERC Mississippi Valley","SERC Midwest","SERC South","SERC Tennessee Valley","SERC Virginia/Carolina"]
[{"$f":"SUBSTITUTE(SUBSTITUTE(SUBSTITUTE(SUBSTITUTE(SUBSTITUTE(SUBSTITUTE(A$1,\" \",\"\"),\",\",\"\"),\"(\",\"\"),\")\",\"\"),\".\",\"\"),\"-\",\"\")","v":"Afghanistan"},{"$f":"SUBSTITUTE(SUBSTITUTE(SUBSTITUTE(SUBSTITUTE(SUBSTITUTE(SUBSTITUTE(B$1,\" \",\"\"),\",\",\"\"),\"(\",\"\"),\")\",\"\"),\".\",\"\"),\"-\",\"\")","v":"Albania"},{"$f":"SUBSTITUTE(SUBSTITUTE(SUBSTITUTE(SUBSTITUTE(SUBSTITUTE(SUBSTITUTE(C$1,\" \",\"\"),\",\",\"\"),\"(\",\"\"),\")\",\"\"),\".\",\"\"),\"-\",\"\")","v":"Algeria"},"AmericanSamoaUS","Andorra","Angola","AnguillaUK","AntiguaandBarbuda","Argentina","Armenia","Aruba","Australia","Austria","Azerbaijan","AzoresPortugal","Bahamas","Bahrain","Bangladesh","Barbados","Belarus","Belgium","Belize","Benin","BermudaUK","Bhutan","BoliviaPlurinationalStateof","BonaireNetherland","BosniaandHerzegovina","Botswana","Brazil","BritishVirginIslandsUK","BruneiDarussalam","Bulgaria","BurkinaFaso","Burundi","Cambodia","Cameroon","Canada","CanaryIslandsSpain","CapeVerde","CaymanIslands","CentralAfricanRepublic","Chad","ChannelIslandsUK","Chile","ChinaPRCandHongKong","Colombia","Comoros","CongoDemocraticRepublicof","CongoRepublicof","CookIslands","CostaRica","Côted'Ivoire","Croatia","Cuba","Curacao/NetherlandsAntilles","Cyprus","CzechRepublic","Denmark","Djibouti","Dominica","DominicanRepublic","Ecuador","Egypt","ElSalvador","EquatorialGuinea",{"$f":"SUBSTITUTE(SUBSTITUTE(SUBSTITUTE(SUBSTITUTE(SUBSTITUTE(SUBSTITUTE(BO$1,\" \",\"\"),\",\",\"\"),\"(\",\"\"),\")\",\"\"),\".\",\"\"),\"-\",\"\")","v":"Eritrea"},"Estonia","Eswatini","Ethiopia","FalklandIslandsUK","FaroeIslandsDenmark","Fiji","Finland","France","FrenchGuiana","FrenchPolynesia","Gabon","Gambia","Georgia","Germany","Ghana","GibraltarUK","Greece","Greenland","Grenada","GuadeloupeFrance","Guam","Guatemala","Guinea","GuineaBissau","Guyana","Haiti","Honduras","Hungary","Iceland","India","Indonesia","IranIslamicRepublicof","Iraq","Ireland","IsleofManUK","Israel","Italy","Jamaica","Japan","Jordan","Kazakhstan","Kenya","Kiribati","KoreaNorthDemocraticPeople'sRepublicof","KoreaSouthRepublicof","Kosovo","Kuwait","Kyrgyzstan","LaoPeople'sDemocraticRepublic","Latvia","Lebanon","Lesotho","Liberia","Libya","Liechtenstein","Lithuania","Luxembourg","Madagascar","MadeiraPortugal","Malawi","Malaysia","Maldives","Mali",{"$f":"SUBSTITUTE(SUBSTITUTE(SUBSTITUTE(SUBSTITUTE(SUBSTITUTE(SUBSTITUTE(EA$1,\" \",\"\"),\",\",\"\"),\"(\",\"\"),\")\",\"\"),\".\",\"\"),\"-\",\"\")","v":"Malta"},"MarshallIslands","MartiniqueFrance","Mauritania","Mauritius","MayotteFrance","Mexico","Micronesia","MoldovaRepublicof","Monaco","Mongolia","Montenegro","Montserrat","Morocco","Mozambique","Myanmar","Namibia","Nauru","Nepal","Netherlands","NewCaledoniaFrance","NewZealand","Nicaragua","Niger","Nigeria","Niue","NorthMacedoniaRepublicof","NorthernMarianaIslandsUS","Norway","Oman","Pakistan","Palau","PalestinianAuthority","Panama","PapuaNewGuinea","Paraguay","Peru","Philippines","Poland","Portugal","PuertoRicoUS","Qatar","ReunionFrance","Romania","RussianFederation","Rwanda","SaintHelenaUK","SaintKittsandNevis","SaintLucia","SaintMartinFrance","SaintPierreandMiquelonFrance","SaintVincentandGrenadines","Samoa","SanMarino","SaoTomé&Principe","SaudiArabia","Senegal","Serbia","Seychelles","SierraLeone","Singapore","SintMartinNetherlands","SlovakRepublic","Slovenia",{"$f":"SUBSTITUTE(SUBSTITUTE(SUBSTITUTE(SUBSTITUTE(SUBSTITUTE(SUBSTITUTE(GM$1,\" \",\"\"),\",\",\"\"),\"(\",\"\"),\")\",\"\"),\".\",\"\"),\"-\",\"\")","v":"SolomonIslands"},"Somalia","SouthAfrica","SouthSudan","Spain","SriLanka","Sudan","Suriname","Sweden","Switzerland","SyrianArabRepublic","TaiwanChineseTaipei","Tajikistan","TanzaniaUnitedRepublicof",{"$f":"SUBSTITUTE(SUBSTITUTE(SUBSTITUTE(SUBSTITUTE(SUBSTITUTE(SUBSTITUTE(HA$1,\" \",\"\"),\",\",\"\"),\"(\",\"\"),\")\",\"\"),\".\",\"\"),\"-\",\"\")","v":"Thailand"},{"$f":"SUBSTITUTE(SUBSTITUTE(SUBSTITUTE(SUBSTITUTE(SUBSTITUTE(SUBSTITUTE(HB$1,\" \",\"\"),\",\",\"\"),\"(\",\"\"),\")\",\"\"),\".\",\"\"),\"-\",\"\")","v":"TimorLeste"},"Togo","Tonga","TrinidadandTobago","Tunisia","Turkey","Turkmenistan","TurksandCaicosIslandsUK","Tuvalu","Uganda","Ukraine",{"$f":"SUBSTITUTE(SUBSTITUTE(SUBSTITUTE(SUBSTITUTE(SUBSTITUTE(SUBSTITUTE(HM$1,\" \",\"\"),\",\",\"\"),\"(\",\"\"),\")\",\"\"),\".\",\"\"),\"-\",\"\")","v":"UnitedArabEmirates"},{"$f":"SUBSTITUTE(SUBSTITUTE(SUBSTITUTE(SUBSTITUTE(SUBSTITUTE(SUBSTITUTE(HN$1,\" \",\"\"),\",\",\"\"),\"(\",\"\"),\")\",\"\"),\".\",\"\"),\"-\",\"\")","v":"UnitedKingdom"},"UnitedStates","Uruguay","Uzbekistan","Vanatu","VenezuelaBolivarianRepublicof","VietNam","VirginIslandsUS","Yemen","Zambia","Zimbabwe",1323.405,1522.8330000000001,1374.6110000000001,1009.918,1302.2809999999999,1014.3869999999999,1551.8440000000001,1766.0060000000001,1638.4659999999999,1822.51,886.93700000000001,1663.799,971.42100000000005,1262.6469999999999,880.51,1678.8109999999999,1239.0509999999999,1736.5429999999999,1822.17,1660.7619999999999,1983.865,1520.847,1141.0350000000001,1879.6079999999999,1343.223,1520.961,1331.259]
[{"$f":"_xlfn.CONCAT(A$2,\"National\")","v":"AfghanistanNational"},{"$f":"_xlfn.CONCAT(B$2,\"National\")","v":"AlbaniaNational"},"AlgeriaNational",{"$f":"_xlfn.CONCAT(D$2,\"National\")","v":"AmericanSamoaUSNational"},"AndorraNational","AngolaNational","AnguillaUKNational","AntiguaandBarbudaNational","ArgentinaNational","ArmeniaNational","ArubaNational","AustraliaNational","AustriaNational","AzerbaijanNational","AzoresPortugalNational","BahamasNational","BahrainNational","BangladeshNational","BarbadosNational","BelarusNational","BelgiumNational","BelizeNational","BeninNational","BermudaUKNational","BhutanNational","BoliviaPlurinationalStateofNational","BonaireNetherlandNational","BosniaandHerzegovinaNational","BotswanaNational","BrazilNational","BritishVirginIslandsUKNational","BruneiDarussalamNational","BulgariaNational","BurkinaFasoNational","BurundiNational","CambodiaNational","CameroonNational","CanadaNational","CanaryIslandsSpainNational","CapeVerdeNational","CaymanIslandsNational","CentralAfricanRepublicNational","ChadNational","ChannelIslandsUKNational","ChileNational","ChinaPRCandHongKongNational","ColombiaNational","ComorosNational","CongoDemocraticRepublicofNational","CongoRepublicofNational","CookIslandsNational","CostaRicaNational","Côted'IvoireNational","CroatiaNational","CubaNational","Curacao/NetherlandsAntillesNational","CyprusNational","CzechRepublicNational","DenmarkNational","DjiboutiNational","DominicaNational","DominicanRepublicNational","EcuadorNational","EgyptNational","ElSalvadorNational",{"$f":"_xlfn.CONCAT(BN$2,\"National\")","v":"EquatorialGuineaNational"},"EritreaNational","EstoniaNational","EswatiniNational","EthiopiaNational","FalklandIslandsUKNational","FaroeIslandsDenmarkNational","FijiNational","FinlandNational","FranceNational","FrenchGuianaNational","FrenchPolynesiaNational","GabonNational","GambiaNational","GeorgiaNational","GermanyNational","GhanaNational","GibraltarUKNational","GreeceNational","GreenlandNational","GrenadaNational","GuadeloupeFranceNational","GuamNational","GuatemalaNational","GuineaNational","GuineaBissauNational","GuyanaNational","HaitiNational","HondurasNational","HungaryNational","IcelandNational","IndiaNational","IndonesiaNational","IranIslamicRepublicofNational","IraqNational","IrelandNational","IsleofManUKNational","IsraelNational","ItalyNational","JamaicaNational","JapanNational","JordanNational","KazakhstanNational","KenyaNational","KiribatiNational","KoreaNorthDemocraticPeople'sRepublicofNational","KoreaSouthRepublicofNational","KosovoNational","KuwaitNational","KyrgyzstanNational","LaoPeople'sDemocraticRepublicNational","LatviaNational","LebanonNational","LesothoNational","LiberiaNational","LibyaNational","LiechtensteinNational","LithuaniaNational","LuxembourgNational","MadagascarNational","MadeiraPortugalNational","MalawiNational","MalaysiaNational","MaldivesNational",{"$f":"_xlfn.CONCAT(DZ$2,\"National\")","v":"MaliNational"},"MaltaNational","MarshallIslandsNational","MartiniqueFranceNational","MauritaniaNational","MauritiusNational","MayotteFranceNational","MexicoNational","MicronesiaNational","MoldovaRepublicofNational","MonacoNational","MongoliaNational","MontenegroNational","MontserratNational","MoroccoNational","MozambiqueNational","MyanmarNational","NamibiaNational","NauruNational","NepalNational","NetherlandsNational","NewCaledoniaFranceNational","NewZealandNational","NicaraguaNational","NigerNational","NigeriaNational","NiueNational","NorthMacedoniaRepublicofNational","NorthernMarianaIslandsUSNational","NorwayNational","OmanNational","PakistanNational","PalauNational","PalestinianAuthorityNational","PanamaNational","PapuaNewGuineaNational","ParaguayNational","PeruNational","PhilippinesNational","PolandNational","PortugalNational","PuertoRicoUSNational","QatarNational","ReunionFranceNational","RomaniaNational","RussianFederationNational","RwandaNational","SaintHelenaUKNational","SaintKittsandNevisNational","SaintLuciaNational","SaintMartinFranceNational","SaintPierreandMiquelonFranceNational","SaintVincentandGrenadinesNational","SamoaNational","SanMarinoNational","SaoTomé&PrincipeNational","SaudiArabiaNational","SenegalNational","SerbiaNational","SeychellesNational","SierraLeoneNational","SingaporeNational","SintMartinNetherlandsNational","SlovakRepublicNational",{"$f":"_xlfn.CONCAT(GL$2,\"National\")","v":"SloveniaNational"},"SolomonIslandsNational","SomaliaNational","SouthAfricaNational","SouthSudanNational","SpainNational","SriLankaNational","SudanNational","SurinameNational","SwedenNational","SwitzerlandNational","SyrianArabRepublicNational","TaiwanChineseTaipeiNational","TajikistanNational","TanzaniaUnitedRepublicofNational","ThailandNational","TimorLesteNational","TogoNational","TongaNational","TrinidadandTobagoNational","TunisiaNational","TurkeyNational","TurkmenistanNational","TurksandCaicosIslandsUKNational","TuvaluNational","UgandaNational","UkraineNational","UnitedArabEmiratesNational","UnitedKingdomNational","UnitedStatesNational","UruguayNational","UzbekistanNational","VanatuNational","VenezuelaBolivarianRepublicofNational","VietNamNational","VirginIslandsUSNational","YemenNational","ZambiaNational","ZimbabweNational"]
["AfghanistanNational","AlbaniaNational","AlgeriaNational","AmericanSamoaNational","AndorraNational","AngolaNational","AnguillaNational","AntiguaandBarbudaNational","ArgentinaNational","ArmeniaNational","ArubaNational","AustraliaNational","AustriaNational","AzerbaijanNational","AzoresPortugalNational","BahamasNational","BahrainNational","BangladeshNational","BarbadosNational","BelarusNational","BelgiumNational","BelizeNational","BeninNational","BermudaUKNational","BhutanNational","BoliviaNational","BonaireNetherlandNational","BosniaandHerzegovinaNational","BotswanaNational","BrazilNational","BritishVirginIslandsUKNational","BruneiDarussalamNational","BulgariaNational","BurkinaFasoNational","BurundiNational","CambodiaNational","CameroonNational","CanadaNational","CanaryIslandsSpainNational","CapeVerdeNational","CaymanIslandsNational","CentralAfricanRepublicNational","ChadNational","ChannelIslandsUKNational","ChileNational","ChinaNational","ColombiaNational","ComorosNational","CongoDemocraticRepublicofNational","CongoRepublicofNational","CookIslandsNational","CostaRicaNational","CotedIvoireNational","CroatiaNational","CubaNational","CuracaoNetherlandsAntillesNational","CyprusNational","CzechRepublicNational","DenmarkNational","DjiboutiNational","DominicaNational","DominicanRepublicNational","EcuadorNational","EgyptNational","ElSalvadorNational","EquatorialGuineaNational","EritreaNational","EstoniaNational","EswatiniNational","EthiopiaNational","FalklandIslandsUKNational","FaroeIslandsDenmarkNational","FijiNational","FinlandNational","FranceNational","FrenchGuianaNational","FrenchPolynesiaNational","GabonNational","GambiaNational","GeorgiaNational","GermanyNational","GhanaNational","GibraltarUKNational","GreeceNational","GreenlandNational","GrenadaNational","GuadeloupeFranceNational","GuamNational","GuatemalaNational","GuineaNational","GuineaBissauNational","GuyanaNational","HaitiNational","HondurasNational","HungaryNational","IcelandNational","IndiaNational","IndonesiaNational","IranNational","IraqNational","IrelandNational","IsleofManUKNational","IsraelNational","ItalyNational","JamaicaNational","JapanNational","JordanNational","KazakhstanNational","KenyaNational","KiribatiNational","KoreaNorthDemocraticPeoplesRepublicofNational","KoreaRepublicofNational","KosovoNational","KuwaitNational","KyrgyzstanNational","LaosNational","LatviaNational","LebanonNational","LesothoNational","LiberiaNational","LibyaNational","LiechtensteinNational","LithuaniaNational","LuxembourgNational","MadagascarNational","MadeiraPortugalNational","MalawiNational","MalaysiaNational","MaldivesNational","MaliNational","MaltaNational","MarshallIslandsNational","MartiniqueFranceNational","MauritaniaNational","MauritiusNational","MayotteFranceNational","MexicoNational","MicronesiaNational","MoldovaRepublicofNational","MonacoNational","MongoliaNational","MontenegroNational","MontserratNational","MoroccoNational","MozambiqueNational","MyanmarNational","NamibiaNational","NauruNational","NepalNational","NetherlandsNational","NewCaledoniaFranceNational","NewZealandNational","NicaraguaNational","NigerNational","NigeriaNational","NiueNational","NorthMacedoniaRepublicofNational","NorthernMarianaIslandsUSNational","NorwayNational","OmanNational","PakistanNational","PalauNational","PalestinianAuthorityNational","PanamaNational","PapuaNewGuineaNational","ParaguayNational","PeruNational","PhilippinesNational","PolandNational","PortugalNational","PuertoRicoUSNational","QatarNational","ReunionFranceNational","RomaniaNational","RussianFederationNational","RwandaNational","SaintHelenaUKNational","SaintKittsandNevisNational","SaintLuciaNational","SaintMartinFranceNational","SaintPierreandMiquelonFranceNational","SaintVincentandGrenadinesNational","SamoaNational","SanMarinoNational","SaoTomePrincipeNational","SaudiArabiaNational","SenegalNational","SerbiaNational","SeychellesNational","SierraLeoneNational","SingaporeNational","SintMartinNetherlandsNational","SlovakRepublicNational","SloveniaNational","SolomonIslandsNational","SomaliaNational","SouthAfricaNational","SouthSudanNational","SpainNational","SriLankaNational","SudanNational","SurinameNational","SwedenNational","SwitzerlandNational","SyrianArabRepublicNational","TaiwanNational","TajikistanNational","TanzaniaUnitedRepublicofNational","ThailandNational","TimorLesteNational","TogoNational","TongaNational","TrinidadandTobagoNational","TunisiaNational","TurkeyNational","TurkmenistanNational","TurksandCaicosIslandsUKNational","TuvaluNational","UgandaNational","UkraineNational","UnitedArabEmiratesNational","UnitedKingdomNational","UnitedStatesofAmericaNational","UruguayNational","UzbekistanNational","VanatuNational","VenezuelaBolivarianRepublicofNational","VietNamNational","VirginIslandsUSNational","YemenNational","ZambiaNational","ZimbabweNational"]
[413.89333333333337,0,528.40926413118075,752.5333333333333,188.13333333333333,1475.722105263158,752.5333333333333,752.5333333333333,478.1309977385622,390.15885416666669,752.5333333333333,807.80863719273145,241.93619813364018,533.74326383106461,752.5333333333333,752.5333333333333,726.35337482702585,527.92259306846097,749.27285223367699,399.56143942858239,251.55822500523499,403.0216666666667,745.35058179090413,752.5333333333333,0,603.61404629505728,752.5333333333333,1197.2185047864643,1486.0623029463914,283.76405130088011,752.5333333333333,681.15736260725998,911.47949777166912,752.5333333333333,413.89333333333337,1046.3155595145508,659.45187013002328,371.52151762409591,752.5333333333333,752.5333333333333,752.5333333333333,188.13333333333333,752.5333333333333,752.5333333333333,656.60621583187299,898.90636354677292,409.71074730147222,752.5333333333333,0,659.35248281124836,752.5333333333333,107.77421052631581,466.26367667707393,294.31925176012999,558.9481039339073,876.47368421052636,750.57894736842104,901.55574913520968,361.63560713855048,752.5333333333333,752.5333333333333,601.24214799644926,560.27269075299523,553.84226605880474,547.4921052631579,632.43284947523387,915.28421052631586,1056.9384728916884,0,0,752.5333333333333,752.5333333333333,639.65333333333331,266.65093129253086,158.13943258655422,423.4290196078432,752.5333333333333,945.81402169996431,752.5333333333333,288.875,649.68994047557226,494.76036372488221,778.95789473684215,507.12458051048588,264.01263157894732,752.5333333333333,752.5333333333333,752.5333333333333,797.82021654724326,752.5333333333333,752.5333333333333,846.58450481104887,1047.6842105263158,661.51473684210532,295.87867165691199,0,950.92171086823976,783.46795097088216,592.09778374368841,1080.3692355487624,380.23784032189218,436.26666666666671,394.16083084258253,414.46157359502132,710.77986154859832,471.44868157144055,528.58115483997267,797.1751202338512,573.97894736842102,752.5333333333333,754.13804349403108,555.32213373870559,1145.0674874178146,675.1492372215954,217.14621167186183,1069.072340425532,239.85341541279956,793.95789473684215,0,677.28,667.51930829861703,150.50666666666663,210.53740239018973,220.20817983218129,875.73684210526324,662.78198198198197,489.14666666666665,550.98890691619533,752.5333333333333,1076.2526315789476,519.67257192478121,752.5333333333333,752.5333333333333,752.5333333333333,700.44635381945307,752.5333333333333,531.43352435787062,752.5333333333333,540.87135429556452,158.13943258655422,1366.3251553188454,899.15744680851071,752.5333333333333,728.54654937893292,233.84260480422304,719.2616250234438,355.02449160074451,752.5333333333333,0,326.08578087788777,779.40909090909076,246.03160615769772,675.27473684210531,772.1052631578948,525.9375,752.5333333333333,850.87123062811906,752.5333333333333,46.648638305623805,478.68408732627006,591.91609404656629,752.5333333333333,718.83157894736848,477.48425394808527,597.20701754385959,0,473.08044673957784,671.62321414342364,828.30808243659385,389.25330847668147,596.4016877637132,502.98958333333337,772.40784313725487,489.44671948839789,475.674492779324,712.28121212121198,752.5333333333333,752.5333333333333,752.5333333333333,752.5333333333333,752.5333333333333,752.5333333333333,752.5333333333333,414.46157359502132,752.5333333333333,591.70517021996,870.16014500976235,1085.5814954843274,752.5333333333333,489.14666666666665,378.57942154878987,752.5333333333333,331.87545826708657,619.92161297153825,752.5333333333333,752.5333333333333,1070.2178314438704,889.81052631578962,401.73041920145641,730.74549790714354,735.54631578947374,1028.621052631579,67.97085117532265,48.04569053728649,712.51275273627789,484.07714954481844,255.35106382978731,530.53994868732809,450.49089591001541,752.5333333333333,859.25309119305632,752.5333333333333,559.28688693593676,467.73213005134238,376.20850365060193,927.29166666666674,752.5333333333333,752.5333333333333,279.00157894736839,768.26104335145533,556.48201924016155,380.37122403282041,416.4283665521271,173.95837727191261,612.28332712322947,752.5333333333333,710.92039129200293,560.4410611676584,650.30572390572388,807.29319375841658,416.40860304340589,1575.3007845098518,{"$f":"_xlfn.CONCAT(\"UnitedStatesofAmerica\",SUBSTITUTE(SUBSTITUTE(HY$1,\" \",\"\"),\"/\",\"\"))","v":"UnitedStatesofAmericaASCCAlaskaGrid"},{"$f":"_xlfn.CONCAT(\"UnitedStatesofAmerica\",SUBSTITUTE(SUBSTITUTE(HZ$1,\" \",\"\"),\"/\",\"\"))","v":"UnitedStatesofAmericaASCCMiscellaneous"},"UnitedStatesofAmericaWECCSouthwest","UnitedStatesofAmericaWECCCalifornia","UnitedStatesofAmericaERCOTAll","UnitedStatesofAmericaFRCCAll","UnitedStatesofAmericaHICCMiscellaneous","UnitedStatesofAmericaHICCOahu","UnitedStatesofAmericaMROEast","UnitedStatesofAmericaMROWest","UnitedStatesofAmericaNPCCNewEngland","UnitedStatesofAmericaWECCNorthwest","UnitedStatesofAmericaNPCCNYCWestchester","UnitedStatesofAmericaNPCCLongIsland","UnitedStatesofAmericaNPCCUpstateNY","UnitedStatesofAmericaPuertoRicoMiscellaneous","UnitedStatesofAmericaRFCEast","UnitedStatesofAmericaRFCMichigan","UnitedStatesofAmericaRFCWest","UnitedStatesofAmericaWECCRockies","UnitedStatesofAmericaSPPNorth","UnitedStatesofAmericaSPPSouth","UnitedStatesofAmericaSERCMississippiValley","UnitedStatesofAmericaSERCMidwest","UnitedStatesofAmericaSERCSouth","UnitedStatesofAmericaSERCTennesseeValley","UnitedStatesofAmericaSERCVirginiaCarolina"]
[{"$f":"A$5/1000","v":0.41389333333333339},{"$f":"B$5/1000","v":0},0.52840926413118072,0.75253333333333328,0.18813333333333332,1.4757221052631579,0.75253333333333328,0.75253333333333328,0.47813099773856221,0.39015885416666668,0.75253333333333328,0.80780863719273144,0.24193619813364017,0.53374326383106463,0.75253333333333328,0.75253333333333328,0.72635337482702589,0.52792259306846101,0.74927285223367701,0.39956143942858241,0.251558225005235,0.40302166666666672,0.74535058179090408,0.75253333333333328,0,0.60361404629505733,0.75253333333333328,1.1972185047864643,1.4860623029463913,0.28376405130088012,0.75253333333333328,0.68115736260726001,0.91147949777166914,0.75253333333333328,0.41389333333333339,1.0463155595145508,0.65945187013002327,0.37152151762409591,0.75253333333333328,0.75253333333333328,0.75253333333333328,0.18813333333333332,0.75253333333333328,0.75253333333333328,0.65660621583187295,0.89890636354677289,0.40971074730147222,0.75253333333333328,0,0.65935248281124836,0.75253333333333328,0.10777421052631581,0.46626367667707391,0.29431925176012996,0.55894810393390726,0.8764736842105264,0.75057894736842101,0.90155574913520964,0.36163560713855047,0.75253333333333328,0.75253333333333328,0.60124214799644926,0.56027269075299524,0.55384226605880471,0.54749210526315795,{"$f":"BN$5/1000","v":0.63243284947523382},0.91528421052631581,1.0569384728916884,0,0,0.75253333333333328,0.75253333333333328,0.6396533333333333,0.26665093129253087,0.15813943258655422,0.42342901960784318,0.75253333333333328,0.94581402169996431,0.75253333333333328,0.28887499999999999,0.64968994047557227,0.49476036372488219,0.77895789473684218,0.50712458051048592,0.26401263157894733,0.75253333333333328,0.75253333333333328,0.75253333333333328,0.79782021654724322,0.75253333333333328,0.75253333333333328,0.84658450481104885,1.0476842105263158,0.66151473684210527,0.29587867165691201,0,0.95092171086823973,0.78346795097088218,0.59209778374368838,1.0803692355487624,0.38023784032189217,0.43626666666666669,0.39416083084258252,0.41446157359502134,0.71077986154859829,0.47144868157144054,0.5285811548399727,0.79717512023385118,0.57397894736842103,0.75253333333333328,0.75413804349403113,0.55532213373870554,1.1450674874178146,0.67514923722159537,0.21714621167186182,1.069072340425532,0.23985341541279956,0.7939578947368422,0,0.67727999999999999,0.66751930829861705,0.15050666666666662,0.21053740239018973,0.2202081798321813,0.87573684210526326,0.66278198198198202,0.48914666666666667,0.55098890691619529,0.75253333333333328,{"$f":"DZ$5/1000","v":1.0762526315789476},0.51967257192478122,0.75253333333333328,0.75253333333333328,0.75253333333333328,0.70044635381945308,0.75253333333333328,0.53143352435787061,0.75253333333333328,0.54087135429556454,0.15813943258655422,1.3663251553188454,0.89915744680851073,0.75253333333333328,0.72854654937893293,0.23384260480422303,0.71926162502344382,0.35502449160074451,0.75253333333333328,0,0.32608578087788775,0.77940909090909072,0.24603160615769773,0.67527473684210526,0.77210526315789485,0.52593749999999995,0.75253333333333328,0.85087123062811909,0.75253333333333328,4.6648638305623803E-2,0.47868408732627005,0.59191609404656631,0.75253333333333328,0.71883157894736849,0.47748425394808525,0.59720701754385963,0,0.47308044673957783,0.67162321414342363,0.82830808243659382,0.38925330847668149,0.59640168776371316,0.50298958333333332,0.77240784313725486,0.48944671948839791,0.475674492779324,0.71228121212121198,0.75253333333333328,0.75253333333333328,0.75253333333333328,0.75253333333333328,0.75253333333333328,0.75253333333333328,0.75253333333333328,0.41446157359502134,0.75253333333333328,0.59170517021995994,0.87016014500976235,1.0855814954843275,0.75253333333333328,0.48914666666666667,0.37857942154878987,0.75253333333333328,0.33187545826708659,{"$f":"GL$5/1000","v":0.61992161297153825},0.75253333333333328,0.75253333333333328,1.0702178314438704,0.88981052631578961,0.40173041920145641,0.73074549790714349,0.73554631578947371,1.0286210526315791,6.7970851175322644E-2,4.8045690537286488E-2,0.7125127527362779,0.48407714954481845,0.25535106382978728,0.53053994868732812,0.4504908959100154,0.75253333333333328,0.85925309119305637,0.75253333333333328,0.55928688693593676,0.4677321300513424,0.37620850365060193,0.92729166666666674,0.75253333333333328,0.75253333333333328,0.27900157894736838,0.76826104335145529,0.5564820192401615,0.38037122403282042,0.41642836655212712,0.1739583772719126,0.61228332712322942,0.75253333333333328,0.71092039129200291,0.56044106116765835,0.65030572390572383,0.80729319375841657,0.41640860304340588,1.5753007845098519,{"$f":"HY$2/2204.62","v":0.60028712431167275},{"$f":"HZ$2/2204.62","v":0.69074625105460363},0.62351380283223423,0.45809164391142237,0.59070542769275436,0.46011875062369023,0.70390543495024094,0.80104779962079642,0.74319655995137479,0.82667761337554779,0.40230833431611801,0.75468742912610798,0.44062967767687861,0.57272772632018221,0.39939309268717516,0.76149676588255577,0.56202474802913882,0.78768359173009406,0.82652339178633971,0.75330986746015183,0.89986709727753544,0.68984541553646439,0.51756538541789521,0.85257686131850385,0.60927642859086828,0.68989712512814005,0.60384964302238031]
[]
[]
[]
[]
["AfghanistanGridNational","AlbaniaGridNational","AlgeriaGridNational","AmericanSamoaGridNational","AndorraGridNational","AngolaGridNational","AnguillaGridNational","AntiguaandBarbudaGridNational","ArgentinaGridNational","ArmeniaGridNational","ArubaGridNational","AustraliaGridNational","AustriaGridNational","AzerbaijanGridNational","AzoresPortugalGridNational","BahamasGridNational","BahrainGridNational","BangladeshGridNational","BarbadosGridNational","BelarusGridNational","BelgiumGridNational","BelizeGridNational","BeninGridNational","BermudaUKGridNational","BhutanGridNational","BoliviaGridNational","BonaireNetherlandGridNational","BosniaandHerzegovinaGridNational","BotswanaGridNational","BrazilGridNational","BritishVirginIslandsUKGridNational","BruneiDarussalamGridNational","BulgariaGridNational","BurkinaFasoGridNational","BurundiGridNational","CambodiaGridNational","CameroonGridNational","CanadaGridNational","CanaryIslandsSpainGridNational","CapeVerdeGridNational","CaymanIslandsGridNational","CentralAfricanRepublicGridNational","ChadGridNational","ChannelIslandsUKGridNational","ChileGridNational","ChinaGridNational","ColombiaGridNational","ComorosGridNational","CongoDemocraticRepublicofGridNational","CongoRepublicofGridNational","CookIslandsGridNational","CostaRicaGridNational","CotedIvoireGridNational","CroatiaGridNational","CubaGridNational","CuracaoNetherlandsAntillesGridNational","CyprusGridNational","CzechRepublicGridNational","DenmarkGridNational","DjiboutiGridNational","DominicaGridNational","DominicanRepublicGridNational","EcuadorGridNational","EgyptGridNational","ElSalvadorGridNational","EquatorialGuineaGridNational","EritreaGridNational","EstoniaGridNational","EswatiniGridNational","EthiopiaGridNational","FalklandIslandsUKGridNational","FaroeIslandsDenmarkGridNational","FijiGridNational","FinlandGridNational","FranceGridNational","FrenchGuianaGridNational","FrenchPolynesiaGridNational","GabonGridNational","GambiaGridNational","GeorgiaGridNational","GermanyGridNational","GhanaGridNational","GibraltarUKGridNational","GreeceGridNational","GreenlandGridNational","GrenadaGridNational","GuadeloupeFranceGridNational","GuamGridNational","GuatemalaGridNational","GuineaGridNational","GuineaBissauGridNational","GuyanaGridNational","HaitiGridNational","HondurasGridNational","HungaryGridNational","IcelandGridNational","IndiaGridNational","IndonesiaGridNational","IranGridNational","IraqGridNational","IrelandGridNational","IsleofManUKGridNational","IsraelGridNational","ItalyGridNational","JamaicaGridNational","JapanGridNational","JordanGridNational","KazakhstanGridNational","KenyaGridNational","KiribatiGridNational","KoreaNorthDemocraticPeoplesRepublicofGridNational","KoreaRepublicofGridNational","KosovoGridNational","KuwaitGridNational","KyrgyzstanGridNational","LaosGridNational","LatviaGridNational","LebanonGridNational","LesothoGridNational","LiberiaGridNational","LibyaGridNational","LiechtensteinGridNational","LithuaniaGridNational","LuxembourgGridNational","MadagascarGridNational","MadeiraPortugalGridNational","MalawiGridNational","MalaysiaGridNational","MaldivesGridNational","MaliGridNational","MaltaGridNational","MarshallIslandsGridNational","MartiniqueFranceGridNational","MauritaniaGridNational","MauritiusGridNational","MayotteFranceGridNational","MexicoGridNational","MicronesiaGridNational","MoldovaRepublicofGridNational","MonacoGridNational","MongoliaGridNational","MontenegroGridNational","MontserratGridNational","MoroccoGridNational","MozambiqueGridNational","MyanmarGridNational","NamibiaGridNational","NauruGridNational","NepalGridNational","NetherlandsGridNational","NewCaledoniaFranceGridNational","NewZealandGridNational","NicaraguaGridNational","NigerGridNational","NigeriaGridNational","NiueGridNational","NorthMacedoniaRepublicofGridNational","NorthernMarianaIslandsUSGridNational","NorwayGridNational","OmanGridNational","PakistanGridNational","PalauGridNational","PalestinianAuthorityGridNational","PanamaGridNational","PapuaNewGuineaGridNational","ParaguayGridNational","PeruGridNational","PhilippinesGridNational","PolandGridNational","PortugalGridNational","PuertoRicoUSGridNational","QatarGridNational","ReunionFranceGridNational","RomaniaGridNational","RussianFederationGridNational","RwandaGridNational","SaintHelenaUKGridNational","SaintKittsandNevisGridNational","SaintLuciaGridNational","SaintMartinFranceGridNational","SaintPierreandMiquelonFranceGridNational","SaintVincentandGrenadinesGridNational","SamoaGridNational","SanMarinoGridNational","SaoTomePrincipeGridNational","SaudiArabiaGridNational","SenegalGridNational","SerbiaGridNational","SeychellesGridNational","SierraLeoneGridNational","SingaporeGridNational","SintMartinNetherlandsGridNational","SlovakRepublicGridNational","SloveniaGridNational","SolomonIslandsGridNational","SomaliaGridNational","SouthAfricaGridNational","SouthSudanGridNational","SpainGridNational","SriLankaGridNational","SudanGridNational","SurinameGridNational","SwedenGridNational","SwitzerlandGridNational","SyrianArabRepublicGridNational","TaiwanGridNational","TajikistanGridNational","TanzaniaUnitedRepublicofGridNational","ThailandGridNational","TimorLesteGridNational","TogoGridNational","TongaGridNational","TrinidadandTobagoGridNational","TunisiaGridNational","TurkeyGridNational","TurkmenistanGridNational","TurksandCaicosIslandsUKGridNational","TuvaluGridNational","UgandaGridNational","UkraineGridNational","UnitedArabEmiratesGridNational","UnitedKingdomGridNational","UnitedStatesofAmericaGridNational","UruguayGridNational","UzbekistanGridNational","VanatuGridNational","VenezuelaBolivarianRepublicofGridNational","VietNamGridNational","VirginIslandsUSGridNational","YemenGridNational","ZambiaGridNational","ZimbabweGridNational","UnitedStatesofAmericaGridASCCAlaskaGrid","UnitedStatesofAmericaGridASCCMiscellaneous","UnitedStatesofAmericaGridWECCSouthwest","UnitedStatesofAmericaGridWECCCalifornia","UnitedStatesofAmericaGridERCOTAll","UnitedStatesofAmericaGridFRCCAll","UnitedStatesofAmericaGridHICCMiscellaneous","UnitedStatesofAmericaGridHICCOahu","UnitedStatesofAmericaGridMROEast","UnitedStatesofAmericaGridMROWest","UnitedStatesofAmericaGridNPCCNewEngland","UnitedStatesofAmericaGridWECCNorthwest","UnitedStatesofAmericaGridNPCCNYCWestchester","UnitedStatesofAmericaGridNPCCLongIsland","UnitedStatesofAmericaGridNPCCUpstateNY","UnitedStatesofAmericaGridPuertoRicoMiscellaneous","UnitedStatesofAmericaGridRFCEast","UnitedStatesofAmericaGridRFCMichigan","UnitedStatesofAmericaGridRFCWest","UnitedStatesofAmericaGridWECCRockies","UnitedStatesofAmericaGridSPPNorth","UnitedStatesofAmericaGridSPPSouth","UnitedStatesofAmericaGridSERCMississippiValley","UnitedStatesofAmericaGridSERCMidwest","UnitedStatesofAmericaGridSERCSouth","UnitedStatesofAmericaGridSERCTennesseeValley","UnitedStatesofAmericaGridSERCVirginiaCarolina"]
[0.41389333333333339,0,0.52840926413118072,0.75253333333333328,0.18813333333333332,1.4757221052631579,0.75253333333333328,0.75253333333333328,0.47813099773856221,0.39015885416666668,0.75253333333333328,0.80780863719273144,0.24193619813364017,0.53374326383106463,0.75253333333333328,0.75253333333333328,0.72635337482702589,0.52792259306846101,0.74927285223367701,0.39956143942858241,0.251558225005235,0.40302166666666672,0.74535058179090408,0.75253333333333328,0,0.60361404629505733,0.75253333333333328,1.1972185047864643,1.4860623029463913,0.28376405130088012,0.75253333333333328,0.68115736260726001,0.91147949777166914,0.75253333333333328,0.41389333333333339,1.0463155595145508,0.65945187013002327,0.37152151762409591,0.75253333333333328,0.75253333333333328,0.75253333333333328,0.18813333333333332,0.75253333333333328,0.75253333333333328,0.65660621583187295,0.89890636354677289,0.40971074730147222,0.75253333333333328,0,0.65935248281124836,0.75253333333333328,0.10777421052631581,0.46626367667707391,0.29431925176012996,0.55894810393390726,0.8764736842105264,0.75057894736842101,0.90155574913520964,0.36163560713855047,0.75253333333333328,0.75253333333333328,0.60124214799644926,0.56027269075299524,0.55384226605880471,0.54749210526315795,0.63243284947523382,0.91528421052631581,1.0569384728916884,0,0,0.75253333333333328,0.75253333333333328,0.6396533333333333,0.26665093129253087,0.15813943258655422,0.42342901960784318,0.75253333333333328,0.94581402169996431,0.75253333333333328,0.28887499999999999,0.64968994047557227,0.49476036372488219,0.77895789473684218,0.50712458051048592,0.26401263157894733,0.75253333333333328,0.75253333333333328,0.75253333333333328,0.79782021654724322,0.75253333333333328,0.75253333333333328,0.84658450481104885,1.0476842105263158,0.66151473684210527,0.29587867165691201,0,0.95092171086823973,0.78346795097088218,0.59209778374368838,1.0803692355487624,0.38023784032189217,0.43626666666666669,0.39416083084258252,0.41446157359502134,0.71077986154859829,0.47144868157144054,0.5285811548399727,0.79717512023385118,0.57397894736842103,0.75253333333333328,0.75413804349403113,0.55532213373870554,1.1450674874178146,0.67514923722159537,0.21714621167186182,1.069072340425532,0.23985341541279956,0.7939578947368422,0,0.67727999999999999,0.66751930829861705,0.15050666666666662,0.21053740239018973,0.2202081798321813,0.87573684210526326,0.66278198198198202,0.48914666666666667,0.55098890691619529,0.75253333333333328,1.0762526315789476,0.51967257192478122,0.75253333333333328,0.75253333333333328,0.75253333333333328,0.70044635381945308,0.75253333333333328,0.53143352435787061,0.75253333333333328,0.54087135429556454,0.15813943258655422,1.3663251553188454,0.89915744680851073,0.75253333333333328,0.72854654937893293,0.23384260480422303,0.71926162502344382,0.35502449160074451,0.75253333333333328,0,0.32608578087788775,0.77940909090909072,0.24603160615769773,0.67527473684210526,0.77210526315789485,0.52593749999999995,0.75253333333333328,0.85087123062811909,0.75253333333333328,4.6648638305623803E-2,0.47868408732627005,0.59191609404656631,0.75253333333333328,0.71883157894736849,0.47748425394808525,0.59720701754385963,0,0.47308044673957783,0.67162321414342363,0.82830808243659382,0.38925330847668149,0.59640168776371316,0.50298958333333332,0.77240784313725486,0.48944671948839791,0.475674492779324,0.71228121212121198,0.75253333333333328,0.75253333333333328,0.75253333333333328,0.75253333333333328,0.75253333333333328,0.75253333333333328,0.75253333333333328,0.41446157359502134,0.75253333333333328,0.59170517021995994,0.87016014500976235,1.0855814954843275,0.75253333333333328,0.48914666666666667,0.37857942154878987,0.75253333333333328,0.33187545826708659,0.61992161297153825,0.75253333333333328,0.75253333333333328,1.0702178314438704,0.88981052631578961,0.40173041920145641,0.73074549790714349,0.73554631578947371,1.0286210526315791,6.7970851175322644E-2,4.8045690537286488E-2,0.7125127527362779,0.48407714954481845,0.25535106382978728,0.53053994868732812,0.4504908959100154,0.75253333333333328,0.85925309119305637,0.75253333333333328,0.55928688693593676,0.4677321300513424,0.37620850365060193,0.92729166666666674,0.75253333333333328,0.75253333333333328,0.27900157894736838,0.76826104335145529,0.5564820192401615,0.38037122403282042,0.41642836655212712,0.1739583772719126,0.61228332712322942,0.75253333333333328,0.71092039129200291,0.56044106116765835,0.65030572390572383,0.80729319375841657,0.41640860304340588,1.5753007845098519,0.60028712431167275,0.69074625105460363,0.62351380283223423,0.45809164391142237,0.59070542769275436,0.46011875062369023,0.70390543495024094,0.80104779962079642,0.74319655995137479,0.82667761337554779,0.40230833431611801,0.75468742912610798,0.44062967767687861,0.57272772632018221,0.39939309268717516,0.76149676588255577,0.56202474802913882,0.78768359173009406,0.82652339178633971,0.75330986746015183,0.89986709727753544,0.68984541553646439,0.51756538541789521,0.85257686131850385,0.60927642859086828,0.68989712512814005,0.60384964302238031]
[]
["AfghanistanGrid","AlbaniaGrid","AlgeriaGrid","AmericanSamoaGrid","AndorraGrid","AngolaGrid","AnguillaGrid","AntiguaandBarbudaGrid","ArgentinaGrid","ArmeniaGrid","ArubaGrid","AustraliaGrid","AustriaGrid","AzerbaijanGrid","AzoresPortugalGrid","BahamasGrid","BahrainGrid","BangladeshGrid","BarbadosGrid","BelarusGrid","BelgiumGrid","BelizeGrid","BeninGrid","BermudaUKGrid","BhutanGrid","BoliviaGrid","BonaireNetherlandGrid","BosniaandHerzegovinaGrid","BotswanaGrid","BrazilGrid","BritishVirginIslandsUKGrid","BruneiDarussalamGrid","BulgariaGrid","BurkinaFasoGrid","BurundiGrid","CambodiaGrid","CameroonGrid","CanadaGrid","CanaryIslandsSpainGrid","CapeVerdeGrid","CaymanIslandsGrid","CentralAfricanRepublicGrid","ChadGrid","ChannelIslandsUKGrid","ChileGrid","ChinaGrid","ColombiaGrid","ComorosGrid","CongoDemocraticRepublicofGrid","CongoRepublicofGrid","CookIslandsGrid","CostaRicaGrid","CotedIvoireGrid","CroatiaGrid","CubaGrid","CuracaoNetherlandsAntillesGrid","CyprusGrid","CzechRepublicGrid","DenmarkGrid","DjiboutiGrid","DominicaGrid","DominicanRepublicGrid","EcuadorGrid","EgyptGrid","ElSalvadorGrid","EquatorialGuineaGrid","EritreaGrid","EstoniaGrid","EswatiniGrid","EthiopiaGrid","FalklandIslandsUKGrid","FaroeIslandsDenmarkGrid","FijiGrid","FinlandGrid","FranceGrid","FrenchGuianaGrid","FrenchPolynesiaGrid","GabonGrid","GambiaGrid","GeorgiaGrid","GermanyGrid","GhanaGrid","GibraltarUKGrid","GreeceGrid","GreenlandGrid","GrenadaGrid","GuadeloupeFranceGrid","GuamGrid","GuatemalaGrid","GuineaGrid","GuineaBissauGrid","GuyanaGrid","HaitiGrid","HondurasGrid","HungaryGrid","IcelandGrid","IndiaGrid","IndonesiaGrid","IranGrid","IraqGrid","IrelandGrid","IsleofManUKGrid","IsraelGrid","ItalyGrid","JamaicaGrid","JapanGrid","JordanGrid","KazakhstanGrid","KenyaGrid","KiribatiGrid","KoreaNorthDemocraticPeoplesRepublicofGrid","KoreaRepublicofGrid","KosovoGrid","KuwaitGrid","KyrgyzstanGrid","LaosGrid","LatviaGrid","LebanonGrid","LesothoGrid","LiberiaGrid","LibyaGrid","LiechtensteinGrid","LithuaniaGrid","LuxembourgGrid","MadagascarGrid","MadeiraPortugalGrid","MalawiGrid","MalaysiaGrid","MaldivesGrid","MaliGrid","MaltaGrid","MarshallIslandsGrid","MartiniqueFranceGrid","MauritaniaGrid","MauritiusGrid","MayotteFranceGrid","MexicoGrid","MicronesiaGrid","MoldovaRepublicofGrid","MonacoGrid","MongoliaGrid","MontenegroGrid","MontserratGrid","MoroccoGrid","MozambiqueGrid","MyanmarGrid","NamibiaGrid","NauruGrid","NepalGrid","NetherlandsGrid","NewCaledoniaFranceGrid","NewZealandGrid","NicaraguaGrid","NigerGrid","NigeriaGrid","NiueGrid","NorthMacedoniaRepublicofGrid","NorthernMarianaIslandsUSGrid","NorwayGrid","OmanGrid","PakistanGrid","PalauGrid","PalestinianAuthorityGrid","PanamaGrid","PapuaNewGuineaGrid","ParaguayGrid","PeruGrid","PhilippinesGrid","PolandGrid","PortugalGrid","PuertoRicoUSGrid","QatarGrid","ReunionFranceGrid","RomaniaGrid","RussianFederationGrid","RwandaGrid","SaintHelenaUKGrid","SaintKittsandNevisGrid","SaintLuciaGrid","SaintMartinFranceGrid","SaintPierreandMiquelonFranceGrid","SaintVincentandGrenadinesGrid","SamoaGrid","SanMarinoGrid","SaoTomePrincipeGrid","SaudiArabiaGrid","SenegalGrid","SerbiaGrid","SeychellesGrid","SierraLeoneGrid","SingaporeGrid","SintMartinNetherlandsGrid","SlovakRepublicGrid","SloveniaGrid","SolomonIslandsGrid","SomaliaGrid","SouthAfricaGrid","SouthSudanGrid","SpainGrid","SriLankaGrid","SudanGrid","SurinameGrid","SwedenGrid","SwitzerlandGrid","SyrianArabRepublicGrid","TaiwanGrid","TajikistanGrid","TanzaniaUnitedRepublicofGrid","ThailandGrid","TimorLesteGrid","TogoGrid","TongaGrid","TrinidadandTobagoGrid","TunisiaGrid","TurkeyGrid","TurkmenistanGrid","TurksandCaicosIslandsUKGrid","TuvaluGrid","UgandaGrid","UkraineGrid","UnitedArabEmiratesGrid","UnitedKingdomGrid","UnitedStatesofAmericaGrid","UruguayGrid","UzbekistanGrid","VanatuGrid","VenezuelaBolivarianRepublicofGrid","VietNamGrid","VirginIslandsUSGrid","YemenGrid","ZambiaGrid","ZimbabweGrid"]
[{"$f":"_xlfn.CONCAT(A$14,\"National\")","v":"AfghanistanGridNational"},{"$f":"_xlfn.CONCAT(B$14,\"National\")","v":"AlbaniaGridNational"},"AlgeriaGridNational","AmericanSamoaGridNational","AndorraGridNational","AngolaGridNational","AnguillaGridNational","AntiguaandBarbudaGridNational","ArgentinaGridNational","ArmeniaGridNational","ArubaGridNational","AustraliaGridNational","AustriaGridNational","AzerbaijanGridNational","AzoresPortugalGridNational","BahamasGridNational","BahrainGridNational","BangladeshGridNational","BarbadosGridNational","BelarusGridNational","BelgiumGridNational","BelizeGridNational","BeninGridNational","BermudaUKGridNational","BhutanGridNational","BoliviaGridNational","BonaireNetherlandGridNational","BosniaandHerzegovinaGridNational","BotswanaGridNational","BrazilGridNational","BritishVirginIslandsUKGridNational","BruneiDarussalamGridNational","BulgariaGridNational","BurkinaFasoGridNational","BurundiGridNational","CambodiaGridNational","CameroonGridNational","CanadaGridNational","CanaryIslandsSpainGridNational","CapeVerdeGridNational","CaymanIslandsGridNational","CentralAfricanRepublicGridNational","ChadGridNational","ChannelIslandsUKGridNational","ChileGridNational","ChinaGridNational","ColombiaGridNational","ComorosGridNational","CongoDemocraticRepublicofGridNational","CongoRepublicofGridNational","CookIslandsGridNational","CostaRicaGridNational","CotedIvoireGridNational","CroatiaGridNational","CubaGridNational","CuracaoNetherlandsAntillesGridNational","CyprusGridNational","CzechRepublicGridNational","DenmarkGridNational","DjiboutiGridNational","DominicaGridNational","DominicanRepublicGridNational","EcuadorGridNational","EgyptGridNational","ElSalvadorGridNational",{"$f":"_xlfn.CONCAT(BN$14,\"National\")","v":"EquatorialGuineaGridNational"},"EritreaGridNational","EstoniaGridNational","EswatiniGridNational","EthiopiaGridNational","FalklandIslandsUKGridNational","FaroeIslandsDenmarkGridNational","FijiGridNational","FinlandGridNational","FranceGridNational","FrenchGuianaGridNational","FrenchPolynesiaGridNational","GabonGridNational","GambiaGridNational","GeorgiaGridNational","GermanyGridNational","GhanaGridNational","GibraltarUKGridNational","GreeceGridNational","GreenlandGridNational","GrenadaGridNational","GuadeloupeFranceGridNational","GuamGridNational","GuatemalaGridNational","GuineaGridNational","GuineaBissauGridNational","GuyanaGridNational","HaitiGridNational","HondurasGridNational","HungaryGridNational","IcelandGridNational","IndiaGridNational","IndonesiaGridNational","IranGridNational","IraqGridNational","IrelandGridNational","IsleofManUKGridNational","IsraelGridNational","ItalyGridNational","JamaicaGridNational","JapanGridNational","JordanGridNational","KazakhstanGridNational","KenyaGridNational","KiribatiGridNational","KoreaNorthDemocraticPeoplesRepublicofGridNational","KoreaRepublicofGridNational","KosovoGridNational","KuwaitGridNational","KyrgyzstanGridNational","LaosGridNational","LatviaGridNational","LebanonGridNational","LesothoGridNational","LiberiaGridNational","LibyaGridNational","LiechtensteinGridNational","LithuaniaGridNational","LuxembourgGridNational","MadagascarGridNational","MadeiraPortugalGridNational","MalawiGridNational","MalaysiaGridNational","MaldivesGridNational",{"$f":"_xlfn.CONCAT(DZ$14,\"National\")","v":"MaliGridNational"},"MaltaGridNational","MarshallIslandsGridNational","MartiniqueFranceGridNational","MauritaniaGridNational","MauritiusGridNational","MayotteFranceGridNational","MexicoGridNational","MicronesiaGridNational","MoldovaRepublicofGridNational","MonacoGridNational","MongoliaGridNational","MontenegroGridNational","MontserratGridNational","MoroccoGridNational","MozambiqueGridNational","MyanmarGridNational","NamibiaGridNational","NauruGridNational","NepalGridNational","NetherlandsGridNational","NewCaledoniaFranceGridNational","NewZealandGridNational","NicaraguaGridNational","NigerGridNational","NigeriaGridNational","NiueGridNational","NorthMacedoniaRepublicofGridNational","NorthernMarianaIslandsUSGridNational","NorwayGridNational","OmanGridNational","PakistanGridNational","PalauGridNational","PalestinianAuthorityGridNational","PanamaGridNational","PapuaNewGuineaGridNational","ParaguayGridNational","PeruGridNational","PhilippinesGridNational","PolandGridNational","PortugalGridNational","PuertoRicoUSGridNational","QatarGridNational","ReunionFranceGridNational","RomaniaGridNational","RussianFederationGridNational","RwandaGridNational","SaintHelenaUKGridNational","SaintKittsandNevisGridNational","SaintLuciaGridNational","SaintMartinFranceGridNational","SaintPierreandMiquelonFranceGridNational","SaintVincentandGrenadinesGridNational","SamoaGridNational","SanMarinoGridNational","SaoTomePrincipeGridNational","SaudiArabiaGridNational","SenegalGridNational","SerbiaGridNational","SeychellesGridNational","SierraLeoneGridNational","SingaporeGridNational","SintMartinNetherlandsGridNational","SlovakRepublicGridNational",{"$f":"_xlfn.CONCAT(GL$14,\"National\")","v":"SloveniaGridNational"},"SolomonIslandsGridNational","SomaliaGridNational","SouthAfricaGridNational","SouthSudanGridNational","SpainGridNational","SriLankaGridNational","SudanGridNational","SurinameGridNational","SwedenGridNational","SwitzerlandGridNational","SyrianArabRepublicGridNational","TaiwanGridNational","TajikistanGridNational","TanzaniaUnitedRepublicofGridNational","ThailandGridNational","TimorLesteGridNational","TogoGridNational","TongaGridNational","TrinidadandTobagoGridNational","TunisiaGridNational","TurkeyGridNational","TurkmenistanGridNational","TurksandCaicosIslandsUKGridNational","TuvaluGridNational","UgandaGridNational","UkraineGridNational","UnitedArabEmiratesGridNational","UnitedKingdomGridNational","UnitedStatesofAmericaGridNational","UruguayGridNational","UzbekistanGridNational","VanatuGridNational","VenezuelaBolivarianRepublicofGridNational","VietNamGridNational","VirginIslandsUSGridNational","YemenGridNational","ZambiaGridNational","ZimbabweGridNational","UnitedStatesofAmericaGridASCCAlaskaGrid","UnitedStatesofAmericaGridASCCMiscellaneous","UnitedStatesofAmericaGridWECCSouthwest","UnitedStatesofAmericaGridWECCCalifornia","UnitedStatesofAmericaGridERCOTAll","UnitedStatesofAmericaGridFRCCAll","UnitedStatesofAmericaGridHICCMiscellaneous","UnitedStatesofAmericaGridHICCOahu","UnitedStatesofAmericaGridMROEast","UnitedStatesofAmericaGridMROWest","UnitedStatesofAmericaGridNPCCNewEngland","UnitedStatesofAmericaGridWECCNorthwest","UnitedStatesofAmericaGridNPCCNYCWestchester","UnitedStatesofAmericaGridNPCCLongIsland","UnitedStatesofAmericaGridNPCCUpstateNY","UnitedStatesofAmericaGridPuertoRicoMiscellaneous","UnitedStatesofAmericaGridRFCEast","UnitedStatesofAmericaGridRFCMichigan","UnitedStatesofAmericaGridRFCWest","UnitedStatesofAmericaGridWECCRockies","UnitedStatesofAmericaGridSPPNorth","UnitedStatesofAmericaGridSPPSouth","UnitedStatesofAmericaGridSERCMississippiValley","UnitedStatesofAmericaGridSERCMidwest","UnitedStatesofAmericaGridSERCSouth","UnitedStatesofAmericaGridSERCTennesseeValley","UnitedStatesofAmericaGridSERCVirginiaCarolina"]
[0.41389333333333339,0,0.52840926413118072,0.75253333333333328,0.18813333333333332,1.4757221052631579,0.75253333333333328,0.75253333333333328,0.47813099773856221,0.39015885416666668,0.75253333333333328,0.80780863719273144,0.24193619813364017,0.53374326383106463,0.75253333333333328,0.75253333333333328,0.72635337482702589,0.52792259306846101,0.74927285223367701,0.39956143942858241,0.251558225005235,0.40302166666666672,0.74535058179090408,0.75253333333333328,0,0.60361404629505733,0.75253333333333328,1.1972185047864643,1.4860623029463913,0.28376405130088012,0.75253333333333328,0.68115736260726001,0.91147949777166914,0.75253333333333328,0.41389333333333339,1.0463155595145508,0.65945187013002327,0.37152151762409591,0.75253333333333328,0.75253333333333328,0.75253333333333328,0.18813333333333332,0.75253333333333328,0.75253333333333328,0.65660621583187295,0.89890636354677289,0.40971074730147222,0.75253333333333328,0,0.65935248281124836,0.75253333333333328,0.10777421052631581,0.46626367667707391,0.29431925176012996,0.55894810393390726,0.8764736842105264,0.75057894736842101,0.90155574913520964,0.36163560713855047,0.75253333333333328,0.75253333333333328,0.60124214799644926,0.56027269075299524,0.55384226605880471,0.54749210526315795,0.63243284947523382,0.91528421052631581,1.0569384728916884,0,0,0.75253333333333328,0.75253333333333328,0.6396533333333333,0.26665093129253087,0.15813943258655422,0.42342901960784318,0.75253333333333328,0.94581402169996431,0.75253333333333328,0.28887499999999999,0.64968994047557227,0.49476036372488219,0.77895789473684218,0.50712458051048592,0.26401263157894733,0.75253333333333328,0.75253333333333328,0.75253333333333328,0.79782021654724322,0.75253333333333328,0.75253333333333328,0.84658450481104885,1.0476842105263158,0.66151473684210527,0.29587867165691201,0,0.95092171086823973,0.78346795097088218,0.59209778374368838,1.0803692355487624,0.38023784032189217,0.43626666666666669,0.39416083084258252,0.41446157359502134,0.71077986154859829,0.47144868157144054,0.5285811548399727,0.79717512023385118,0.57397894736842103,0.75253333333333328,0.75413804349403113,0.55532213373870554,1.1450674874178146,0.67514923722159537,0.21714621167186182,1.069072340425532,0.23985341541279956,0.7939578947368422,0,0.67727999999999999,0.66751930829861705,0.15050666666666662,0.21053740239018973,0.2202081798321813,0.87573684210526326,0.66278198198198202,0.48914666666666667,0.55098890691619529,0.75253333333333328,1.0762526315789476,0.51967257192478122,0.75253333333333328,0.75253333333333328,0.75253333333333328,0.70044635381945308,0.75253333333333328,0.53143352435787061,0.75253333333333328,0.54087135429556454,0.15813943258655422,1.3663251553188454,0.89915744680851073,0.75253333333333328,0.72854654937893293,0.23384260480422303,0.71926162502344382,0.35502449160074451,0.75253333333333328,0,0.32608578087788775,0.77940909090909072,0.24603160615769773,0.67527473684210526,0.77210526315789485,0.52593749999999995,0.75253333333333328,0.85087123062811909,0.75253333333333328,4.6648638305623803E-2,0.47868408732627005,0.59191609404656631,0.75253333333333328,0.71883157894736849,0.47748425394808525,0.59720701754385963,0,0.47308044673957783,0.67162321414342363,0.82830808243659382,0.38925330847668149,0.59640168776371316,0.50298958333333332,0.77240784313725486,0.48944671948839791,0.475674492779324,0.71228121212121198,0.75253333333333328,0.75253333333333328,0.75253333333333328,0.75253333333333328,0.75253333333333328,0.75253333333333328,0.75253333333333328,0.41446157359502134,0.75253333333333328,0.59170517021995994,0.87016014500976235,1.0855814954843275,0.75253333333333328,0.48914666666666667,0.37857942154878987,0.75253333333333328,0.33187545826708659,0.61992161297153825,0.75253333333333328,0.75253333333333328,1.0702178314438704,0.88981052631578961,0.40173041920145641,0.73074549790714349,0.73554631578947371,1.0286210526315791,6.7970851175322644E-2,4.8045690537286488E-2,0.7125127527362779,0.48407714954481845,0.25535106382978728,0.53053994868732812,0.4504908959100154,0.75253333333333328,0.85925309119305637,0.75253333333333328,0.55928688693593676,0.4677321300513424,0.37620850365060193,0.92729166666666674,0.75253333333333328,0.75253333333333328,0.27900157894736838,0.76826104335145529,0.5564820192401615,0.38037122403282042,0.41642836655212712,0.1739583772719126,0.61228332712322942,0.75253333333333328,0.71092039129200291,0.56044106116765835,0.65030572390572383,0.80729319375841657,0.41640860304340588,1.5753007845098519,0.60028712431167275,0.69074625105460363,0.62351380283223423,0.45809164391142237,0.59070542769275436,0.46011875062369023,0.70390543495024094,0.80104779962079642,0.74319655995137479,0.82667761337554779,0.40230833431611801,0.75468742912610798,0.44062967767687861,0.57272772632018221,0.39939309268717516,0.76149676588255577,0.56202474802913882,0.78768359173009406,0.82652339178633971,0.75330986746015183,0.89986709727753544,0.68984541553646439,0.51756538541789521,0.85257686131850385,0.60927642859086828,0.68989712512814005,0.60384964302238031]
[]
[]
["Afghanistan","Albania","Algeria","AmericanSamoa","Andorra","Angola","Anguilla","AntiguaandBarbuda","Argentina","Armenia","Aruba","Australia","Austria","Azerbaijan","AzoresPortugal","Bahamas","Bahrain","Bangladesh","Barbados","Belarus","Belgium","Belize","Benin","BermudaUK","Bhutan","Bolivia","BonaireNetherland","BosniaandHerzegovina","Botswana","Brazil","BritishVirginIslandsUK","BruneiDarussalam","Bulgaria","BurkinaFaso","Burundi","Cambodia","Cameroon","Canada","CanaryIslandsSpain","CapeVerde","CaymanIslands","CentralAfricanRepublic","Chad","ChannelIslandsUK","Chile","China","Colombia","Comoros","CongoDemocraticRepublicof","CongoRepublicof","CookIslands","CostaRica","CotedIvoire","Croatia","Cuba","CuracaoNetherlandsAntilles","Cyprus","CzechRepublic","Denmark","Djibouti","Dominica","DominicanRepublic","Ecuador","Egypt","ElSalvador","EquatorialGuinea","Eritrea","Estonia","Eswatini","Ethiopia","FalklandIslandsUK","FaroeIslandsDenmark","Fiji","Finland","France","FrenchGuiana","FrenchPolynesia","Gabon","Gambia","Georgia","Germany","Ghana","GibraltarUK","Greece","Greenland","Grenada","GuadeloupeFrance","Guam","Guatemala","Guinea","GuineaBissau","Guyana","Haiti","Honduras","Hungary","Iceland","India","Indonesia","Iran","Iraq","Ireland","IsleofManUK","Israel","Italy","Jamaica","Japan","Jordan","Kazakhstan","Kenya","Kiribati","KoreaNorthDemocraticPeoplesRepublicof","KoreaRepublicof","Kosovo","Kuwait","Kyrgyzstan","Laos","Latvia","Lebanon","Lesotho","Liberia","Libya","Liechtenstein","Lithuania","Luxembourg","Madagascar","MadeiraPortugal","Malawi","Malaysia","Maldives","Mali","Malta","MarshallIslands","MartiniqueFrance","Mauritania","Mauritius","MayotteFrance","Mexico","Micronesia","MoldovaRepublicof","Monaco","Mongolia","Montenegro","Montserrat","Morocco","Mozambique","Myanmar","Namibia","Nauru","Nepal","Netherlands","NewCaledoniaFrance","NewZealand","Nicaragua","Niger","Nigeria","Niue","NorthMacedoniaRepublicof","NorthernMarianaIslandsUS","Norway","Oman","Pakistan","Palau","PalestinianAuthority","Panama","PapuaNewGuinea","Paraguay","Peru","Philippines","Poland","Portugal","PuertoRicoUS","Qatar","ReunionFrance","Romania","RussianFederation","Rwanda","SaintHelenaUK","SaintKittsandNevis","SaintLucia","SaintMartinFrance","SaintPierreandMiquelonFrance","SaintVincentandGrenadines","Samoa","SanMarino","SaoTomePrincipe","SaudiArabia","Senegal","Serbia","Seychelles","SierraLeone","Singapore","SintMartinNetherlands","SlovakRepublic","Slovenia","SolomonIslands","Somalia","SouthAfrica","SouthSudan","Spain","SriLanka","Sudan","Suriname","Sweden","Switzerland","SyrianArabRepublic","Taiwan","Tajikistan","TanzaniaUnitedRepublicof","Thailand","TimorLeste","Togo","Tonga","TrinidadandTobago","Tunisia","Turkey","Turkmenistan","TurksandCaicosIslandsUK","Tuvalu","Uganda","Ukraine","UnitedArabEmirates","UnitedKingdom","UnitedStatesofAmerica","Uruguay","Uzbekistan","Vanatu","VenezuelaBolivarianRepublicof","VietNam","VirginIslandsUS","Yemen","Zambia","Zimbabwe"]
[{"$f":"_xlfn.CONCAT(A$19,\"Grid\")","v":"AfghanistanGrid"},{"$f":"_xlfn.CONCAT(B$19,\"Grid\")","v":"AlbaniaGrid"},"AlgeriaGrid","AmericanSamoaGrid","AndorraGrid","AngolaGrid","AnguillaGrid","AntiguaandBarbudaGrid","ArgentinaGrid","ArmeniaGrid","ArubaGrid","AustraliaGrid","AustriaGrid","AzerbaijanGrid","AzoresPortugalGrid","BahamasGrid","BahrainGrid","BangladeshGrid","BarbadosGrid","BelarusGrid","BelgiumGrid","BelizeGrid","BeninGrid","BermudaUKGrid","BhutanGrid","BoliviaGrid","BonaireNetherlandGrid","BosniaandHerzegovinaGrid","BotswanaGrid","BrazilGrid","BritishVirginIslandsUKGrid","BruneiDarussalamGrid","BulgariaGrid","BurkinaFasoGrid","BurundiGrid","CambodiaGrid","CameroonGrid","CanadaGrid","CanaryIslandsSpainGrid","CapeVerdeGrid","CaymanIslandsGrid","CentralAfricanRepublicGrid","ChadGrid","ChannelIslandsUKGrid","ChileGrid","ChinaGrid","ColombiaGrid","ComorosGrid","CongoDemocraticRepublicofGrid","CongoRepublicofGrid","CookIslandsGrid","CostaRicaGrid","CotedIvoireGrid","CroatiaGrid","CubaGrid","CuracaoNetherlandsAntillesGrid","CyprusGrid","CzechRepublicGrid","DenmarkGrid","DjiboutiGrid","DominicaGrid","DominicanRepublicGrid","EcuadorGrid","EgyptGrid","ElSalvadorGrid",{"$f":"_xlfn.CONCAT(BN$19,\"Grid\")","v":"EquatorialGuineaGrid"},"EritreaGrid","EstoniaGrid","EswatiniGrid","EthiopiaGrid","FalklandIslandsUKGrid","FaroeIslandsDenmarkGrid","FijiGrid","FinlandGrid","FranceGrid","FrenchGuianaGrid","FrenchPolynesiaGrid","GabonGrid","GambiaGrid","GeorgiaGrid","GermanyGrid","GhanaGrid","GibraltarUKGrid","GreeceGrid","GreenlandGrid","GrenadaGrid","GuadeloupeFranceGrid","GuamGrid","GuatemalaGrid","GuineaGrid","GuineaBissauGrid","GuyanaGrid","HaitiGrid","HondurasGrid","HungaryGrid","IcelandGrid","IndiaGrid","IndonesiaGrid","IranGrid","IraqGrid","IrelandGrid","IsleofManUKGrid","IsraelGrid","ItalyGrid","JamaicaGrid","JapanGrid","JordanGrid","KazakhstanGrid","KenyaGrid","KiribatiGrid","KoreaNorthDemocraticPeoplesRepublicofGrid","KoreaRepublicofGrid","KosovoGrid","KuwaitGrid","KyrgyzstanGrid","LaosGrid","LatviaGrid","LebanonGrid","LesothoGrid","LiberiaGrid","LibyaGrid","LiechtensteinGrid","LithuaniaGrid","LuxembourgGrid","MadagascarGrid","MadeiraPortugalGrid","MalawiGrid","MalaysiaGrid","MaldivesGrid",{"$f":"_xlfn.CONCAT(DZ$19,\"Grid\")","v":"MaliGrid"},"MaltaGrid","MarshallIslandsGrid","MartiniqueFranceGrid","MauritaniaGrid","MauritiusGrid","MayotteFranceGrid","MexicoGrid","MicronesiaGrid","MoldovaRepublicofGrid","MonacoGrid","MongoliaGrid","MontenegroGrid","MontserratGrid","MoroccoGrid","MozambiqueGrid","MyanmarGrid","NamibiaGrid","NauruGrid","NepalGrid","NetherlandsGrid","NewCaledoniaFranceGrid","NewZealandGrid","NicaraguaGrid","NigerGrid","NigeriaGrid","NiueGrid","NorthMacedoniaRepublicofGrid","NorthernMarianaIslandsUSGrid","NorwayGrid","OmanGrid","PakistanGrid","PalauGrid","PalestinianAuthorityGrid","PanamaGrid","PapuaNewGuineaGrid","ParaguayGrid","PeruGrid","PhilippinesGrid","PolandGrid","PortugalGrid","PuertoRicoUSGrid","QatarGrid","ReunionFranceGrid","RomaniaGrid","RussianFederationGrid","RwandaGrid","SaintHelenaUKGrid","SaintKittsandNevisGrid","SaintLuciaGrid","SaintMartinFranceGrid","SaintPierreandMiquelonFranceGrid","SaintVincentandGrenadinesGrid","SamoaGrid","SanMarinoGrid","SaoTomePrincipeGrid","SaudiArabiaGrid","SenegalGrid","SerbiaGrid","SeychellesGrid","SierraLeoneGrid","SingaporeGrid","SintMartinNetherlandsGrid","SlovakRepublicGrid",{"$f":"_xlfn.CONCAT(GL$19,\"Grid\")","v":"SloveniaGrid"},"SolomonIslandsGrid","SomaliaGrid","SouthAfricaGrid","SouthSudanGrid","SpainGrid","SriLankaGrid","SudanGrid","SurinameGrid","SwedenGrid","SwitzerlandGrid","SyrianArabRepublicGrid","TaiwanGrid","TajikistanGrid","TanzaniaUnitedRepublicofGrid","ThailandGrid","TimorLesteGrid","TogoGrid","TongaGrid","TrinidadandTobagoGrid","TunisiaGrid","TurkeyGrid","TurkmenistanGrid","TurksandCaicosIslandsUKGrid","TuvaluGrid","UgandaGrid","UkraineGrid","UnitedArabEmiratesGrid","UnitedKingdomGrid","UnitedStatesofAmericaGrid","UruguayGrid","UzbekistanGrid","VanatuGrid","VenezuelaBolivarianRepublicofGrid","VietNamGrid","VirginIslandsUSGrid","YemenGrid","ZambiaGrid","ZimbabweGrid"]
["National","National","National","National","National","National","National","National","National","National","National","National","National","National","National","National","National","National","National","National","National","National","National","National","National","National","National","National","National","National","National","National","National","National","National","National","National","National","National","National","National","National","National","National","National","National","National","National","National","National","National","National","National","National","National","National","National","National","National","National","National","National","National","National","National","National","National","National","National","National","National","National","National","National","National","National","National","National","National","National","National","National","National","National","National","National","National","National","National","National","National","National","National","National","National","National","National","National","National","National","National","National","National","National","National","National","National","National","National","National","National","National","National","National","National","National","National","National","National","National","National","National","National","National","National","National","National","National","National","National","National","National","National","National","National","National","National","National","National","National","National","National","National","National","National","National","National","National","National","National","National","National","National","National","National","National","National","National","National","National","National","National","National","National","National","National","National","National","National","National","National","National","National","National","National","National","National","National","National","National","National","National","National","National","National","National","National","National","National","National","National","National","National","National","National","National","National","National","National","National","National","National","National","National","National","National","National","National","National","National","National","National","National","National","National","National","National","National","National","National","National","National","National","National","National","National","National","National","National","National","National","National"]
[null,null,null,null,null,null,null,null,null,null,null,null,null,null,null,null,null,null,null,null,null,null,null,null,null,null,null,null,null,null,null,null,null,null,null,null,null,null,null,null,null,null,null,null,null,null,null,null,null,null,null,null,null,null,null,null,null,null,null,null,null,null,null,null,null,null,null,null,null,null,null,null,null,null,null,null,null,null,null,null,null,null,null,null,null,null,null,null,null,null,null,null,null,null,null,null,null,null,null,null,null,null,null,null,null,null,null,null,null,null,null,null,null,null,null,null,null,null,null,null,null,null,null,null,null,null,null,null,null,null,null,null,null,null,null,null,null,null,null,null,null,null,null,null,null,null,null,null,null,null,null,null,null,null,null,null,null,null,null,null,null,null,null,null,null,null,null,null,null,null,null,null,null,null,null,null,null,null,null,null,null,null,null,null,null,null,null,null,null,null,null,null,null,null,null,null,null,null,null,null,null,null,null,null,null,null,null,null,null,null,null,null,null,null,null,null,null,null,null,null,null,null,"ASCCAlaskaGrid"]
[null,null,null,null,null,null,null,null,null,null,null,null,null,null,null,null,null,null,null,null,null,null,null,null,null,null,null,null,null,null,null,null,null,null,null,null,null,null,null,null,null,null,null,null,null,null,null,null,null,null,null,null,null,null,null,null,null,null,null,null,null,null,null,null,null,null,null,null,null,null,null,null,null,null,null,null,null,null,null,null,null,null,null,null,null,null,null,null,null,null,null,null,null,null,null,null,null,null,null,null,null,null,null,null,null,null,null,null,null,null,null,null,null,null,null,null,null,null,null,null,null,null,null,null,null,null,null,null,null,null,null,null,null,null,null,null,null,null,null,null,null,null,null,null,null,null,null,null,null,null,null,null,null,null,null,null,null,null,null,null,null,null,null,null,null,null,null,null,null,null,null,null,null,null,null,null,null,null,null,null,null,null,null,null,null,null,null,null,null,null,null,null,null,null,null,null,null,null,null,null,null,null,null,null,null,null,null,null,null,null,null,null,null,null,null,null,null,null,null,null,null,null,"ASCCMiscellaneous"]
[null,null,null,null,null,null,null,null,null,null,null,null,null,null,null,null,null,null,null,null,null,null,null,null,null,null,null,null,null,null,null,null,null,null,null,null,null,null,null,null,null,null,null,null,null,null,null,null,null,null,null,null,null,null,null,null,null,null,null,null,null,null,null,null,null,null,null,null,null,null,null,null,null,null,null,null,null,null,null,null,null,null,null,null,null,null,null,null,null,null,null,null,null,null,null,null,null,null,null,null,null,null,null,null,null,null,null,null,null,null,null,null,null,null,null,null,null,null,null,null,null,null,null,null,null,null,null,null,null,null,null,null,null,null,null,null,null,null,null,null,null,null,null,null,null,null,null,null,null,null,null,null,null,null,null,null,null,null,null,null,null,null,null,null,null,null,null,null,null,null,null,null,null,null,null,null,null,null,null,null,null,null,null,null,null,null,null,null,null,null,null,null,null,null,null,null,null,null,null,null,null,null,null,null,null,null,null,null,null,null,null,null,null,null,null,null,null,null,null,null,null,null,"WECCSouthwest"]
[null,null,null,null,null,null,null,null,null,null,null,null,null,null,null,null,null,null,null,null,null,null,null,null,null,null,null,null,null,null,null,null,null,null,null,null,null,null,null,null,null,null,null,null,null,null,null,null,null,null,null,null,null,null,null,null,null,null,null,null,null,null,null,null,null,null,null,null,null,null,null,null,null,null,null,null,null,null,null,null,null,null,null,null,null,null,null,null,null,null,null,null,null,null,null,null,null,null,null,null,null,null,null,null,null,null,null,null,null,null,null,null,null,null,null,null,null,null,null,null,null,null,null,null,null,null,null,null,null,null,null,null,null,null,null,null,null,null,null,null,null,null,null,null,null,null,null,null,null,null,null,null,null,null,null,null,null,null,null,null,null,null,null,null,null,null,null,null,null,null,null,null,null,null,null,null,null,null,null,null,null,null,null,null,null,null,null,null,null,null,null,null,null,null,null,null,null,null,null,null,null,null,null,null,null,null,null,null,null,null,null,null,null,null,null,null,null,null,null,null,null,null,"WECCCalifornia"]
[null,null,null,null,null,null,null,null,null,null,null,null,null,null,null,null,null,null,null,null,null,null,null,null,null,null,null,null,null,null,null,null,null,null,null,null,null,null,null,null,null,null,null,null,null,null,null,null,null,null,null,null,null,null,null,null,null,null,null,null,null,null,null,null,null,null,null,null,null,null,null,null,null,null,null,null,null,null,null,null,null,null,null,null,null,null,null,null,null,null,null,null,null,null,null,null,null,null,null,null,null,null,null,null,null,null,null,null,null,null,null,null,null,null,null,null,null,null,null,null,null,null,null,null,null,null,null,null,null,null,null,null,null,null,null,null,null,null,null,null,null,null,null,null,null,null,null,null,null,null,null,null,null,null,null,null,null,null,null,null,null,null,null,null,null,null,null,null,null,null,null,null,null,null,null,null,null,null,null,null,null,null,null,null,null,null,null,null,null,null,null,null,null,null,null,null,null,null,null,null,null,null,null,null,null,null,null,null,null,null,null,null,null,null,null,null,null,null,null,null,null,null,"ERCOTAll"]
[null,null,null,null,null,null,null,null,null,null,null,null,null,null,null,null,null,null,null,null,null,null,null,null,null,null,null,null,null,null,null,null,null,null,null,null,null,null,null,null,null,null,null,null,null,null,null,null,null,null,null,null,null,null,null,null,null,null,null,null,null,null,null,null,null,null,null,null,null,null,null,null,null,null,null,null,null,null,null,null,null,null,null,null,null,null,null,null,null,null,null,null,null,null,null,null,null,null,null,null,null,null,null,null,null,null,null,null,null,null,null,null,null,null,null,null,null,null,null,null,null,null,null,null,null,null,null,null,null,null,null,null,null,null,null,null,null,null,null,null,null,null,null,null,null,null,null,null,null,null,null,null,null,null,null,null,null,null,null,null,null,null,null,null,null,null,null,null,null,null,null,null,null,null,null,null,null,null,null,null,null,null,null,null,null,null,null,null,null,null,null,null,null,null,null,null,null,null,null,null,null,null,null,null,null,null,null,null,null,null,null,null,null,null,null,null,null,null,null,null,null,null,"FRCCAll"]
[null,null,null,null,null,null,null,null,null,null,null,null,null,null,null,null,null,null,null,null,null,null,null,null,null,null,null,null,null,null,null,null,null,null,null,null,null,null,null,null,null,null,null,null,null,null,null,null,null,null,null,null,null,null,null,null,null,null,null,null,null,null,null,null,null,null,null,null,null,null,null,null,null,null,null,null,null,null,null,null,null,null,null,null,null,null,null,null,null,null,null,null,null,null,null,null,null,null,null,null,null,null,null,null,null,null,null,null,null,null,null,null,null,null,null,null,null,null,null,null,null,null,null,null,null,null,null,null,null,null,null,null,null,null,null,null,null,null,null,null,null,null,null,null,null,null,null,null,null,null,null,null,null,null,null,null,null,null,null,null,null,null,null,null,null,null,null,null,null,null,null,null,null,null,null,null,null,null,null,null,null,null,null,null,null,null,null,null,null,null,null,null,null,null,null,null,null,null,null,null,null,null,null,null,null,null,null,null,null,null,null,null,null,null,null,null,null,null,null,null,null,null,"HICCMiscellaneous"]
[null,null,null,null,null,null,null,null,null,null,null,null,null,null,null,null,null,null,null,null,null,null,null,null,null,null,null,null,null,null,null,null,null,null,null,null,null,null,null,null,null,null,null,null,null,null,null,null,null,null,null,null,null,null,null,null,null,null,null,null,null,null,null,null,null,null,null,null,null,null,null,null,null,null,null,null,null,null,null,null,null,null,null,null,null,null,null,null,null,null,null,null,null,null,null,null,null,null,null,null,null,null,null,null,null,null,null,null,null,null,null,null,null,null,null,null,null,null,null,null,null,null,null,null,null,null,null,null,null,null,null,null,null,null,null,null,null,null,null,null,null,null,null,null,null,null,null,null,null,null,null,null,null,null,null,null,null,null,null,null,null,null,null,null,null,null,null,null,null,null,null,null,null,null,null,null,null,null,null,null,null,null,null,null,null,null,null,null,null,null,null,null,null,null,null,null,null,null,null,null,null,null,null,null,null,null,null,null,null,null,null,null,null,null,null,null,null,null,null,null,null,null,"HICCOahu"]
[null,null,null,null,null,null,null,null,null,null,null,null,null,null,null,null,null,null,null,null,null,null,null,null,null,null,null,null,null,null,null,null,null,null,null,null,null,null,null,null,null,null,null,null,null,null,null,null,null,null,null,null,null,null,null,null,null,null,null,null,null,null,null,null,null,null,null,null,null,null,null,null,null,null,null,null,null,null,null,null,null,null,null,null,null,null,null,null,null,null,null,null,null,null,null,null,null,null,null,null,null,null,null,null,null,null,null,null,null,null,null,null,null,null,null,null,null,null,null,null,null,null,null,null,null,null,null,null,null,null,null,null,null,null,null,null,null,null,null,null,null,null,null,null,null,null,null,null,null,null,null,null,null,null,null,null,null,null,null,null,null,null,null,null,null,null,null,null,null,null,null,null,null,null,null,null,null,null,null,null,null,null,null,null,null,null,null,null,null,null,null,null,null,null,null,null,null,null,null,null,null,null,null,null,null,null,null,null,null,null,null,null,null,null,null,null,null,null,null,null,null,null,"MROEast"]
[null,null,null,null,null,null,null,null,null,null,null,null,null,null,null,null,null,null,null,null,null,null,null,null,null,null,null,null,null,null,null,null,null,null,null,null,null,null,null,null,null,null,null,null,null,null,null,null,null,null,null,null,null,null,null,null,null,null,null,null,null,null,null,null,null,null,null,null,null,null,null,null,null,null,null,null,null,null,null,null,null,null,null,null,null,null,null,null,null,null,null,null,null,null,null,null,null,null,null,null,null,null,null,null,null,null,null,null,null,null,null,null,null,null,null,null,null,null,null,null,null,null,null,null,null,null,null,null,null,null,null,null,null,null,null,null,null,null,null,null,null,null,null,null,null,null,null,null,null,null,null,null,null,null,null,null,null,null,null,null,null,null,null,null,null,null,null,null,null,null,null,null,null,null,null,null,null,null,null,null,null,null,null,null,null,null,null,null,null,null,null,null,null,null,null,null,null,null,null,null,null,null,null,null,null,null,null,null,null,null,null,null,null,null,null,null,null,null,null,null,null,null,"MROWest"]
[null,null,null,null,null,null,null,null,null,null,null,null,null,null,null,null,null,null,null,null,null,null,null,null,null,null,null,null,null,null,null,null,null,null,null,null,null,null,null,null,null,null,null,null,null,null,null,null,null,null,null,null,null,null,null,null,null,null,null,null,null,null,null,null,null,null,null,null,null,null,null,null,null,null,null,null,null,null,null,null,null,null,null,null,null,null,null,null,null,null,null,null,null,null,null,null,null,null,null,null,null,null,null,null,null,null,null,null,null,null,null,null,null,null,null,null,null,null,null,null,null,null,null,null,null,null,null,null,null,null,null,null,null,null,null,null,null,null,null,null,null,null,null,null,null,null,null,null,null,null,null,null,null,null,null,null,null,null,null,null,null,null,null,null,null,null,null,null,null,null,null,null,null,null,null,null,null,null,null,null,null,null,null,null,null,null,null,null,null,null,null,null,null,null,null,null,null,null,null,null,null,null,null,null,null,null,null,null,null,null,null,null,null,null,null,null,null,null,null,null,null,null,"NPCCNewEngland"]
[null,null,null,null,null,null,null,null,null,null,null,null,null,null,null,null,null,null,null,null,null,null,null,null,null,null,null,null,null,null,null,null,null,null,null,null,null,null,null,null,null,null,null,null,null,null,null,null,null,null,null,null,null,null,null,null,null,null,null,null,null,null,null,null,null,null,null,null,null,null,null,null,null,null,null,null,null,null,null,null,null,null,null,null,null,null,null,null,null,null,null,null,null,null,null,null,null,null,null,null,null,null,null,null,null,null,null,null,null,null,null,null,null,null,null,null,null,null,null,null,null,null,null,null,null,null,null,null,null,null,null,null,null,null,null,null,null,null,null,null,null,null,null,null,null,null,null,null,null,null,null,null,null,null,null,null,null,null,null,null,null,null,null,null,null,null,null,null,null,null,null,null,null,null,null,null,null,null,null,null,null,null,null,null,null,null,null,null,null,null,null,null,null,null,null,null,null,null,null,null,null,null,null,null,null,null,null,null,null,null,null,null,null,null,null,null,null,null,null,null,null,null,"WECCNorthwest"]
[null,null,null,null,null,null,null,null,null,null,null,null,null,null,null,null,null,null,null,null,null,null,null,null,null,null,null,null,null,null,null,null,null,null,null,null,null,null,null,null,null,null,null,null,null,null,null,null,null,null,null,null,null,null,null,null,null,null,null,null,null,null,null,null,null,null,null,null,null,null,null,null,null,null,null,null,null,null,null,null,null,null,null,null,null,null,null,null,null,null,null,null,null,null,null,null,null,null,null,null,null,null,null,null,null,null,null,null,null,null,null,null,null,null,null,null,null,null,null,null,null,null,null,null,null,null,null,null,null,null,null,null,null,null,null,null,null,null,null,null,null,null,null,null,null,null,null,null,null,null,null,null,null,null,null,null,null,null,null,null,null,null,null,null,null,null,null,null,null,null,null,null,null,null,null,null,null,null,null,null,null,null,null,null,null,null,null,null,null,null,null,null,null,null,null,null,null,null,null,null,null,null,null,null,null,null,null,null,null,null,null,null,null,null,null,null,null,null,null,null,null,null,"NPCCNYCWestchester"]
[null,null,null,null,null,null,null,null,null,null,null,null,null,null,null,null,null,null,null,null,null,null,null,null,null,null,null,null,null,null,null,null,null,null,null,null,null,null,null,null,null,null,null,null,null,null,null,null,null,null,null,null,null,null,null,null,null,null,null,null,null,null,null,null,null,null,null,null,null,null,null,null,null,null,null,null,null,null,null,null,null,null,null,null,null,null,null,null,null,null,null,null,null,null,null,null,null,null,null,null,null,null,null,null,null,null,null,null,null,null,null,null,null,null,null,null,null,null,null,null,null,null,null,null,null,null,null,null,null,null,null,null,null,null,null,null,null,null,null,null,null,null,null,null,null,null,null,null,null,null,null,null,null,null,null,null,null,null,null,null,null,null,null,null,null,null,null,null,null,null,null,null,null,null,null,null,null,null,null,null,null,null,null,null,null,null,null,null,null,null,null,null,null,null,null,null,null,null,null,null,null,null,null,null,null,null,null,null,null,null,null,null,null,null,null,null,null,null,null,null,null,null,"NPCCLongIsland"]
[null,null,null,null,null,null,null,null,null,null,null,null,null,null,null,null,null,null,null,null,null,null,null,null,null,null,null,null,null,null,null,null,null,null,null,null,null,null,null,null,null,null,null,null,null,null,null,null,null,null,null,null,null,null,null,null,null,null,null,null,null,null,null,null,null,null,null,null,null,null,null,null,null,null,null,null,null,null,null,null,null,null,null,null,null,null,null,null,null,null,null,null,null,null,null,null,null,null,null,null,null,null,null,null,null,null,null,null,null,null,null,null,null,null,null,null,null,null,null,null,null,null,null,null,null,null,null,null,null,null,null,null,null,null,null,null,null,null,null,null,null,null,null,null,null,null,null,null,null,null,null,null,null,null,null,null,null,null,null,null,null,null,null,null,null,null,null,null,null,null,null,null,null,null,null,null,null,null,null,null,null,null,null,null,null,null,null,null,null,null,null,null,null,null,null,null,null,null,null,null,null,null,null,null,null,null,null,null,null,null,null,null,null,null,null,null,null,null,null,null,null,null,"NPCCUpstateNY"]
[null,null,null,null,null,null,null,null,null,null,null,null,null,null,null,null,null,null,null,null,null,null,null,null,null,null,null,null,null,null,null,null,null,null,null,null,null,null,null,null,null,null,null,null,null,null,null,null,null,null,null,null,null,null,null,null,null,null,null,null,null,null,null,null,null,null,null,null,null,null,null,null,null,null,null,null,null,null,null,null,null,null,null,null,null,null,null,null,null,null,null,null,null,null,null,null,null,null,null,null,null,null,null,null,null,null,null,null,null,null,null,null,null,null,null,null,null,null,null,null,null,null,null,null,null,null,null,null,null,null,null,null,null,null,null,null,null,null,null,null,null,null,null,null,null,null,null,null,null,null,null,null,null,null,null,null,null,null,null,null,null,null,null,null,null,null,null,null,null,null,null,null,null,null,null,null,null,null,null,null,null,null,null,null,null,null,null,null,null,null,null,null,null,null,null,null,null,null,null,null,null,null,null,null,null,null,null,null,null,null,null,null,null,null,null,null,null,null,null,null,null,null,"PuertoRicoMiscellaneous"]
[null,null,null,null,null,null,null,null,null,null,null,null,null,null,null,null,null,null,null,null,null,null,null,null,null,null,null,null,null,null,null,null,null,null,null,null,null,null,null,null,null,null,null,null,null,null,null,null,null,null,null,null,null,null,null,null,null,null,null,null,null,null,null,null,null,null,null,null,null,null,null,null,null,null,null,null,null,null,null,null,null,null,null,null,null,null,null,null,null,null,null,null,null,null,null,null,null,null,null,null,null,null,null,null,null,null,null,null,null,null,null,null,null,null,null,null,null,null,null,null,null,null,null,null,null,null,null,null,null,null,null,null,null,null,null,null,null,null,null,null,null,null,null,null,null,null,null,null,null,null,null,null,null,null,null,null,null,null,null,null,null,null,null,null,null,null,null,null,null,null,null,null,null,null,null,null,null,null,null,null,null,null,null,null,null,null,null,null,null,null,null,null,null,null,null,null,null,null,null,null,null,null,null,null,null,null,null,null,null,null,null,null,null,null,null,null,null,null,null,null,null,null,"RFCEast"]
[null,null,null,null,null,null,null,null,null,null,null,null,null,null,null,null,null,null,null,null,null,null,null,null,null,null,null,null,null,null,null,null,null,null,null,null,null,null,null,null,null,null,null,null,null,null,null,null,null,null,null,null,null,null,null,null,null,null,null,null,null,null,null,null,null,null,null,null,null,null,null,null,null,null,null,null,null,null,null,null,null,null,null,null,null,null,null,null,null,null,null,null,null,null,null,null,null,null,null,null,null,null,null,null,null,null,null,null,null,null,null,null,null,null,null,null,null,null,null,null,null,null,null,null,null,null,null,null,null,null,null,null,null,null,null,null,null,null,null,null,null,null,null,null,null,null,null,null,null,null,null,null,null,null,null,null,null,null,null,null,null,null,null,null,null,null,null,null,null,null,null,null,null,null,null,null,null,null,null,null,null,null,null,null,null,null,null,null,null,null,null,null,null,null,null,null,null,null,null,null,null,null,null,null,null,null,null,null,null,null,null,null,null,null,null,null,null,null,null,null,null,null,"RFCMichigan"]
[null,null,null,null,null,null,null,null,null,null,null,null,null,null,null,null,null,null,null,null,null,null,null,null,null,null,null,null,null,null,null,null,null,null,null,null,null,null,null,null,null,null,null,null,null,null,null,null,null,null,null,null,null,null,null,null,null,null,null,null,null,null,null,null,null,null,null,null,null,null,null,null,null,null,null,null,null,null,null,null,null,null,null,null,null,null,null,null,null,null,null,null,null,null,null,null,null,null,null,null,null,null,null,null,null,null,null,null,null,null,null,null,null,null,null,null,null,null,null,null,null,null,null,null,null,null,null,null,null,null,null,null,null,null,null,null,null,null,null,null,null,null,null,null,null,null,null,null,null,null,null,null,null,null,null,null,null,null,null,null,null,null,null,null,null,null,null,null,null,null,null,null,null,null,null,null,null,null,null,null,null,null,null,null,null,null,null,null,null,null,null,null,null,null,null,null,null,null,null,null,null,null,null,null,null,null,null,null,null,null,null,null,null,null,null,null,null,null,null,null,null,null,"RFCWest"]
[null,null,null,null,null,null,null,null,null,null,null,null,null,null,null,null,null,null,null,null,null,null,null,null,null,null,null,null,null,null,null,null,null,null,null,null,null,null,null,null,null,null,null,null,null,null,null,null,null,null,null,null,null,null,null,null,null,null,null,null,null,null,null,null,null,null,null,null,null,null,null,null,null,null,null,null,null,null,null,null,null,null,null,null,null,null,null,null,null,null,null,null,null,null,null,null,null,null,null,null,null,null,null,null,null,null,null,null,null,null,null,null,null,null,null,null,null,null,null,null,null,null,null,null,null,null,null,null,null,null,null,null,null,null,null,null,null,null,null,null,null,null,null,null,null,null,null,null,null,null,null,null,null,null,null,null,null,null,null,null,null,null,null,null,null,null,null,null,null,null,null,null,null,null,null,null,null,null,null,null,null,null,null,null,null,null,null,null,null,null,null,null,null,null,null,null,null,null,null,null,null,null,null,null,null,null,null,null,null,null,null,null,null,null,null,null,null,null,null,null,null,null,"WECCRockies"]
[null,null,null,null,null,null,null,null,null,null,null,null,null,null,null,null,null,null,null,null,null,null,null,null,null,null,null,null,null,null,null,null,null,null,null,null,null,null,null,null,null,null,null,null,null,null,null,null,null,null,null,null,null,null,null,null,null,null,null,null,null,null,null,null,null,null,null,null,null,null,null,null,null,null,null,null,null,null,null,null,null,null,null,null,null,null,null,null,null,null,null,null,null,null,null,null,null,null,null,null,null,null,null,null,null,null,null,null,null,null,null,null,null,null,null,null,null,null,null,null,null,null,null,null,null,null,null,null,null,null,null,null,null,null,null,null,null,null,null,null,null,null,null,null,null,null,null,null,null,null,null,null,null,null,null,null,null,null,null,null,null,null,null,null,null,null,null,null,null,null,null,null,null,null,null,null,null,null,null,null,null,null,null,null,null,null,null,null,null,null,null,null,null,null,null,null,null,null,null,null,null,null,null,null,null,null,null,null,null,null,null,null,null,null,null,null,null,null,null,null,null,null,"SPPNorth"]
[null,null,null,null,null,null,null,null,null,null,null,null,null,null,null,null,null,null,null,null,null,null,null,null,null,null,null,null,null,null,null,null,null,null,null,null,null,null,null,null,null,null,null,null,null,null,null,null,null,null,null,null,null,null,null,null,null,null,null,null,null,null,null,null,null,null,null,null,null,null,null,null,null,null,null,null,null,null,null,null,null,null,null,null,null,null,null,null,null,null,null,null,null,null,null,null,null,null,null,null,null,null,null,null,null,null,null,null,null,null,null,null,null,null,null,null,null,null,null,null,null,null,null,null,null,null,null,null,null,null,null,null,null,null,null,null,null,null,null,null,null,null,null,null,null,null,null,null,null,null,null,null,null,null,null,null,null,null,null,null,null,null,null,null,null,null,null,null,null,null,null,null,null,null,null,null,null,null,null,null,null,null,null,null,null,null,null,null,null,null,null,null,null,null,null,null,null,null,null,null,null,null,null,null,null,null,null,null,null,null,null,null,null,null,null,null,null,null,null,null,null,null,"SPPSouth"]
[null,null,null,null,null,null,null,null,null,null,null,null,null,null,null,null,null,null,null,null,null,null,null,null,null,null,null,null,null,null,null,null,null,null,null,null,null,null,null,null,null,null,null,null,null,null,null,null,null,null,null,null,null,null,null,null,null,null,null,null,null,null,null,null,null,null,null,null,null,null,null,null,null,null,null,null,null,null,null,null,null,null,null,null,null,null,null,null,null,null,null,null,null,null,null,null,null,null,null,null,null,null,null,null,null,null,null,null,null,null,null,null,null,null,null,null,null,null,null,null,null,null,null,null,null,null,null,null,null,null,null,null,null,null,null,null,null,null,null,null,null,null,null,null,null,null,null,null,null,null,null,null,null,null,null,null,null,null,null,null,null,null,null,null,null,null,null,null,null,null,null,null,null,null,null,null,null,null,null,null,null,null,null,null,null,null,null,null,null,null,null,null,null,null,null,null,null,null,null,null,null,null,null,null,null,null,null,null,null,null,null,null,null,null,null,null,null,null,null,null,null,null,"SERCMississippiValley"]
[null,null,null,null,null,null,null,null,null,null,null,null,null,null,null,null,null,null,null,null,null,null,null,null,null,null,null,null,null,null,null,null,null,null,null,null,null,null,null,null,null,null,null,null,null,null,null,null,null,null,null,null,null,null,null,null,null,null,null,null,null,null,null,null,null,null,null,null,null,null,null,null,null,null,null,null,null,null,null,null,null,null,null,null,null,null,null,null,null,null,null,null,null,null,null,null,null,null,null,null,null,null,null,null,null,null,null,null,null,null,null,null,null,null,null,null,null,null,null,null,null,null,null,null,null,null,null,null,null,null,null,null,null,null,null,null,null,null,null,null,null,null,null,null,null,null,null,null,null,null,null,null,null,null,null,null,null,null,null,null,null,null,null,null,null,null,null,null,null,null,null,null,null,null,null,null,null,null,null,null,null,null,null,null,null,null,null,null,null,null,null,null,null,null,null,null,null,null,null,null,null,null,null,null,null,null,null,null,null,null,null,null,null,null,null,null,null,null,null,null,null,null,"SERCMidwest"]
[null,null,null,null,null,null,null,null,null,null,null,null,null,null,null,null,null,null,null,null,null,null,null,null,null,null,null,null,null,null,null,null,null,null,null,null,null,null,null,null,null,null,null,null,null,null,null,null,null,null,null,null,null,null,null,null,null,null,null,null,null,null,null,null,null,null,null,null,null,null,null,null,null,null,null,null,null,null,null,null,null,null,null,null,null,null,null,null,null,null,null,null,null,null,null,null,null,null,null,null,null,null,null,null,null,null,null,null,null,null,null,null,null,null,null,null,null,null,null,null,null,null,null,null,null,null,null,null,null,null,null,null,null,null,null,null,null,null,null,null,null,null,null,null,null,null,null,null,null,null,null,null,null,null,null,null,null,null,null,null,null,null,null,null,null,null,null,null,null,null,null,null,null,null,null,null,null,null,null,null,null,null,null,null,null,null,null,null,null,null,null,null,null,null,null,null,null,null,null,null,null,null,null,null,null,null,null,null,null,null,null,null,null,null,null,null,null,null,null,null,null,null,"SERCSouth"]
[null,null,null,null,null,null,null,null,null,null,null,null,null,null,null,null,null,null,null,null,null,null,null,null,null,null,null,null,null,null,null,null,null,null,null,null,null,null,null,null,null,null,null,null,null,null,null,null,null,null,null,null,null,null,null,null,null,null,null,null,null,null,null,null,null,null,null,null,null,null,null,null,null,null,null,null,null,null,null,null,null,null,null,null,null,null,null,null,null,null,null,null,null,null,null,null,null,null,null,null,null,null,null,null,null,null,null,null,null,null,null,null,null,null,null,null,null,null,null,null,null,null,null,null,null,null,null,null,null,null,null,null,null,null,null,null,null,null,null,null,null,null,null,null,null,null,null,null,null,null,null,null,null,null,null,null,null,null,null,null,null,null,null,null,null,null,null,null,null,null,null,null,null,null,null,null,null,null,null,null,null,null,null,null,null,null,null,null,null,null,null,null,null,null,null,null,null,null,null,null,null,null,null,null,null,null,null,null,null,null,null,null,null,null,null,null,null,null,null,null,null,null,"SERCTennesseeValley"]
[null,null,null,null,null,null,null,null,null,null,null,null,null,null,null,null,null,null,null,null,null,null,null,null,null,null,null,null,null,null,null,null,null,null,null,null,null,null,null,null,null,null,null,null,null,null,null,null,null,null,null,null,null,null,null,null,null,null,null,null,null,null,null,null,null,null,null,null,null,null,null,null,null,null,null,null,null,null,null,null,null,null,null,null,null,null,null,null,null,null,null,null,null,null,null,null,null,null,null,null,null,null,null,null,null,null,null,null,null,null,null,null,null,null,null,null,null,null,null,null,null,null,null,null,null,null,null,null,null,null,null,null,null,null,null,null,null,null,null,null,null,null,null,null,null,null,null,null,null,null,null,null,null,null,null,null,null,null,null,null,null,null,null,null,null,null,null,null,null,null,null,null,null,null,null,null,null,null,null,null,null,null,null,null,null,null,null,null,null,null,null,null,null,null,null,null,null,null,null,null,null,null,null,null,null,null,null,null,null,null,null,null,null,null,null,null,null,null,null,null,null,null,"SERCVirginiaCarolina"]
[]
[]
[]
[]
[]
[]
[]
[]
[]
[]
[]
["AustraliaGrid","AustriaGrid","BelgiumGrid","BrazilGrid","CanadaGrid","ChinaGrid","DenmarkGrid","FinlandGrid","FranceGrid","GermanyGrid","HungaryGrid","IndiaGrid","ItalyGrid","JapanGrid","KoreaRepublicofGrid","NetherlandsGrid","NorwayGrid","RussianFederationGrid","UnitedStatesofAmericaGrid"]

{"sheet":"CountryValidation","index":26,"n_rows":233,"n_cols":2,"rows_kept":233,"cut":false,"hidden":true,"merged":[]}
["Country","ProjectCountry"]
["AfghanistanGrid","UnitedStatesofAmericaGrid"]
["AlbaniaGrid","RussianFederationGrid"]
["AlgeriaGrid","NorwayGrid"]
["AmericanSamoaGrid","NetherlandsGrid"]
["AndorraGrid","KoreaRepublicofGrid"]
["AngolaGrid","JapanGrid"]
["AnguillaGrid","ItalyGrid"]
["AntiguaandBarbudaGrid","IndiaGrid"]
["ArgentinaGrid","HungaryGrid"]
["ArmeniaGrid","GermanyGrid"]
["ArubaGrid","FranceGrid"]
["AustraliaGrid","FinlandGrid"]
["AustriaGrid","DenmarkGrid"]
["AzerbaijanGrid","ChinaGrid"]
["AzoresPortugalGrid","CanadaGrid"]
["BahamasGrid","BrazilGrid"]
["BahrainGrid","BelgiumGrid"]
["BangladeshGrid","AustriaGrid"]
["BarbadosGrid","AustraliaGrid"]
["BelarusGrid"]
["BelgiumGrid"]
["BelizeGrid"]
["BeninGrid"]
["BermudaUKGrid"]
["BhutanGrid"]
["BoliviaGrid"]
["BonaireNetherlandGrid"]
["BosniaandHerzegovinaGrid"]
["BotswanaGrid"]
["BrazilGrid"]
["BritishVirginIslandsUKGrid"]
["BruneiDarussalamGrid"]
["BulgariaGrid"]
["BurkinaFasoGrid"]
["BurundiGrid"]
["CambodiaGrid"]
["CameroonGrid"]
["CanadaGrid"]
["CanaryIslandsSpainGrid"]
["CapeVerdeGrid"]
["CaymanIslandsGrid"]
["CentralAfricanRepublicGrid"]
["ChadGrid"]
["ChannelIslandsUKGrid"]
["ChileGrid"]
["ChinaGrid"]
["ColombiaGrid"]
["ComorosGrid"]
["CongoDemocraticRepublicofGrid"]
["CongoRepublicofGrid"]
["CookIslandsGrid"]
["CostaRicaGrid"]
["CotedIvoireGrid"]
["CroatiaGrid"]
["CubaGrid"]
["CuracaoNetherlandsAntillesGrid"]
["CyprusGrid"]
["CzechRepublicGrid"]
["DenmarkGrid"]
["DjiboutiGrid"]
["DominicaGrid"]
["DominicanRepublicGrid"]
["EcuadorGrid"]
["EgyptGrid"]
["ElSalvadorGrid"]
["EquatorialGuineaGrid"]
["EritreaGrid"]
["EstoniaGrid"]
["EswatiniGrid"]
["EthiopiaGrid"]
["FalklandIslandsUKGrid"]
["FaroeIslandsDenmarkGrid"]
["FijiGrid"]
["FinlandGrid"]
["FranceGrid"]
["FrenchGuianaGrid"]
["FrenchPolynesiaGrid"]
["GabonGrid"]
["GambiaGrid"]
["GeorgiaGrid"]
["GermanyGrid"]
["GhanaGrid"]
["GibraltarUKGrid"]
["GreeceGrid"]
["GreenlandGrid"]
["GrenadaGrid"]
["GuadeloupeFranceGrid"]
["GuamGrid"]
["GuatemalaGrid"]
["GuineaGrid"]
["GuineaBissauGrid"]
["GuyanaGrid"]
["HaitiGrid"]
["HondurasGrid"]
["HungaryGrid"]
["IcelandGrid"]
["IndiaGrid"]
["IndonesiaGrid"]
["IranGrid"]
["IraqGrid"]
["IrelandGrid"]
["IsleofManUKGrid"]
["IsraelGrid"]
["ItalyGrid"]
["JamaicaGrid"]
["JapanGrid"]
["JordanGrid"]
["KazakhstanGrid"]
["KenyaGrid"]
["KiribatiGrid"]
["KoreaNorthDemocraticPeoplesRepublicofGrid"]
["KoreaRepublicofGrid"]
["KosovoGrid"]
["KuwaitGrid"]
["KyrgyzstanGrid"]
["LaosGrid"]
["LatviaGrid"]
["LebanonGrid"]
["LesothoGrid"]
["LiberiaGrid"]
["LibyaGrid"]
["LiechtensteinGrid"]
["LithuaniaGrid"]
["LuxembourgGrid"]
["MadagascarGrid"]
["MadeiraPortugalGrid"]
["MalawiGrid"]
["MalaysiaGrid"]
["MaldivesGrid"]
["MaliGrid"]
["MaltaGrid"]
["MarshallIslandsGrid"]
["MartiniqueFranceGrid"]
["MauritaniaGrid"]
["MauritiusGrid"]
["MayotteFranceGrid"]
["MexicoGrid"]
["MicronesiaGrid"]
["MoldovaRepublicofGrid"]
["MonacoGrid"]
["MongoliaGrid"]
["MontenegroGrid"]
["MontserratGrid"]
["MoroccoGrid"]
["MozambiqueGrid"]
["MyanmarGrid"]
["NamibiaGrid"]
["NauruGrid"]
["NepalGrid"]
["NetherlandsGrid"]
["NewCaledoniaFranceGrid"]
["NewZealandGrid"]
["NicaraguaGrid"]
["NigerGrid"]
["NigeriaGrid"]
["NiueGrid"]
["NorthMacedoniaRepublicofGrid"]
["NorthernMarianaIslandsUSGrid"]
["NorwayGrid"]
["OmanGrid"]
["PakistanGrid"]
["PalauGrid"]
["PalestinianAuthorityGrid"]
["PanamaGrid"]
["PapuaNewGuineaGrid"]
["ParaguayGrid"]
["PeruGrid"]
["PhilippinesGrid"]
["PolandGrid"]
["PortugalGrid"]
["PuertoRicoUSGrid"]
["QatarGrid"]
["ReunionFranceGrid"]
["RomaniaGrid"]
["RussianFederationGrid"]
["RwandaGrid"]
["SaintHelenaUKGrid"]
["SaintKittsandNevisGrid"]
["SaintLuciaGrid"]
["SaintMartinFranceGrid"]
["SaintPierreandMiquelonFranceGrid"]
["SaintVincentandGrenadinesGrid"]
["SamoaGrid"]
["SanMarinoGrid"]
["SaoTomePrincipeGrid"]
["SaudiArabiaGrid"]
["SenegalGrid"]
["SerbiaGrid"]
["SeychellesGrid"]
["SierraLeoneGrid"]
["SingaporeGrid"]
["SintMartinNetherlandsGrid"]
["SlovakRepublicGrid"]
["SloveniaGrid"]
["SolomonIslandsGrid"]
["SomaliaGrid"]
["SouthAfricaGrid"]
["SouthSudanGrid"]
["SpainGrid"]
["SriLankaGrid"]
["SudanGrid"]
["SurinameGrid"]
["SwedenGrid"]
["SwitzerlandGrid"]
["SyrianArabRepublicGrid"]
["TaiwanGrid"]
["TajikistanGrid"]
["TanzaniaUnitedRepublicofGrid"]
["ThailandGrid"]
["TimorLesteGrid"]
["TogoGrid"]
["TongaGrid"]
["TrinidadandTobagoGrid"]
["TunisiaGrid"]
["TurkeyGrid"]
["TurkmenistanGrid"]
["TurksandCaicosIslandsUKGrid"]
["TuvaluGrid"]
["UgandaGrid"]
["UkraineGrid"]
["UnitedArabEmiratesGrid"]
["UnitedKingdomGrid"]
["UnitedStatesofAmericaGrid"]
["UruguayGrid"]
["UzbekistanGrid"]
["VanatuGrid"]
["VenezuelaBolivarianRepublicofGrid"]
["VietNamGrid"]
["VirginIslandsUSGrid"]
["YemenGrid"]
["ZambiaGrid"]
["ZimbabweGrid"]